Workbook

Sheet Dashboard
B1: American State Migration
B2: In Relation to Political Voting Outcomes
B3: COUNTRY | C3: =DataPull!B29 -> United States
B4: VOTED | C4: =DataPull!B43 -> Democrat
D13: =DataPull!$B$2 -> Texas | R13: =Selected_Year -> 2010
D14: VOTED | E14: =PoliticalInfluence -> Republican
F15: =DataPull!B18 -> 24.899075 | G15: State Population | J15: =DataPull!C19 -> 0.8233300233 | K15: Stayed Put | N15: =DataPull!C20 -> 0.1502201989 | O15: Left The State
B16: OVERVIEW
R29: Created By: Chris Newman

Sheet DataPull
O1: 44
A2: STATE: | B2: =INDEX($O$3:$O$54,O1) -> Texas | F2: Political Influence | G2: =VLOOKUP($A$13,'Raw Data'!$A$2:$BL$158,3,0) -> Republican | K2: YEAR: | L2: 2010 | O2: State
O3: Alabama
A4: ="Top State Populations migrating to " & B2 -> Top State Populations migrating to Texas | O4: Alaska
A5: Rank | B5: 10 | C5: 9 | D5: 8 | E5: 7 | F5: 6 | G5: 5 | H5: 4 | I5: 3 | J5: 2 | K5: 1 | O5: Arizona
A6: State | B6: =INDEX('Raw Data'!$N$2:$BL$2,MATCH(DataPull!B7,INDEX(StateMigData,MATCH($A7,'Raw Data'!$A:$A,0),0),0)) -> Arkansas | C6: =INDEX('Raw Data'!$N$2:$BL$2,MATCH(DataPull!C7,INDEX(StateMigData,MATCH($A7,'Raw Data'!$A:$A,0),0),0)) -> Colorado | D6: =INDEX('Raw Data'!$N$2:$BL$2,MATCH(DataPull!D7,INDEX(StateMigData,MATCH($A7,'Raw Data'!$A:$A,0),0),0)) -> Arizona | E6: =INDEX('Raw Data'!$N$2:$BL$2,MATCH(DataPull!E7,INDEX(StateMigData,MATCH($A7,'Raw Data'!$A:$A,0),0),0)) -> New York | F6: =INDEX('Raw Data'!$N$2:$BL$2,MATCH(DataPull!F7,INDEX(StateMigData,MATCH($A7,'Raw Data'!$A:$A,0),0),0)) -> Georgia | G6: =INDEX('Raw Data'!$N$2:$BL$2,MATCH(DataPull!G7,INDEX(StateMigData,MATCH($A7,'Raw Data'!$A:$A,0),0),0)) -> Illinois | H6: =INDEX('Raw Data'!$N$2:$BL$2,MATCH(DataPull!H7,INDEX(StateMigData,MATCH($A7,'Raw Data'!$A:$A,0),0),0)) -> Oklahoma | I6: =INDEX('Raw Data'!$N$2:$BL$2,MATCH(DataPull!I7,INDEX(StateMigData,MATCH($A7,'Raw Data'!$A:$A,0),0),0)) -> Florida | J6: =INDEX('Raw Data'!$N$2:$BL$2,MATCH(DataPull!J7,INDEX(StateMigData,MATCH($A7,'Raw Data'!$A:$A,0),0),0)) -> Louisiana | K6: =INDEX('Raw Data'!$N$2:$BL$2,MATCH(DataPull!K7,INDEX(StateMigData,MATCH($A7,'Raw Data'!$A:$A,0),0),0)) -> California | L6: Total | O6: Arkansas
A7: =Selected_Year&State -> 2010Texas | B7: =LARGE(INDEX(StateMigData,MATCH($A7,'Raw Data'!$A:$A,0),0),B$5) -> 15251 | C7: =LARGE(INDEX(StateMigData,MATCH($A7,'Raw Data'!$A:$A,0),0),C$5) -> 16361 | D7: =LARGE(INDEX(StateMigData,MATCH($A7,'Raw Data'!$A:$A,0),0),D$5) -> 16521 | E7: =LARGE(INDEX(StateMigData,MATCH($A7,'Raw Data'!$A:$A,0),0),E$5) -> 16624 | F7: =LARGE(INDEX(StateMigData,MATCH($A7,'Raw Data'!$A:$A,0),0),F$5) -> 16671 | G7: =LARGE(INDEX(StateMigData,MATCH($A7,'Raw Data'!$A:$A,0),0),G$5) -> 20169 | H7: =LARGE(INDEX(StateMigData,MATCH($A7,'Raw Data'!$A:$A,0),0),H$5) -> 22969 | I7: =LARGE(INDEX(StateMigData,MATCH($A7,'Raw Data'!$A:$A,0),0),I$5) -> 26668 | J7: =LARGE(INDEX(StateMigData,MATCH($A7,'Raw Data'!$A:$A,0),0),J$5) -> 31149 | K7: =LARGE(INDEX(StateMigData,MATCH($A7,'Raw Data'!$A:$A,0),0),K$5) -> 68959 | L7: =VLOOKUP(A7,'Raw Data'!$A$2:$BL$158,13,0) -> 486558 | O7: California
A8: Republican | B8: =IF(VLOOKUP($L$2&B$6,'Raw Data'!$A:$C,3,0) = $A8,B$7/1000,"") -> 15.251 | C8: =IF(VLOOKUP($L$2&C$6,'Raw Data'!$A:$C,3,0) = $A8,C$7/1000,"") ->  | D8: =IF(VLOOKUP($L$2&D$6,'Raw Data'!$A:$C,3,0) = $A8,D$7/1000,"") -> 16.521 | E8: =IF(VLOOKUP($L$2&E$6,'Raw Data'!$A:$C,3,0) = $A8,E$7/1000,"") ->  | F8: =IF(VLOOKUP($L$2&F$6,'Raw Data'!$A:$C,3,0) = $A8,F$7/1000,"") -> 16.671 | G8: =IF(VLOOKUP($L$2&G$6,'Raw Data'!$A:$C,3,0) = $A8,G$7/1000,"") ->  | H8: =IF(VLOOKUP($L$2&H$6,'Raw Data'!$A:$C,3,0) = $A8,H$7/1000,"") -> 22.969 | I8: =IF(VLOOKUP($L$2&I$6,'Raw Data'!$A:$C,3,0) = $A8,I$7/1000,"") ->  | J8: =IF(VLOOKUP($L$2&J$6,'Raw Data'!$A:$C,3,0) = $A8,J$7/1000,"") -> 31.149 | K8: =IF(VLOOKUP($L$2&K$6,'Raw Data'!$A:$C,3,0) = $A8,K$7/1000,"") ->  | O8: Colorado
A9: Democrat | B9: =IF(VLOOKUP($L$2&B$6,'Raw Data'!$A:$C,3,0) = $A9,B$7/1000,"") ->  | C9: =IF(VLOOKUP($L$2&C$6,'Raw Data'!$A:$C,3,0) = $A9,C$7/1000,"") -> 16.361 | D9: =IF(VLOOKUP($L$2&D$6,'Raw Data'!$A:$C,3,0) = $A9,D$7/1000,"") ->  | E9: =IF(VLOOKUP($L$2&E$6,'Raw Data'!$A:$C,3,0) = $A9,E$7/1000,"") -> 16.624 | F9: =IF(VLOOKUP($L$2&F$6,'Raw Data'!$A:$C,3,0) = $A9,F$7/1000,"") ->  | G9: =IF(VLOOKUP($L$2&G$6,'Raw Data'!$A:$C,3,0) = $A9,G$7/1000,"") -> 20.169 | H9: =IF(VLOOKUP($L$2&H$6,'Raw Data'!$A:$C,3,0) = $A9,H$7/1000,"") ->  | I9: =IF(VLOOKUP($L$2&I$6,'Raw Data'!$A:$C,3,0) = $A9,I$7/1000,"") -> 26.668 | J9: =IF(VLOOKUP($L$2&J$6,'Raw Data'!$A:$C,3,0) = $A9,J$7/1000,"") ->  | K9: =IF(VLOOKUP($L$2&K$6,'Raw Data'!$A:$C,3,0) = $A9,K$7/1000,"") -> 68.959 | O9: Connecticut
O10: Delaware
A11: ="People from " & B2 & " moved here" -> People from Texas moved here | O11: District of Columbia
A12: State | B12: =INDEX('Raw Data'!$D$4:$D$158,MATCH(B13,OFFSET('Raw Data'!$A$4:$A$158,0,MATCH($B$2,'Raw Data'!$A$2:$BL$2,0)-1),0)) -> Virginia | C12: =INDEX('Raw Data'!$D$4:$D$158,MATCH(C13,OFFSET('Raw Data'!$A$4:$A$158,0,MATCH($B$2,'Raw Data'!$A$2:$BL$2,0)-1),0)) -> Arkansas | D12: =INDEX('Raw Data'!$D$4:$D$158,MATCH(D13,OFFSET('Raw Data'!$A$4:$A$158,0,MATCH($B$2,'Raw Data'!$A$2:$BL$2,0)-1),0)) -> North Carolina | E12: =INDEX('Raw Data'!$D$4:$D$158,MATCH(E13,OFFSET('Raw Data'!$A$4:$A$158,0,MATCH($B$2,'Raw Data'!$A$2:$BL$2,0)-1),0)) -> Arizona | F12: =INDEX('Raw Data'!$D$4:$D$158,MATCH(F13,OFFSET('Raw Data'!$A$4:$A$158,0,MATCH($B$2,'Raw Data'!$A$2:$BL$2,0)-1),0)) -> New Mexico | G12: =INDEX('Raw Data'!$D$4:$D$158,MATCH(G13,OFFSET('Raw Data'!$A$4:$A$158,0,MATCH($B$2,'Raw Data'!$A$2:$BL$2,0)-1),0)) -> Colorado | H12: =INDEX('Raw Data'!$D$4:$D$158,MATCH(H13,OFFSET('Raw Data'!$A$4:$A$158,0,MATCH($B$2,'Raw Data'!$A$2:$BL$2,0)-1),0)) -> Florida | I12: =INDEX('Raw Data'!$D$4:$D$158,MATCH(I13,OFFSET('Raw Data'!$A$4:$A$158,0,MATCH($B$2,'Raw Data'!$A$2:$BL$2,0)-1),0)) -> Louisiana | J12: =INDEX('Raw Data'!$D$4:$D$158,MATCH(J13,OFFSET('Raw Data'!$A$4:$A$158,0,MATCH($B$2,'Raw Data'!$A$2:$BL$2,0)-1),0)) -> Oklahoma | K12: =INDEX('Raw Data'!$D$4:$D$158,MATCH(K13,OFFSET('Raw Data'!$A$4:$A$158,0,MATCH($B$2,'Raw Data'!$A$2:$BL$2,0)-1),0)) -> California | L12: Total | O12: Florida
A13: =Selected_Year&State -> 2010Texas | B13: =SUMPRODUCT(LARGE(--('Raw Data'!$B$4:$B$158=2010)*OFFSET('Raw Data'!$A$4:$A$158,0,MATCH($B$2,'Raw Data'!$A$2:$BL$2,0)-1),B5)) -> 12938 | C13: =SUMPRODUCT(LARGE(--('Raw Data'!$B$4:$B$158=2010)*OFFSET('Raw Data'!$A$4:$A$158,0,MATCH($B$2,'Raw Data'!$A$2:$BL$2,0)-1),C5)) -> 13707 | D13: =SUMPRODUCT(LARGE(--('Raw Data'!$B$4:$B$158=2010)*OFFSET('Raw Data'!$A$4:$A$158,0,MATCH($B$2,'Raw Data'!$A$2:$BL$2,0)-1),D5)) -> 14329 | E13: =SUMPRODUCT(LARGE(--('Raw Data'!$B$4:$B$158=2010)*OFFSET('Raw Data'!$A$4:$A$158,0,MATCH($B$2,'Raw Data'!$A$2:$BL$2,0)-1),E5)) -> 14705 | F13: =SUMPRODUCT(LARGE(--('Raw Data'!$B$4:$B$158=2010)*OFFSET('Raw Data'!$A$4:$A$158,0,MATCH($B$2,'Raw Data'!$A$2:$BL$2,0)-1),F5)) -> 18511 | G13: =SUMPRODUCT(LARGE(--('Raw Data'!$B$4:$B$158=2010)*OFFSET('Raw Data'!$A$4:$A$158,0,MATCH($B$2,'Raw Data'!$A$2:$BL$2,0)-1),G5)) -> 22253 | H13: =SUMPRODUCT(LARGE(--('Raw Data'!$B$4:$B$158=2010)*OFFSET('Raw Data'!$A$4:$A$158,0,MATCH($B$2,'Raw Data'!$A$2:$BL$2,0)-1),H5)) -> 24039 | I13: =SUMPRODUCT(LARGE(--('Raw Data'!$B$4:$B$158=2010)*OFFSET('Raw Data'!$A$4:$A$158,0,MATCH($B$2,'Raw Data'!$A$2:$BL$2,0)-1),I5)) -> 26134 | J13: =SUMPRODUCT(LARGE(--('Raw Data'!$B$4:$B$158=2010)*OFFSET('Raw Data'!$A$4:$A$158,0,MATCH($B$2,'Raw Data'!$A$2:$BL$2,0)-1),J5)) -> 28238 | K13: =SUMPRODUCT(LARGE(--('Raw Data'!$B$4:$B$158=2010)*OFFSET('Raw Data'!$A$4:$A$158,0,MATCH($B$2,'Raw Data'!$A$2:$BL$2,0)-1),K5)) -> 36582 | O13: Georgia
A14: Republican | B14: =IF(VLOOKUP($L$2&B$12,'Raw Data'!$A:$C,3,0) = $A14,B$13/1000,"") ->  | C14: =IF(VLOOKUP($L$2&C$12,'Raw Data'!$A:$C,3,0) = $A14,C$13/1000,"") -> 13.707 | D14: =IF(VLOOKUP($L$2&D$12,'Raw Data'!$A:$C,3,0) = $A14,D$13/1000,"") ->  | E14: =IF(VLOOKUP($L$2&E$12,'Raw Data'!$A:$C,3,0) = $A14,E$13/1000,"") -> 14.705 | F14: =IF(VLOOKUP($L$2&F$12,'Raw Data'!$A:$C,3,0) = $A14,F$13/1000,"") ->  | G14: =IF(VLOOKUP($L$2&G$12,'Raw Data'!$A:$C,3,0) = $A14,G$13/1000,"") ->  | H14: =IF(VLOOKUP($L$2&H$12,'Raw Data'!$A:$C,3,0) = $A14,H$13/1000,"") ->  | I14: =IF(VLOOKUP($L$2&I$12,'Raw Data'!$A:$C,3,0) = $A14,I$13/1000,"") -> 26.134 | J14: =IF(VLOOKUP($L$2&J$12,'Raw Data'!$A:$C,3,0) = $A14,J$13/1000,"") -> 28.238 | K14: =IF(VLOOKUP($L$2&K$12,'Raw Data'!$A:$C,3,0) = $A14,K$13/1000,"") ->  | O14: Hawaii
A15: Democrat | B15: =IF(VLOOKUP($L$2&B$12,'Raw Data'!$A:$C,3,0) = $A15,B$13/1000,"") -> 12.938 | C15: =IF(VLOOKUP($L$2&C$12,'Raw Data'!$A:$C,3,0) = $A15,C$13/1000,"") ->  | D15: =IF(VLOOKUP($L$2&D$12,'Raw Data'!$A:$C,3,0) = $A15,D$13/1000,"") -> 14.329 | E15: =IF(VLOOKUP($L$2&E$12,'Raw Data'!$A:$C,3,0) = $A15,E$13/1000,"") ->  | F15: =IF(VLOOKUP($L$2&F$12,'Raw Data'!$A:$C,3,0) = $A15,F$13/1000,"") -> 18.511 | G15: =IF(VLOOKUP($L$2&G$12,'Raw Data'!$A:$C,3,0) = $A15,G$13/1000,"") -> 22.253 | H15: =IF(VLOOKUP($L$2&H$12,'Raw Data'!$A:$C,3,0) = $A15,H$13/1000,"") -> 24.039 | I15: =IF(VLOOKUP($L$2&I$12,'Raw Data'!$A:$C,3,0) = $A15,I$13/1000,"") ->  | J15: =IF(VLOOKUP($L$2&J$12,'Raw Data'!$A:$C,3,0) = $A15,J$13/1000,"") ->  | K15: =IF(VLOOKUP($L$2&K$12,'Raw Data'!$A:$C,3,0) = $A15,K$13/1000,"") -> 36.582 | O15: Idaho
O16: Illinois
B17: Figure | C17: % | O17: Indiana
A18: Population | B18: =VLOOKUP($A$13,'Raw Data'!$A$2:$BL$158,5,0)/1000000 -> 24.899075 | C18: =B18/$B$18 -> 1 | O18: Iowa
A19: Stayed Put | B19: =VLOOKUP($A$13,'Raw Data'!$A$2:$BL$158,7,0)/1000000 -> 20.500156 | C19: =B19/$B$18 -> 0.8233300233 | O19: Kansas
A20: Left State | B20: =VLOOKUP($A$13,'Raw Data'!$A$2:$BL$158,9,0)/1000000 -> 3.740344 | C20: =B20/$B$18 -> 0.1502201989 | O20: Kentucky
A21: Newborns | B21: =B18-SUM(B19:B20) -> 0.658575 | C21: =B21/$B$18 -> 0.02644977775 | O21: Louisiana
O22: Maine
O23: Maryland
A24: OVERVIEW TEXT | O24: Massachusetts | P24: Picture Links:
A25: Paragraph 1 | B25: =State & "'s top 3 inflow states were " & K6 & ", " & J6 & ", & " & I6 &". During the entire year of " & Selected_Year & ", " & TEXT(L7,"#,K") & " citizens migrated to the state. This gave " & State & " total population of " & TEXT(B18, "0.0") &" million people in " & Selected_Year & ". " -> Texas's top 3 inflow states were California, Louisiana, & Florida. During the entire year of 2010, 487K citizens migrated to the state. This gave Texas total population of 24.9 million people in 2010. | C25: ="" ->  | O25: Michigan
A26: Paragraph 2 | B26: =State & " had " & TEXT(C20, "0.0%") &" of the population leave the state during the year. The top 3 states receiving " & State & " citizens were " & K12 & ", "& J12 &", and "& I12 &"." -> Texas had 15.0% of the population leave the state during the year. The top 3 states receiving Texas citizens were California, Oklahoma, and Louisiana. | C26: ="" ->  | O26: Minnesota | S26: Top Net Migration Gains
O27: Mississippi | R27: =DataPull!C33 -> Texas | S27: =DataPull!D33 -> 74917
O28: Missouri | R28: =DataPull!C34 -> North Carolina | S28: =DataPull!D34 -> 56231
A29: COUNTRY: | B29: United States | O29: Montana | R29: =DataPull!C35 -> Florida | S29: =DataPull!D35 -> 55036
O30: Nebraska | R30: =DataPull!C36 -> Arizona | S30: =DataPull!D36 -> 45957
B31: Top Net Population Gains | G31: Top Net Population Losses | O31: Nevada | R31: =DataPull!C37 -> Colorado | S31: =DataPull!D37 -> 45746
B32: Rank | C32: State | D32: Amt | G32: Rank | H32: State | I32: Amt | O32: New Hampshire
B33: 1 | C33: =INDEX('Raw Data'!$D$3:$D$158,MATCH(DataPull!D33,'Raw Data'!$K$3:$K$158,0)) -> Texas | D33: =LARGE(--('Raw Data'!$B$3:$B$158=DataPull!$L$2)*--('Raw Data'!$K$3:$K$158>0)*'Raw Data'!$K$3:$K$158,B33) -> 74917 | G33: 1 | H33: =INDEX('Raw Data'!$D$3:$D$158,MATCH(DataPull!I33,'Raw Data'!$K$3:$K$158,0)) -> California | I33: =-LARGE(ABS(--('Raw Data'!$B$3:$B$158=DataPull!$L$2)*--('Raw Data'!$K$3:$K$158<0)*'Raw Data'!$K$3:$K$158),G33) -> -129239 | O33: New Jersey
B34: 2 | C34: =INDEX('Raw Data'!$D$3:$D$158,MATCH(DataPull!D34,'Raw Data'!$K$3:$K$158,0)) -> North Carolina | D34: =LARGE(--('Raw Data'!$B$3:$B$158=DataPull!$L$2)*--('Raw Data'!$K$3:$K$158>0)*'Raw Data'!$K$3:$K$158,B34) -> 56231 | G34: 2 | H34: =INDEX('Raw Data'!$D$3:$D$158,MATCH(DataPull!I34,'Raw Data'!$K$3:$K$158,0)) -> New York | I34: =-LARGE(ABS(--('Raw Data'!$B$3:$B$158=DataPull!$L$2)*--('Raw Data'!$K$3:$K$158<0)*'Raw Data'!$K$3:$K$158),G34) -> -93712 | O34: New Mexico | S34: Top Net Migration Losses
B35: 3 | C35: =INDEX('Raw Data'!$D$3:$D$158,MATCH(DataPull!D35,'Raw Data'!$K$3:$K$158,0)) -> Florida | D35: =LARGE(--('Raw Data'!$B$3:$B$158=DataPull!$L$2)*--('Raw Data'!$K$3:$K$158>0)*'Raw Data'!$K$3:$K$158,B35) -> 55036 | G35: 3 | H35: =INDEX('Raw Data'!$D$3:$D$158,MATCH(DataPull!I35,'Raw Data'!$K$3:$K$158,0)) -> Illinois | I35: =-LARGE(ABS(--('Raw Data'!$B$3:$B$158=DataPull!$L$2)*--('Raw Data'!$K$3:$K$158<0)*'Raw Data'!$K$3:$K$158),G35) -> -73620 | O35: New York | R35: =DataPull!H33 -> California | S35: =-DataPull!I33 -> 129239
B36: 4 | C36: =INDEX('Raw Data'!$D$3:$D$158,MATCH(DataPull!D36,'Raw Data'!$K$3:$K$158,0)) -> Arizona | D36: =LARGE(--('Raw Data'!$B$3:$B$158=DataPull!$L$2)*--('Raw Data'!$K$3:$K$158>0)*'Raw Data'!$K$3:$K$158,B36) -> 45957 | G36: 4 | H36: =INDEX('Raw Data'!$D$3:$D$158,MATCH(DataPull!I36,'Raw Data'!$K$3:$K$158,0)) -> New Jersey | I36: =-LARGE(ABS(--('Raw Data'!$B$3:$B$158=DataPull!$L$2)*--('Raw Data'!$K$3:$K$158<0)*'Raw Data'!$K$3:$K$158),G36) -> -66603 | O36: North Carolina | R36: =DataPull!H34 -> New York | S36: =-DataPull!I34 -> 93712
B37: 5 | C37: =INDEX('Raw Data'!$D$3:$D$158,MATCH(DataPull!D37,'Raw Data'!$K$3:$K$158,0)) -> Colorado | D37: =LARGE(--('Raw Data'!$B$3:$B$158=DataPull!$L$2)*--('Raw Data'!$K$3:$K$158>0)*'Raw Data'!$K$3:$K$158,B37) -> 45746 | G37: 5 | H37: =INDEX('Raw Data'!$D$3:$D$158,MATCH(DataPull!I37,'Raw Data'!$K$3:$K$158,0)) -> Michigan | I37: =-LARGE(ABS(--('Raw Data'!$B$3:$B$158=DataPull!$L$2)*--('Raw Data'!$K$3:$K$158<0)*'Raw Data'!$K$3:$K$158),G37) -> -62058 | O37: North Dakota | R37: =DataPull!H35 -> Illinois | S37: =-DataPull!I35 -> 73620
O38: Ohio | R38: =DataPull!H36 -> New Jersey | S38: =-DataPull!I36 -> 66603
O39: Oklahoma | R39: =DataPull!H37 -> Michigan | S39: =-DataPull!I37 -> 62058
A40: U.S. Proportion of Dems & Reps | O40: Oregon
A41: Republican | B41: =SUMPRODUCT(--('Raw Data'!$B$3:$B$158=DataPull!$L$2)*('Raw Data'!$C$3:$C$158=A41)*('Raw Data'!$D$3:$D$158<>'Raw Data'!$D$3)) -> 22 | O41: Pennsylvania
A42: Democrat | B42: =SUMPRODUCT(--('Raw Data'!$B$3:$B$158=DataPull!$L$2)*('Raw Data'!$C$3:$C$158=A42)*('Raw Data'!$D$3:$D$158<>'Raw Data'!$D$3)) -> 29 | O42: Rhode Island
A43: President | B43: Democrat | O43: South Carolina
O44: South Dakota
O45: Tennessee
O46: Texas
O47: Utah
O48: Vermont
O49: Virginia
O50: Washington
O51: West Virginia
O52: Wisconsin
O53: Wyoming

Sheet Raw Data
E1: Population 1 year and over | G1: Same residence 1 year ago | I1: Different residence, same state 1 year ago | K1: State of Residence Last year (Estimate)
A2: ID | B2: Year | C2: Political Influence | D2: Current residence in -- | E2: Estimate | F2: MOE | G2: Estimate | H2: MOE | I2: Estimate | J2: MOE | K2: Net Gain/Loss | L2: Percent Gain/Loss | M2: TOTAL | N2: Alabama | O2: Alaska | P2: Arizona | Q2: Arkansas | R2: California | S2: Colorado | T2: Connecticut | U2: Delaware | V2: District of Columbia | W2: Florida | X2: Georgia | Y2: Hawaii | Z2: Idaho | AA2: Illinois | AB2: Indiana | AC2: Iowa | AD2: Kansas | AE2: Kentucky | AF2: Louisiana | AG2: Maine | AH2: Maryland | AI2: Massachusetts | AJ2: Michigan | AK2: Minnesota | AL2: Mississippi | AM2: Missouri | AN2: Montana | AO2: Nebraska | AP2: Nevada | AQ2: New Hampshire | AR2: New Jersey | AS2: New Mexico | AT2: New York | AU2: North Carolina | AV2: North Dakota | AW2: Ohio | AX2: Oklahoma | AY2: Oregon | AZ2: Pennsylvania | BA2: Rhode Island | BB2: South Carolina | BC2: South Dakota | BD2: Tennessee | BE2: Texas | BF2: Utah | BG2: Vermont | BH2: Virginia | BI2: Washington | BJ2: West Virginia | BK2: Wisconsin | BL2: Wyoming
A3: =B3&D3 -> 2010United States | B3: 2010 | C3: Democrat | D3: United States | E3: 305628607 | F3: 29823 | G3: 258552348 | H3: 236128 | I3: 38582885 | J3: 213239 | M3: 6743229 | N3: 99221 | O3: 94692 | P3: 176768 | Q3: 64264 | R3: 573988 | S3: 140620 | T3: 89360 | U3: 30055 | V3: 56052 | W3: 427853 | X3: 244992 | Y3: 49218 | Z3: 53122 | AA3: 277579 | AB3: 130170 | AC3: 66922 | AD3: 90681 | AE3: 92999 | AF3: 88131 | AG3: 32209 | AH3: 159866 | AI3: 144152 | AJ3: 178207 | AK3: 104765 | AL3: 68363 | AM3: 148055 | AN3: 35870 | AO3: 43531 | AP3: 109409 | AQ3: 38399 | AR3: 193972 | AS3: 50438 | AT3: 363139 | AU3: 207025 | AV3: 24450 | AW3: 188013 | AX3: 90616 | AY3: 100185 | AZ3: 209810 | BA3: 24948 | BB3: 117569 | BC3: 27915 | BD3: 143135 | BE3: 411641 | BF3: 75541 | BG3: 18380 | BH3: 232002 | BI3: 166162 | BJ3: 49349 | BK3: 111240 | BL3: 28186
A4: =B4&D4 -> 2010Alabama | B4: 2010 | C4: Republican | D4: Alabama | E4: 4729509 | F4: 3716 | G4: 3987155 | H4: 21708 | I4: 620465 | J4: 21448 | K4: =M4-INDEX($M$3:$BL$3,1,MATCH(D4,$M$2:$BL$2,0)) -> 9502 | L4: =K4/E4 -> 0.002009088047 | M4: 108723 | N4: 0 | O4: 3013 | P4: 676 | Q4: 1481 | R4: 3827 | S4: 1278 | T4: 454 | U4: 811 | V4: 211 | W4: 15062 | X4: 21644 | Y4: 267 | Z4: 304 | AA4: 2503 | AB4: 3945 | AC4: 669 | AD4: 649 | AE4: 1967 | AF4: 1901 | AG4: 97 | AH4: 716 | AI4: 435 | AJ4: 2334 | AK4: 386 | AL4: 7233 | AM4: 1373 | AN4: 229 | AO4: 169 | AP4: 265 | AQ4: 0 | AR4: 356 | AS4: 650 | AT4: 3686 | AU4: 2371 | AV4: 169 | AW4: 2222 | AX4: 880 | AY4: 485 | AZ4: 1477 | BA4: 0 | BB4: 2368 | BC4: 31 | BD4: 7409 | BE4: 6500 | BF4: 1336 | BG4: 0 | BH4: 2490 | BI4: 1171 | BJ4: 41 | BK4: 1155 | BL4: 27
A5: 2010Alaska | B5: 2010 | C5: Republican | D5: Alaska | E5: 702974 | F5: 1600 | G5: 565031 | H5: 7596 | I5: 95878 | J5: 7984 | K5: -58366 | L5: =K5/E5 -> -0.08302725279 | M5: 36326 | N5: 477 | O5: 0 | P5: 1354 | Q5: 47 | R5: 3906 | S5: 1930 | T5: 0 | U5: 0 | V5: 14 | W5: 2315 | X5: 1251 | Y5: 1705 | Z5: 895 | AA5: 388 | AB5: 9 | AC5: 262 | AD5: 106 | AE5: 1440 | AF5: 100 | AG5: 574 | AH5: 704 | AI5: 107 | AJ5: 923 | AK5: 530 | AL5: 263 | AM5: 0 | AN5: 616 | AO5: 215 | AP5: 240 | AQ5: 316 | AR5: 413 | AS5: 421 | AT5: 255 | AU5: 698 | AV5: 69 | AW5: 156 | AX5: 1455 | AY5: 1793 | AZ5: 126 | BA5: 0 | BB5: 121 | BC5: 531 | BD5: 477 | BE5: 4123 | BF5: 1274 | BG5: 353 | BH5: 714 | BI5: 2421 | BJ5: 0 | BK5: 158 | BL5: 81
A6: 2010Arizona | B6: 2010 | C6: Republican | D6: Arizona | E6: 6332786 | F6: 4439 | G6: 5069002 | H6: 35057 | I6: 1001991 | J6: 32027 | K6: 45957 | L6: 0.007256995578 | M6: 222725 | N6: 416 | O6: 3109 | P6: 0 | Q6: 689 | R6: 47164 | S6: 7687 | T6: 479 | U6: 738 | V6: 0 | W6: 7712 | X6: 4261 | Y6: 1966 | Z6: 2147 | AA6: 12250 | AB6: 2690 | AC6: 3008 | AD6: 1935 | AE6: 1705 | AF6: 2014 | AG6: 241 | AH6: 1284 | AI6: 1449 | AJ6: 6354 | AK6: 5421 | AL6: 272 | AM6: 4567 | AN6: 1343 | AO6: 1750 | AP6: 10342 | AQ6: 64 | AR6: 1782 | AS6: 4419 | AT6: 6618 | AU6: 4463 | AV6: 826 | AW6: 5225 | AX6: 2910 | AY6: 5430 | AZ6: 5535 | BA6: 403 | BB6: 2310 | BC6: 1351 | BD6: 3061 | BE6: 14705 | BF6: 7164 | BG6: 664 | BH6: 3413 | BI6: 12645 | BJ6: 595 | BK6: 5556 | BL6: 593
A7: 2010Arkansas | B7: 2010 | C7: Republican | D7: Arkansas | E7: 2888304 | F7: 2453 | G7: 2387806 | H7: 18627 | I7: 412997 | J7: 17485 | K7: 14863 | L7: 0.005145926468 | M7: 79127 | N7: 1405 | O7: 934 | P7: 777 | Q7: 0 | R7: 4457 | S7: 2535 | T7: 451 | U7: 0 | V7: 154 | W7: 3578 | X7: 3921 | Y7: 129 | Z7: 618 | AA7: 3221 | AB7: 722 | AC7: 85 | AD7: 3611 | AE7: 2540 | AF7: 4012 | AG7: 0 | AH7: 306 | AI7: 190 | AJ7: 1506 | AK7: 222 | AL7: 2764 | AM7: 7320 | AN7: 85 | AO7: 394 | AP7: 67 | AQ7: 0 | AR7: 77 | AS7: 0 | AT7: 289 | AU7: 1561 | AV7: 0 | AW7: 1137 | AX7: 8607 | AY7: 239 | AZ7: 731 | BA7: 0 | BB7: 1496 | BC7: 243 | BD7: 2653 | BE7: 13707 | BF7: 361 | BG7: 0 | BH7: 494 | BI7: 264 | BJ7: 0 | BK7: 821 | BL7: 443
A8: 2010California | B8: 2010 | C8: Democrat | D8: California | E8: 36907897 | F8: 10889 | G8: 30790221 | H8: 71574 | I8: 5413287 | J8: 66460 | K8: -129239 | L8: -0.00350166253 | M8: 444749 | N8: 3364 | O8: 9579 | P8: 33854 | Q8: 4172 | R8: 0 | S8: 15662 | T8: 4631 | U8: 643 | V8: 3683 | W8: 20362 | X8: 8820 | Y8: 9528 | Z8: 5719 | AA8: 16482 | AB8: 6550 | AC8: 3163 | AD8: 3857 | AE8: 3394 | AF8: 2989 | AG8: 1796 | AH8: 10626 | AI8: 11969 | AJ8: 10435 | AK8: 5095 | AL8: 2757 | AM8: 6921 | AN8: 3009 | AO8: 3062 | AP8: 27724 | AQ8: 1614 | AR8: 10108 | AS8: 4632 | AT8: 20981 | AU8: 9593 | AV8: 392 | AW8: 8170 | AX8: 5708 | AY8: 20913 | AZ8: 9948 | BA8: 526 | BB8: 5016 | BC8: 1604 | BD8: 4349 | BE8: 36582 | BF8: 10653 | BG8: 525 | BH8: 14232 | BI8: 30544 | BJ8: 1446 | BK8: 6031 | BL8: 1336
A9: 2010Colorado | B9: 2010 | C9: Democrat | D9: Colorado | E9: 4988190 | F9: 3936 | G9: 4042039 | H9: 25546 | I9: 725413 | J9: 23003 | K9: 45746 | L9: 0.009170861575 | M9: 186366 | N9: 954 | O9: 2225 | P9: 12287 | Q9: 1034 | R9: 26089 | S9: 0 | T9: 459 | U9: 486 | V9: 479 | W9: 8849 | X9: 6445 | Y9: 2355 | Z9: 839 | AA9: 6950 | AB9: 3296 | AC9: 2140 | AD9: 4308 | AE9: 1961 | AF9: 968 | AG9: 532 | AH9: 1532 | AI9: 2242 | AJ9: 4587 | AK9: 2878 | AL9: 1277 | AM9: 1978 | AN9: 2042 | AO9: 4065 | AP9: 4131 | AQ9: 791 | AR9: 1259 | AS9: 3921 | AT9: 4594 | AU9: 2940 | AV9: 802 | AW9: 2838 | AX9: 3464 | AY9: 4330 | AZ9: 3928 | BA9: 192 | BB9: 1231 | BC9: 1847 | BD9: 1628 | BE9: 22253 | BF9: 4748 | BG9: 350 | BH9: 2739 | BI9: 7583 | BJ9: 623 | BK9: 2499 | BL9: 4418
A10: 2010Connecticut | B10: 2010 | C10: Democrat | D10: Connecticut | E10: 3541146 | F10: 2779 | G10: 3100742 | H10: 16358 | I10: 342904 | J10: 15404 | K10: -12027 | L10: -0.003396358128 | M10: 77333 | N10: 896 | O10: 0 | P10: 664 | Q10: 334 | R10: 4479 | S10: 547 | T10: 0 | U10: 149 | V10: 331 | W10: 9207 | X10: 748 | Y10: 182 | Z10: 147 | AA10: 3391 | AB10: 1074 | AC10: 108 | AD10: 0 | AE10: 400 | AF10: 0 | AG10: 528 | AH10: 1531 | AI10: 8510 | AJ10: 770 | AK10: 934 | AL10: 67 | AM10: 42 | AN10: 0 | AO10: 0 | AP10: 507 | AQ10: 1049 | AR10: 3475 | AS10: 112 | AT10: 20727 | AU10: 1345 | AV10: 0 | AW10: 1296 | AX10: 145 | AY10: 640 | AZ10: 1955 | BA10: 1728 | BB10: 1140 | BC10: 0 | BD10: 430 | BE10: 1887 | BF10: 0 | BG10: 458 | BH10: 1735 | BI10: 2084 | BJ10: 442 | BK10: 1092 | BL10: 47
A11: 2010Delaware | B11: 2010 | C11: Democrat | D11: Delaware | E11: 889812 | F11: 1573 | G11: 764640 | H11: 9145 | I11: 90001 | J11: 8498 | K11: 704 | L11: 0.0007911783613 | M11: 30759 | N11: 128 | O11: 68 | P11: 60 | Q11: 0 | R11: 353 | S11: 178 | T11: 714 | U11: 0 | V11: 432 | W11: 2362 | X11: 585 | Y11: 0 | Z11: 0 | AA11: 612 | AB11: 0 | AC11: 0 | AD11: 28 | AE11: 163 | AF11: 0 | AG11: 294 | AH11: 4969 | AI11: 689 | AJ11: 61 | AK11: 55 | AL11: 0 | AM11: 539 | AN11: 73 | AO11: 0 | AP11: 106 | AQ11: 139 | AR11: 3678 | AS11: 59 | AT11: 4251 | AU11: 424 | AV11: 0 | AW11: 325 | AX11: 0 | AY11: 0 | AZ11: 7318 | BA11: 149 | BB11: 195 | BC11: 0 | BD11: 146 | BE11: 178 | BF11: 0 | BG11: 0 | BH11: 1051 | BI11: 377 | BJ11: 0 | BK11: 0 | BL11: 0
A12: 2010District of Columbia | B12: 2010 | C12: Democrat | D12: District of Columbia | E12: 596747 | F12: 1124 | G12: 474676 | H12: 8281 | I12: 63766 | J12: 6163 | K12: -4808 | L12: -0.008057015787 | M12: 51244 | N12: 360 | O12: 591 | P12: 662 | Q12: 155 | R12: 4205 | S12: 656 | T12: 926 | U12: 0 | V12: 0 | W12: 1100 | X12: 1597 | Y12: 0 | Z12: 0 | AA12: 615 | AB12: 711 | AC12: 392 | AD12: 83 | AE12: 94 | AF12: 0 | AG12: 76 | AH12: 13503 | AI12: 1376 | AJ12: 126 | AK12: 87 | AL12: 0 | AM12: 272 | AN12: 0 | AO12: 62 | AP12: 0 | AQ12: 137 | AR12: 1924 | AS12: 61 | AT12: 3852 | AU12: 1897 | AV12: 98 | AW12: 598 | AX12: 0 | AY12: 601 | AZ12: 2378 | BA12: 249 | BB12: 380 | BC12: 0 | BD12: 591 | BE12: 1180 | BF12: 0 | BG12: 199 | BH12: 7915 | BI12: 284 | BJ12: 860 | BK12: 391 | BL12: 0
A13: 2010Florida | B13: 2010 | C13: Democrat | D13: Florida | E13: 18647600 | F13: 7733 | G13: 15554008 | H13: 45602 | I13: 2459530 | J13: 38387 | K13: 55036 | L13: 0.002951371758 | M13: 482889 | N13: 15830 | O13: 5887 | P13: 3907 | Q13: 3611 | R13: 22130 | S13: 6428 | T13: 11183 | U13: 3099 | V13: 1110 | W13: 0 | X13: 35615 | Y13: 2021 | Z13: 884 | AA13: 17432 | AB13: 9030 | AC13: 2921 | AD13: 4136 | AE13: 6321 | AF13: 7232 | AG13: 5497 | AH13: 13241 | AI13: 13900 | AJ13: 21359 | AK13: 5439 | AL13: 7929 | AM13: 7984 | AN13: 338 | AO13: 1544 | AP13: 7050 | AQ13: 3645 | AR13: 22344 | AS13: 900 | AT13: 55011 | AU13: 19108 | AV13: 794 | AW13: 21047 | AX13: 3466 | AY13: 1655 | AZ13: 19935 | BA13: 1982 | BB13: 10759 | BC13: 430 | BD13: 12882 | BE13: 24039 | BF13: 2833 | BG13: 1442 | BH13: 20080 | BI13: 3573 | BJ13: 5634 | BK13: 8081 | BL13: 191
A14: 2010Georgia | B14: 2010 | C14: Republican | D14: Georgia | E14: 9587237 | F14: 5924 | G14: 8015409 | H14: 37393 | I14: 1278548 | J14: 36794 | K14: 4467 | L14: 0.0004659319468 | M14: 249459 | N14: 13840 | O14: 3645 | P14: 2554 | Q14: 599 | R14: 8909 | S14: 3224 | T14: 2619 | U14: 837 | V14: 1708 | W14: 49901 | X14: 0 | Y14: 1040 | Z14: 414 | AA14: 9736 | AB14: 2649 | AC14: 1096 | AD14: 1355 | AE14: 6525 | AF14: 3645 | AG14: 0 | AH14: 5382 | AI14: 3910 | AJ14: 6857 | AK14: 1169 | AL14: 2380 | AM14: 3072 | AN14: 52 | AO14: 148 | AP14: 1155 | AQ14: 162 | AR14: 4151 | AS14: 826 | AT14: 12472 | AU14: 15361 | AV14: 0 | AW14: 9323 | AX14: 2070 | AY14: 843 | AZ14: 6294 | BA14: 43 | BB14: 15562 | BC14: 557 | BD14: 14445 | BE14: 11424 | BF14: 380 | BG14: 361 | BH14: 8393 | BI14: 4495 | BJ14: 358 | BK14: 3416 | BL14: 102
A15: 2010Hawaii | B15: 2010 | C15: Democrat | D15: Hawaii | E15: 1346274 | F15: 1690 | G15: 1140572 | H15: 10422 | I15: 134315 | J15: 9295 | K15: 4363 | L15: 0.00324079645 | M15: 53581 | N15: 749 | O15: 743 | P15: 1398 | Q15: 0 | R15: 12677 | S15: 1073 | T15: 307 | U15: 0 | V15: 0 | W15: 4599 | X15: 2013 | Y15: 0 | Z15: 42 | AA15: 715 | AB15: 192 | AC15: 68 | AD15: 387 | AE15: 95 | AF15: 88 | AG15: 89 | AH15: 990 | AI15: 1283 | AJ15: 627 | AK15: 476 | AL15: 234 | AM15: 170 | AN15: 150 | AO15: 0 | AP15: 1925 | AQ15: 496 | AR15: 443 | AS15: 11 | AT15: 1339 | AU15: 1510 | AV15: 69 | AW15: 625 | AX15: 57 | AY15: 1834 | AZ15: 553 | BA15: 644 | BB15: 322 | BC15: 267 | BD15: 142 | BE15: 6694 | BF15: 467 | BG15: 0 | BH15: 2644 | BI15: 2705 | BJ15: 483 | BK15: 1168 | BL15: 18
A16: 2010Idaho | B16: 2010 | C16: Republican | D16: Idaho | E16: 1550967 | F16: 1954 | G16: 1279856 | H16: 12606 | I16: 209272 | J16: 10887 | K16: 2516 | L16: 0.001622213754 | M16: 55638 | N16: 376 | O16: 3264 | P16: 3086 | Q16: 45 | R16: 8932 | S16: 1372 | T16: 0 | U16: 0 | V16: 144 | W16: 612 | X16: 313 | Y16: 123 | Z16: 0 | AA16: 169 | AB16: 132 | AC16: 773 | AD16: 422 | AE16: 315 | AF16: 59 | AG16: 202 | AH16: 44 | AI16: 115 | AJ16: 427 | AK16: 465 | AL16: 37 | AM16: 425 | AN16: 1509 | AO16: 0 | AP16: 2110 | AQ16: 109 | AR16: 97 | AS16: 694 | AT16: 155 | AU16: 134 | AV16: 96 | AW16: 325 | AX16: 711 | AY16: 3202 | AZ16: 172 | BA16: 0 | BB16: 0 | BC16: 296 | BD16: 1153 | BE16: 1746 | BF16: 8014 | BG16: 0 | BH16: 611 | BI16: 10876 | BJ16: 133 | BK16: 233 | BL16: 1410
A17: 2010Illinois | B17: 2010 | C17: Democrat | D17: Illinois | E17: 12680126 | F17: 5467 | G17: 11009852 | H17: 32636 | I17: 1404525 | J17: 28126 | K17: -73620 | L17: -0.005805935998 | M17: 203959 | N17: 1397 | O17: 1764 | P17: 5921 | Q17: 1194 | R17: 16205 | S17: 3850 | T17: 2264 | U17: 56 | V17: 1047 | W17: 8051 | X17: 6781 | Y17: 1224 | Z17: 313 | AA17: 0 | AB17: 21918 | AC17: 9141 | AD17: 1970 | AE17: 2921 | AF17: 1419 | AG17: 55 | AH17: 1985 | AI17: 2811 | AJ17: 11865 | AK17: 4300 | AL17: 1093 | AM17: 16703 | AN17: 928 | AO17: 546 | AP17: 2541 | AQ17: 206 | AR17: 2331 | AS17: 996 | AT17: 8479 | AU17: 5504 | AV17: 1112 | AW17: 5103 | AX17: 1459 | AY17: 1224 | AZ17: 5190 | BA17: 838 | BB17: 1565 | BC17: 292 | BD17: 3999 | BE17: 12245 | BF17: 658 | BG17: 260 | BH17: 3831 | BI17: 1642 | BJ17: 812 | BK17: 15364 | BL17: 586
A18: 2010Indiana | B18: 2010 | C18: Democrat | D18: Indiana | E18: 6414862 | F18: 4257 | G18: 5431015 | H18: 24897 | I18: 833086 | J18: 22796 | K18: -2817 | L18: -0.0004391364927 | M18: 127353 | N18: 1502 | O18: 177 | P18: 2210 | Q18: 1548 | R18: 8959 | S18: 1362 | T18: 544 | U18: 0 | V18: 181 | W18: 5496 | X18: 1623 | Y18: 267 | Z18: 772 | AA18: 27950 | AB18: 0 | AC18: 1885 | AD18: 1582 | AE18: 10643 | AF18: 749 | AG18: 30 | AH18: 1641 | AI18: 103 | AJ18: 9361 | AK18: 916 | AL18: 270 | AM18: 3893 | AN18: 164 | AO18: 705 | AP18: 227 | AQ18: 114 | AR18: 1876 | AS18: 188 | AT18: 2564 | AU18: 2828 | AV18: 0 | AW18: 13272 | AX18: 681 | AY18: 423 | AZ18: 2668 | BA18: 174 | BB18: 584 | BC18: 216 | BD18: 3093 | BE18: 6335 | BF18: 444 | BG18: 45 | BH18: 3673 | BI18: 571 | BJ18: 669 | BK18: 1762 | BL18: 413
A19: 2010Iowa | B19: 2010 | C19: Democrat | D19: Iowa | E19: 3013053 | F19: 2381 | G19: 2553210 | H19: 15158 | I19: 375650 | J19: 12448 | K19: 5635 | L19: 0.00187019611 | M19: 72557 | N19: 330 | O19: 519 | P19: 1483 | Q19: 247 | R19: 2847 | S19: 2554 | T19: 114 | U19: 0 | V19: 53 | W19: 1364 | X19: 973 | Y19: 866 | Z19: 315 | AA19: 17016 | AB19: 1710 | AC19: 0 | AD19: 1520 | AE19: 334 | AF19: 315 | AG19: 0 | AH19: 134 | AI19: 189 | AJ19: 1439 | AK19: 7564 | AL19: 117 | AM19: 6031 | AN19: 836 | AO19: 4783 | AP19: 623 | AQ19: 381 | AR19: 472 | AS19: 492 | AT19: 273 | AU19: 1123 | AV19: 601 | AW19: 632 | AX19: 679 | AY19: 1071 | AZ19: 378 | BA19: 0 | BB19: 591 | BC19: 1992 | BD19: 1617 | BE19: 4131 | BF19: 146 | BG19: 45 | BH19: 303 | BI19: 538 | BJ19: 0 | BK19: 2705 | BL19: 111
A20: 2010Kansas | B20: 2010 | C20: Republican | D20: Kansas | E20: 2820894 | F20: 2731 | G20: 2341401 | H20: 17752 | I20: 372161 | J20: 15608 | K20: 4378 | L20: 0.001551990256 | M20: 95059 | N20: 44 | O20: 1050 | P20: 2238 | Q20: 1596 | R20: 6125 | S20: 6022 | T20: 85 | U20: 238 | V20: 0 | W20: 2863 | X20: 1916 | Y20: 128 | Z20: 398 | AA20: 2943 | AB20: 1544 | AC20: 1875 | AD20: 0 | AE20: 1048 | AF20: 890 | AG20: 0 | AH20: 1369 | AI20: 100 | AJ20: 806 | AK20: 1562 | AL20: 167 | AM20: 23384 | AN20: 289 | AO20: 2678 | AP20: 1318 | AQ20: 76 | AR20: 1743 | AS20: 873 | AT20: 2390 | AU20: 1083 | AV20: 225 | AW20: 1509 | AX20: 7568 | AY20: 514 | AZ20: 563 | BA20: 39 | BB20: 137 | BC20: 352 | BD20: 1152 | BE20: 9217 | BF20: 238 | BG20: 75 | BH20: 1648 | BI20: 1175 | BJ20: 0 | BK20: 1233 | BL20: 573
A21: 2010Kentucky | B21: 2010 | C21: Republican | D21: Kentucky | E21: 4296639 | F21: 3389 | G21: 3638259 | H21: 20337 | I21: 519887 | J21: 18955 | K21: 25444 | L21: 0.005921837976 | M21: 118443 | N21: 2161 | O21: 3017 | P21: 2598 | Q21: 558 | R21: 3779 | S21: 329 | T21: 698 | U21: 38 | V21: 147 | W21: 10119 | X21: 6397 | Y21: 520 | Z21: 71 | AA21: 4659 | AB21: 11906 | AC21: 656 | AD21: 1109 | AE21: 0 | AF21: 437 | AG21: 0 | AH21: 1395 | AI21: 1036 | AJ21: 4672 | AK21: 930 | AL21: 1442 | AM21: 3153 | AN21: 0 | AO21: 858 | AP21: 76 | AQ21: 0 | AR21: 1147 | AS21: 122 | AT21: 2057 | AU21: 3758 | AV21: 0 | AW21: 15598 | AX21: 1153 | AY21: 181 | AZ21: 2618 | BA21: 289 | BB21: 1286 | BC21: 163 | BD21: 11153 | BE21: 5758 | BF21: 905 | BG21: 525 | BH21: 3671 | BI21: 716 | BJ21: 2297 | BK21: 1993 | BL21: 292
A22: 2010Louisiana | B22: 2010 | C22: Republican | D22: Louisiana | E22: 4483529 | F22: 3720 | G22: 3826390 | H22: 25103 | I22: 547291 | J22: 22645 | K22: 9758 | L22: =K22/E22 -> 0.002176410591 | M22: 97889 | N22: 5740 | O22: 1504 | P22: 1960 | Q22: 2382 | R22: 5751 | S22: 1215 | T22: 89 | U22: 0 | V22: 264 | W22: 9394 | X22: 5766 | Y22: 342 | Z22: 202 | AA22: 2131 | AB22: 948 | AC22: 625 | AD22: 706 | AE22: 1656 | AF22: 0 | AG22: 162 | AH22: 963 | AI22: 995 | AJ22: 1301 | AK22: 569 | AL22: 7032 | AM22: 2852 | AN22: 40 | AO22: 119 | AP22: 1552 | AQ22: 462 | AR22: 171 | AS22: 294 | AT22: 2161 | AU22: 1443 | AV22: 438 | AW22: 1100 | AX22: 1074 | AY22: 281 | AZ22: 1350 | BA22: 0 | BB22: 1130 | BC22: 0 | BD22: 1853 | BE22: 26134 | BF22: 473 | BG22: 0 | BH22: 1278 | BI22: 1509 | BJ22: 210 | BK22: 237 | BL22: 31
A23: 2010Maine | B23: 2010 | C23: Democrat | D23: Maine | E23: 1313902 | F23: 1878 | G23: 1136780 | H23: 8034 | I23: 146735 | J23: 7677 | K23: -4451 | L23: -0.003387619472 | M23: 27758 | N23: 402 | O23: 424 | P23: 254 | Q23: 67 | R23: 1066 | S23: 478 | T23: 1361 | U23: 174 | V23: 55 | W23: 3025 | X23: 844 | Y23: 62 | Z23: 0 | AA23: 311 | AB23: 259 | AC23: 337 | AD23: 56 | AE23: 484 | AF23: 115 | AG23: 0 | AH23: 243 | AI23: 3521 | AJ23: 122 | AK23: 91 | AL23: 0 | AM23: 201 | AN23: 275 | AO23: 204 | AP23: 345 | AQ23: 4058 | AR23: 902 | AS23: 234 | AT23: 2339 | AU23: 1001 | AV23: 55 | AW23: 315 | AX23: 124 | AY23: 0 | AZ23: 375 | BA23: 379 | BB23: 148 | BC23: 0 | BD23: 249 | BE23: 458 | BF23: 390 | BG23: 420 | BH23: 654 | BI23: 381 | BJ23: 0 | BK23: 0 | BL23: 500
A24: 2010Maryland | B24: 2010 | C24: Democrat | D24: Maryland | E24: 5716785 | F24: 3648 | G24: 4917637 | H24: 22981 | I24: 588879 | J24: 20180 | K24: 4618 | L24: 0.0008077966899 | M24: 164484 | N24: 1641 | O24: 2672 | P24: 1124 | Q24: 273 | R24: 8206 | S24: 2501 | T24: 1603 | U24: 8340 | V24: 23202 | W24: 6564 | X24: 3454 | Y24: 422 | Z24: 357 | AA24: 3300 | AB24: 431 | AC24: 160 | AD24: 781 | AE24: 396 | AF24: 1376 | AG24: 53 | AH24: 0 | AI24: 1983 | AJ24: 3572 | AK24: 820 | AL24: 403 | AM24: 1147 | AN24: 86 | AO24: 54 | AP24: 979 | AQ24: 1369 | AR24: 9058 | AS24: 238 | AT24: 10736 | AU24: 5787 | AV24: 0 | AW24: 3277 | AX24: 607 | AY24: 723 | AZ24: 13467 | BA24: 782 | BB24: 1710 | BC24: 49 | BD24: 2669 | BE24: 5883 | BF24: 655 | BG24: 350 | BH24: 24765 | BI24: 1542 | BJ24: 4363 | BK24: 324 | BL24: 230
A25: 2010Massachusetts | B25: 2010 | C25: Democrat | D25: Massachusetts | E25: 6489250 | F25: 3528 | G25: 5583650 | H25: 23686 | I25: 706624 | J25: 22760 | K25: -3990 | L25: -0.0006148630427 | M25: 140162 | N25: 583 | O25: 1891 | P25: 1572 | Q25: 206 | R25: 14971 | S25: 1051 | T25: 13270 | U25: 131 | V25: 1539 | W25: 11118 | X25: 1409 | Y25: 682 | Z25: 79 | AA25: 2842 | AB25: 1891 | AC25: 307 | AD25: 0 | AE25: 340 | AF25: 0 | AG25: 4666 | AH25: 3660 | AI25: 0 | AJ25: 1624 | AK25: 2185 | AL25: 453 | AM25: 1957 | AN25: 388 | AO25: 46 | AP25: 792 | AQ25: 9911 | AR25: 4709 | AS25: 161 | AT25: 20002 | AU25: 2798 | AV25: 0 | AW25: 2163 | AX25: 158 | AY25: 228 | AZ25: 5316 | BA25: 6965 | BB25: 1659 | BC25: 0 | BD25: 918 | BE25: 7073 | BF25: 207 | BG25: 1526 | BH25: 4542 | BI25: 1627 | BJ25: 0 | BK25: 546 | BL25: 0
A26: 2010Michigan | B26: 2010 | C26: Democrat | D26: Michigan | E26: 9762127 | F26: 4595 | G26: 8310098 | H26: 29394 | I26: 1291901 | J26: 28130 | K26: -62058 | L26: -0.006357016253 | M26: 116149 | N26: 2403 | O26: 1040 | P26: 3197 | Q26: 636 | R26: 6726 | S26: 2031 | T26: 277 | U26: 167 | V26: 471 | W26: 11646 | X26: 3913 | Y26: 313 | Z26: 66 | AA26: 10651 | AB26: 7816 | AC26: 758 | AD26: 640 | AE26: 2353 | AF26: 1342 | AG26: 645 | AH26: 620 | AI26: 1206 | AJ26: 0 | AK26: 1275 | AL26: 656 | AM26: 2921 | AN26: 312 | AO26: 213 | AP26: 1874 | AQ26: 437 | AR26: 1676 | AS26: 669 | AT26: 3135 | AU26: 2444 | AV26: 53 | AW26: 9783 | AX26: 2276 | AY26: 537 | AZ26: 3134 | BA26: 653 | BB26: 1446 | BC26: 706 | BD26: 4453 | BE26: 7184 | BF26: 545 | BG26: 45 | BH26: 2073 | BI26: 1427 | BJ26: 446 | BK26: 6291 | BL26: 568
A27: 2010Minnesota | B27: 2010 | C27: Democrat | D27: Minnesota | E27: 5244256 | F27: 3049 | G27: 4480630 | H27: 17843 | I27: 647946 | J27: 16565 | K27: -14893 | L27: -0.002839868992 | M27: 89872 | N27: 266 | O27: 1169 | P27: 4165 | Q27: 279 | R27: 6233 | S27: 2521 | T27: 211 | U27: 176 | V27: 306 | W27: 2575 | X27: 1776 | Y27: 227 | Z27: 231 | AA27: 6641 | AB27: 1120 | AC27: 4948 | AD27: 1067 | AE27: 402 | AF27: 519 | AG27: 172 | AH27: 1259 | AI27: 1092 | AJ27: 2631 | AK27: 0 | AL27: 196 | AM27: 1549 | AN27: 1020 | AO27: 734 | AP27: 540 | AQ27: 183 | AR27: 513 | AS27: 151 | AT27: 1309 | AU27: 1673 | AV27: 7316 | AW27: 1035 | AX27: 284 | AY27: 738 | AZ27: 730 | BA27: 123 | BB27: 1597 | BC27: 3237 | BD27: 1155 | BE27: 2619 | BF27: 1013 | BG27: 0 | BH27: 2371 | BI27: 1328 | BJ27: 200 | BK27: 17929 | BL27: 343
A28: 2010Mississippi | B28: 2010 | C28: Republican | D28: Mississippi | E28: 2931228 | F28: 3253 | G28: 2510729 | H28: 16977 | I28: 340266 | J28: 16300 | K28: 3958 | L28: 0.00135028732 | M28: 72321 | N28: 8306 | O28: 1192 | P28: 187 | Q28: 4941 | R28: 3000 | S28: 1167 | T28: 71 | U28: 0 | V28: 0 | W28: 4814 | X28: 4014 | Y28: 276 | Z28: 121 | AA28: 3030 | AB28: 1403 | AC28: 114 | AD28: 330 | AE28: 407 | AF28: 7390 | AG28: 0 | AH28: 649 | AI28: 107 | AJ28: 2495 | AK28: 863 | AL28: 0 | AM28: 959 | AN28: 314 | AO28: 0 | AP28: 408 | AQ28: 0 | AR28: 403 | AS28: 633 | AT28: 1026 | AU28: 2227 | AV28: 0 | AW28: 1312 | AX28: 663 | AY28: 0 | AZ28: 750 | BA28: 145 | BB28: 1860 | BC28: 56 | BD28: 8158 | BE28: 5755 | BF28: 232 | BG28: 0 | BH28: 572 | BI28: 508 | BJ28: 94 | BK28: 879 | BL28: 490
A29: 2010Missouri | B29: 2010 | C29: Republican | D29: Missouri | E29: 5920858 | F29: 4730 | G29: 4968921 | H29: 23164 | I29: 786726 | J29: 21904 | K29: -2829 | L29: -0.0004778023726 | M29: 145226 | N29: 819 | O29: 1051 | P29: 2988 | Q29: 4381 | R29: 9840 | S29: 1903 | T29: 243 | U29: 314 | V29: 478 | W29: 8317 | X29: 2492 | Y29: 380 | Z29: 830 | AA29: 21277 | AB29: 3351 | AC29: 4708 | AD29: 23427 | AE29: 2552 | AF29: 2238 | AG29: 171 | AH29: 1359 | AI29: 1395 | AJ29: 2610 | AK29: 1701 | AL29: 1183 | AM29: 0 | AN29: 220 | AO29: 2636 | AP29: 1060 | AQ29: 108 | AR29: 1320 | AS29: 150 | AT29: 2630 | AU29: 1825 | AV29: 848 | AW29: 2163 | AX29: 4647 | AY29: 314 | AZ29: 1639 | BA29: 0 | BB29: 954 | BC29: 512 | BD29: 3311 | BE29: 12884 | BF29: 1319 | BG29: 498 | BH29: 3206 | BI29: 1107 | BJ29: 177 | BK29: 1331 | BL29: 359
A30: 2010Montana | B30: 2010 | C30: Republican | D30: Montana | E30: 978507 | F30: 1744 | G30: 821709 | H30: 7063 | I30: 117752 | J30: 6986 | K30: -240 | L30: -0.000245271623 | M30: 35630 | N30: 212 | O30: 650 | P30: 1909 | Q30: 672 | R30: 5756 | S30: 2185 | T30: 128 | U30: 71 | V30: 0 | W30: 1373 | X30: 46 | Y30: 0 | Z30: 1458 | AA30: 1094 | AB30: 251 | AC30: 169 | AD30: 60 | AE30: 321 | AF30: 85 | AG30: 76 | AH30: 51 | AI30: 59 | AJ30: 648 | AK30: 1323 | AL30: 242 | AM30: 564 | AN30: 0 | AO30: 340 | AP30: 548 | AQ30: 0 | AR30: 0 | AS30: 660 | AT30: 246 | AU30: 1072 | AV30: 1677 | AW30: 89 | AX30: 182 | AY30: 1620 | AZ30: 419 | BA30: 0 | BB30: 110 | BC30: 295 | BD30: 111 | BE30: 2101 | BF30: 964 | BG30: 0 | BH30: 497 | BI30: 3250 | BJ30: 0 | BK30: 357 | BL30: 1689
A31: 2010Nebraska | B31: 2010 | C31: Republican | D31: Nebraska | E31: 1802697 | F31: 2153 | G31: 1497138 | H31: 11336 | I31: 247005 | J31: 9960 | K31: 7759 | L31: 0.004304106569 | M31: 51290 | N31: 232 | O31: 35 | P31: 2322 | Q31: 674 | R31: 4430 | S31: 4182 | T31: 361 | U31: 177 | V31: 0 | W31: 1775 | X31: 1202 | Y31: 257 | Z31: 127 | AA31: 1820 | AB31: 639 | AC31: 5536 | AD31: 2484 | AE31: 153 | AF31: 89 | AG31: 0 | AH31: 77 | AI31: 100 | AJ31: 726 | AK31: 2254 | AL31: 823 | AM31: 2723 | AN31: 112 | AO31: 0 | AP31: 232 | AQ31: 0 | AR31: 143 | AS31: 831 | AT31: 111 | AU31: 442 | AV31: 777 | AW31: 1232 | AX31: 702 | AY31: 506 | AZ31: 345 | BA31: 0 | BB31: 65 | BC31: 2936 | BD31: 77 | BE31: 4445 | BF31: 537 | BG31: 0 | BH31: 772 | BI31: 1230 | BJ31: 73 | BK31: 1046 | BL31: 1478
A32: 2010Nevada | B32: 2010 | C32: Democrat | D32: Nevada | E32: 2667364 | F32: 3181 | G32: 2030410 | H32: 22983 | I32: 517261 | J32: 21311 | K32: -6732 | L32: -0.002523840016 | M32: 102677 | N32: 150 | O32: 511 | P32: 7818 | Q32: 530 | R32: 35472 | S32: 2935 | T32: 648 | U32: 0 | V32: 0 | W32: 3579 | X32: 1187 | Y32: 4363 | Z32: 1686 | AA32: 1711 | AB32: 739 | AC32: 543 | AD32: 453 | AE32: 569 | AF32: 733 | AG32: 0 | AH32: 485 | AI32: 1275 | AJ32: 2202 | AK32: 805 | AL32: 946 | AM32: 1747 | AN32: 770 | AO32: 1129 | AP32: 0 | AQ32: 59 | AR32: 1528 | AS32: 1220 | AT32: 1204 | AU32: 957 | AV32: 37 | AW32: 1554 | AX32: 886 | AY32: 2629 | AZ32: 1567 | BA32: 167 | BB32: 312 | BC32: 1203 | BD32: 706 | BE32: 5224 | BF32: 4500 | BG32: 197 | BH32: 1832 | BI32: 3290 | BJ32: 56 | BK32: 419 | BL32: 144
A33: 2010New Hampshire | B33: 2010 | C33: Democrat | D33: New Hampshire | E33: 1303865 | F33: 1720 | G33: 1118359 | H33: 9822 | I33: 141213 | J33: 9061 | K33: 968 | L33: 0.0007424081481 | M33: 39367 | N33: 152 | O33: 0 | P33: 544 | Q33: 0 | R33: 1692 | S33: 240 | T33: 3134 | U33: 0 | V33: 298 | W33: 1659 | X33: 0 | Y33: 51 | Z33: 66 | AA33: 850 | AB33: 23 | AC33: 109 | AD33: 57 | AE33: 0 | AF33: 19 | AG33: 3242 | AH33: 49 | AI33: 13752 | AJ33: 230 | AK33: 240 | AL33: 25 | AM33: 295 | AN33: 486 | AO33: 0 | AP33: 95 | AQ33: 0 | AR33: 540 | AS33: 276 | AT33: 2462 | AU33: 471 | AV33: 0 | AW33: 28 | AX33: 0 | AY33: 508 | AZ33: 674 | BA33: 988 | BB33: 51 | BC33: 0 | BD33: 372 | BE33: 1570 | BF33: 279 | BG33: 2566 | BH33: 745 | BI33: 261 | BJ33: 0 | BK33: 268 | BL33: 0
A34: 2010New Jersey | B34: 2010 | C34: Democrat | D34: New Jersey | E34: 8709933 | F34: 4515 | G34: 7841470 | H34: 25935 | I34: 684482 | J34: 23318 | K34: -66603 | L34: -0.00764678672 | M34: 127369 | N34: 616 | O34: 383 | P34: 1625 | Q34: 258 | R34: 8777 | S34: 807 | T34: 2503 | U34: 1543 | V34: 431 | W34: 9841 | X34: 4588 | Y34: 385 | Z34: 91 | AA34: 2656 | AB34: 402 | AC34: 332 | AD34: 442 | AE34: 91 | AF34: 249 | AG34: 95 | AH34: 4231 | AI34: 2626 | AJ34: 1070 | AK34: 322 | AL34: 450 | AM34: 727 | AN34: 122 | AO34: 261 | AP34: 874 | AQ34: 705 | AR34: 0 | AS34: 421 | AT34: 41374 | AU34: 3052 | AV34: 0 | AW34: 1584 | AX34: 32 | AY34: 613 | AZ34: 22225 | BA34: 332 | BB34: 1134 | BC34: 0 | BD34: 852 | BE34: 3434 | BF34: 178 | BG34: 57 | BH34: 2670 | BI34: 964 | BJ34: 358 | BK34: 586 | BL34: 0
A35: 2010New Mexico | B35: 2010 | C35: Democrat | D35: New Mexico | E35: 2039549 | F35: 2727 | G35: 1735950 | H35: 14043 | I35: 220663 | J35: 12854 | K35: 23167 | L35: 0.01135888375 | M35: 73605 | N35: 751 | O35: 969 | P35: 6117 | Q35: 77 | R35: 6547 | S35: 2852 | T35: 25 | U35: 391 | V35: 56 | W35: 3259 | X35: 1977 | Y35: 122 | Z35: 755 | AA35: 526 | AB35: 465 | AC35: 0 | AD35: 751 | AE35: 739 | AF35: 65 | AG35: 94 | AH35: 1968 | AI35: 2076 | AJ35: 1460 | AK35: 179 | AL35: 719 | AM35: 138 | AN35: 1003 | AO35: 530 | AP35: 4192 | AQ35: 79 | AR35: 160 | AS35: 0 | AT35: 784 | AU35: 1793 | AV35: 79 | AW35: 1712 | AX35: 1182 | AY35: 1659 | AZ35: 809 | BA35: 46 | BB35: 152 | BC35: 204 | BD35: 1269 | BE35: 18511 | BF35: 1601 | BG35: 309 | BH35: 290 | BI35: 3004 | BJ35: 0 | BK35: 407 | BL35: 752
A36: 2010New York | B36: 2010 | C36: Democrat | D36: New York | E36: 19171916 | F36: 7371 | G36: 16976205 | H36: 41292 | I36: 1779540 | J36: 36331 | K36: =M36-INDEX($M$3:$BL$3,1,MATCH(D36,$M$2:$BL$2,0)) -> -93712 | L36: -0.004887983027 | M36: 269427 | N36: 1310 | O36: 5070 | P36: 2649 | Q36: 362 | R36: 25177 | S36: 3135 | T36: 15338 | U36: 2603 | V36: 1983 | W36: 30553 | X36: 7676 | Y36: 259 | Z36: 198 | AA36: 6533 | AB36: 2497 | AC36: 477 | AD36: 1189 | AE36: 804 | AF36: 1321 | AG36: 2270 | AH36: 5912 | AI36: 16855 | AJ36: 4779 | AK36: 1649 | AL36: 872 | AM36: 1870 | AN36: 237 | AO36: 886 | AP36: 2077 | AQ36: 2636 | AR36: 35333 | AS36: 829 | AT36: 0 | AU36: 13322 | AV36: 0 | AW36: 6510 | AX36: 2298 | AY36: 2284 | AZ36: 20514 | BA36: 1913 | BB36: 7161 | BC36: 521 | BD36: 1730 | BE36: 9692 | BF36: 910 | BG36: 2900 | BH36: 8881 | BI36: 2503 | BJ36: 444 | BK36: 2354 | BL36: 151
A37: 2010North Carolina | B37: 2010 | C37: Democrat | D37: North Carolina | E37: 9443000 | F37: 5070 | G37: 7982017 | H37: 29580 | I37: 1141001 | J37: 25307 | K37: 56231 | L37: 0.005954781319 | M37: 263256 | N37: 3044 | O37: 1618 | P37: 2847 | Q37: 550 | R37: 16699 | S37: 1842 | T37: 3752 | U37: 479 | V37: 1691 | W37: 28983 | X37: 15943 | Y37: 1567 | Z37: 724 | AA37: 5657 | AB37: 4132 | AC37: 1077 | AD37: 2192 | AE37: 4419 | AF37: 2180 | AG37: 2259 | AH37: 9881 | AI37: 4052 | AJ37: 5789 | AK37: 1839 | AL37: 1187 | AM37: 1932 | AN37: 230 | AO37: 516 | AP37: 698 | AQ37: 2130 | AR37: 7195 | AS37: 1186 | AT37: 19406 | AU37: 0 | AV37: 243 | AW37: 8661 | AX37: 1453 | AY37: 1796 | AZ37: 11155 | BA37: 97 | BB37: 23196 | BC37: 362 | BD37: 8685 | BE37: 14329 | BF37: 790 | BG37: 350 | BH37: 25662 | BI37: 2874 | BJ37: 3025 | BK37: 2012 | BL37: 870
A38: 2010North Dakota | B38: 2010 | C38: Republican | D38: North Dakota | E38: 665654 | F38: 1209 | G38: 556222 | H38: 6833 | I38: 75720 | J38: 5430 | K38: 5650 | L38: 0.00848789311 | M38: 30100 | N38: 109 | O38: 1066 | P38: 662 | Q38: 168 | R38: 1411 | S38: 873 | T38: 30 | U38: 0 | V38: 175 | W38: 492 | X38: 799 | Y38: 53 | Z38: 69 | AA38: 39 | AB38: 45 | AC38: 289 | AD38: 114 | AE38: 97 | AF38: 374 | AG38: 0 | AH38: 121 | AI38: 52 | AJ38: 298 | AK38: 12350 | AL38: 0 | AM38: 197 | AN38: 1236 | AO38: 328 | AP38: 382 | AQ38: 0 | AR38: 144 | AS38: 380 | AT38: 188 | AU38: 637 | AV38: 0 | AW38: 134 | AX38: 108 | AY38: 313 | AZ38: 392 | BA38: 0 | BB38: 0 | BC38: 1038 | BD38: 273 | BE38: 2513 | BF38: 462 | BG38: 0 | BH38: 25 | BI38: 696 | BJ38: 0 | BK38: 749 | BL38: 219
A39: 2010Ohio | B39: 2010 | C39: Democrat | D39: Ohio | E39: 11405101 | F39: 4931 | G39: 9745227 | H39: 23258 | I39: 1453401 | J39: 23324 | K39: -15380 | L39: -0.001348519404 | M39: 172633 | N39: 1289 | O39: 1556 | P39: 4715 | Q39: 434 | R39: 8997 | S39: 2859 | T39: 1307 | U39: 15 | V39: 972 | W39: 16495 | X39: 9502 | Y39: 436 | Z39: 564 | AA39: 7092 | AB39: 9438 | AC39: 1270 | AD39: 1016 | AE39: 9159 | AF39: 743 | AG39: 291 | AH39: 3828 | AI39: 3686 | AJ39: 15130 | AK39: 2298 | AL39: 89 | AM39: 1171 | AN39: 460 | AO39: 1531 | AP39: 2240 | AQ39: 175 | AR39: 2465 | AS39: 515 | AT39: 5988 | AU39: 5985 | AV39: 26 | AW39: 0 | AX39: 1228 | AY39: 342 | AZ39: 12012 | BA39: 444 | BB39: 2479 | BC39: 207 | BD39: 4987 | BE39: 7465 | BF39: 485 | BG39: 182 | BH39: 6769 | BI39: 2567 | BJ39: 7814 | BK39: 1771 | BL39: 144
A40: 2010Oklahoma | B40: 2010 | C40: Republican | D40: Oklahoma | E40: 3716264 | F40: 3181 | G40: 3065497 | H40: 21363 | I40: 528824 | J40: 18463 | K40: 15895 | L40: =K40/E40 -> 0.004277145004 | M40: 106511 | N40: 1612 | O40: 1397 | P40: 2759 | Q40: 5873 | R40: 9429 | S40: 3184 | T40: 68 | U40: 109 | V40: 0 | W40: 5438 | X40: 3159 | Y40: 773 | Z40: 611 | AA40: 2679 | AB40: 957 | AC40: 1108 | AD40: 5024 | AE40: 877 | AF40: 2208 | AG40: 298 | AH40: 382 | AI40: 465 | AJ40: 1047 | AK40: 599 | AL40: 1733 | AM40: 4102 | AN40: 448 | AO40: 829 | AP40: 1079 | AQ40: 69 | AR40: 890 | AS40: 2723 | AT40: 1118 | AU40: 1991 | AV40: 139 | AW40: 1385 | AX40: 0 | AY40: 398 | AZ40: 1316 | BA40: 119 | BB40: 596 | BC40: 83 | BD40: 1872 | BE40: 28238 | BF40: 428 | BG40: 93 | BH40: 2286 | BI40: 2035 | BJ40: 221 | BK40: 551 | BL40: 1713
A41: 2010Oregon | B41: 2010 | C41: Democrat | D41: Oregon | E41: 3794008 | F41: 3282 | G41: 3110896 | H41: 20156 | I41: 545841 | J41: 17758 | K41: 16515 | L41: 0.004352916494 | M41: 116700 | N41: 400 | O41: 2027 | P41: 5264 | Q41: 246 | R41: 34190 | S41: 2050 | T41: 270 | U41: 0 | V41: 217 | W41: 2273 | X41: 688 | Y41: 2323 | Z41: 4129 | AA41: 1565 | AB41: 317 | AC41: 161 | AD41: 678 | AE41: 0 | AF41: 0 | AG41: 0 | AH41: 595 | AI41: 1471 | AJ41: 1159 | AK41: 668 | AL41: 735 | AM41: 1786 | AN41: 3386 | AO41: 777 | AP41: 2805 | AQ41: 317 | AR41: 544 | AS41: 981 | AT41: 2538 | AU41: 1040 | AV41: 592 | AW41: 1541 | AX41: 821 | AY41: 0 | AZ41: 1689 | BA41: 0 | BB41: 989 | BC41: 741 | BD41: 787 | BE41: 3826 | BF41: 2879 | BG41: 456 | BH41: 1124 | BI41: 22793 | BJ41: 358 | BK41: 1981 | BL41: 523
A42: 2010Pennsylvania | B42: 2010 | C42: Democrat | D42: Pennsylvania | E42: 12577555 | F42: 4619 | G42: 11053022 | H42: 29699 | I42: 1239199 | J42: 26490 | K42: 25770 | L42: 0.00204888788 | M42: 235580 | N42: 369 | O42: 2185 | P42: 3668 | Q42: 807 | R42: 12077 | S42: 3657 | T42: 4007 | U42: 4608 | V42: 1621 | W42: 18212 | X42: 4644 | Y42: 332 | Z42: 380 | AA42: 4490 | AB42: 2018 | AC42: 227 | AD42: 1426 | AE42: 1675 | AF42: 625 | AG42: 1621 | AH42: 18281 | AI42: 4455 | AJ42: 4961 | AK42: 1491 | AL42: 563 | AM42: 1725 | AN42: 339 | AO42: 551 | AP42: 1810 | AQ42: 729 | AR42: 42456 | AS42: 1250 | AT42: 30481 | AU42: 7611 | AV42: 521 | AW42: 14545 | AX42: 1254 | AY42: 918 | AZ42: 0 | BA42: 377 | BB42: 1315 | BC42: 966 | BD42: 1611 | BE42: 7778 | BF42: 1048 | BG42: 215 | BH42: 10558 | BI42: 2495 | BJ42: 4258 | BK42: 1300 | BL42: 1069
A43: 2010Rhode Island | B43: 2010 | C43: Democrat | D43: Rhode Island | E43: 1042240 | F43: 1435 | G43: 900283 | H43: 9035 | I43: 99603 | J43: 7344 | K43: 7111 | L43: 0.006822804728 | M43: 32059 | N43: 136 | O43: 0 | P43: 324 | Q43: 0 | R43: 1697 | S43: 59 | T43: 4090 | U43: 0 | V43: 146 | W43: 1336 | X43: 382 | Y43: 274 | Z43: 0 | AA43: 1210 | AB43: 206 | AC43: 48 | AD43: 0 | AE43: 0 | AF43: 0 | AG43: 447 | AH43: 977 | AI43: 8639 | AJ43: 77 | AK43: 47 | AL43: 0 | AM43: 47 | AN43: 0 | AO43: 0 | AP43: 297 | AQ43: 333 | AR43: 1868 | AS43: 0 | AT43: 4583 | AU43: 1376 | AV43: 62 | AW43: 0 | AX43: 199 | AY43: 0 | AZ43: 560 | BA43: 0 | BB43: 61 | BC43: 48 | BD43: 71 | BE43: 678 | BF43: 0 | BG43: 72 | BH43: 1399 | BI43: 160 | BJ43: 150 | BK43: 0 | BL43: 0
A44: 2010South Carolina | B44: 2010 | C44: Republican | D44: South Carolina | E44: 4577399 | F44: 3786 | G44: 3870879 | H44: 23788 | I44: 537961 | J44: 21768 | K44: 34872 | L44: 0.007618300262 | M44: 152441 | N44: 1741 | O44: 1670 | P44: 1457 | Q44: 365 | R44: 4691 | S44: 1867 | T44: 3998 | U44: 249 | V44: 38 | W44: 16060 | X44: 17486 | Y44: 813 | Z44: 233 | AA44: 4253 | AB44: 2174 | AC44: 703 | AD44: 514 | AE44: 2211 | AF44: 2059 | AG44: 603 | AH44: 5184 | AI44: 3765 | AJ44: 3709 | AK44: 818 | AL44: 1175 | AM44: 1371 | AN44: 0 | AO44: 0 | AP44: 1173 | AQ44: 486 | AR44: 4908 | AS44: 1390 | AT44: 7912 | AU44: 20749 | AV44: 118 | AW44: 3883 | AX44: 1458 | AY44: 1020 | AZ44: 4689 | BA44: 154 | BB44: 0 | BC44: 95 | BD44: 3816 | BE44: 4965 | BF44: 455 | BG44: 478 | BH44: 9786 | BI44: 3070 | BJ44: 1190 | BK44: 1057 | BL44: 382
A45: 2010South Dakota | B45: 2010 | C45: Republican | D45: South Dakota | E45: 805616 | F45: 1372 | G45: 680993 | H45: 6027 | I45: 96805 | J45: 5853 | K45: -2138 | L45: -0.002653869834 | M45: 25777 | N45: 325 | O45: 25 | P45: 745 | Q45: 61 | R45: 1338 | S45: 807 | T45: 0 | U45: 0 | V45: 0 | W45: 251 | X45: 24 | Y45: 75 | Z45: 457 | AA45: 80 | AB45: 439 | AC45: 3520 | AD45: 571 | AE45: 82 | AF45: 129 | AG45: 0 | AH45: 0 | AI45: 407 | AJ45: 144 | AK45: 4615 | AL45: 201 | AM45: 252 | AN45: 560 | AO45: 2260 | AP45: 38 | AQ45: 0 | AR45: 0 | AS45: 38 | AT45: 758 | AU45: 262 | AV45: 2020 | AW45: 160 | AX45: 296 | AY45: 122 | AZ45: 209 | BA45: 0 | BB45: 0 | BC45: 0 | BD45: 0 | BE45: 1334 | BF45: 0 | BG45: 0 | BH45: 224 | BI45: 1564 | BJ45: 0 | BK45: 736 | BL45: 648
A46: 2010Tennessee | B46: 2010 | C46: Republican | D46: Tennessee | E46: 6282706 | F46: 4009 | G46: 5299496 | H46: 24505 | I46: 801355 | J46: 21988 | K46: 16643 | L46: 0.002649017796 | M46: 159778 | N46: 8897 | O46: 343 | P46: 2291 | Q46: 4736 | R46: 8019 | S46: 1858 | T46: 765 | U46: 248 | V46: 394 | W46: 14168 | X46: 11065 | Y46: 243 | Z46: 333 | AA46: 3162 | AB46: 4764 | AC46: 1052 | AD46: 2506 | AE46: 11188 | AF46: 2602 | AG46: 84 | AH46: 1450 | AI46: 1733 | AJ46: 5529 | AK46: 1504 | AL46: 9029 | AM46: 4342 | AN46: 290 | AO46: 187 | AP46: 2433 | AQ46: 197 | AR46: 2230 | AS46: 621 | AT46: 4800 | AU46: 7102 | AV46: 0 | AW46: 4462 | AX46: 669 | AY46: 430 | AZ46: 2562 | BA46: 805 | BB46: 4765 | BC46: 63 | BD46: 0 | BE46: 8701 | BF46: 2062 | BG46: 0 | BH46: 8650 | BI46: 1412 | BJ46: 2201 | BK46: 2831 | BL46: 0
A47: 2010Texas | B47: 2010 | C47: Republican | D47: Texas | E47: 24899075 | F47: 8102 | G47: 20500156 | H47: 52416 | I47: 3740344 | J47: 51566 | K47: 74917 | L47: 0.003008826633 | M47: 486558 | N47: 8636 | O47: 11613 | P47: 16521 | Q47: 15251 | R47: 68959 | S47: 16361 | T47: 924 | U47: 704 | V47: 460 | W47: 26668 | X47: 16671 | Y47: 3718 | Z47: 2033 | AA47: 20169 | AB47: 6985 | AC47: 3946 | AD47: 11598 | AE47: 5153 | AF47: 31149 | AG47: 1318 | AH47: 4724 | AI47: 7139 | AJ47: 13775 | AK47: 6088 | AL47: 7773 | AM47: 12061 | AN47: 1027 | AO47: 4893 | AP47: 8324 | AQ47: 1067 | AR47: 7058 | AS47: 11752 | AT47: 16624 | AU47: 12183 | AV47: 2452 | AW47: 8317 | AX47: 22969 | AY47: 4373 | AZ47: 7161 | BA47: 975 | BB47: 5249 | BC47: 1936 | BD47: 13044 | BE47: 0 | BF47: 4123 | BG47: 52 | BH47: 13713 | BI47: 8847 | BJ47: 2221 | BK47: 5927 | BL47: 1874
A48: 2010Utah | B48: 2010 | C48: Republican | D48: Utah | E48: 2724064 | F48: 2775 | G48: 2240636 | H48: 18397 | I48: 388410 | J48: 17535 | K48: 2239 | L48: 0.0008219336991 | M48: 77780 | N48: 93 | O48: 1798 | P48: 8147 | Q48: 316 | R48: 12187 | S48: 3987 | T48: 119 | U48: 0 | V48: 138 | W48: 2097 | X48: 966 | Y48: 932 | Z48: 7692 | AA48: 1831 | AB48: 517 | AC48: 483 | AD48: 299 | AE48: 235 | AF48: 46 | AG48: 148 | AH48: 426 | AI48: 246 | AJ48: 261 | AK48: 914 | AL48: 127 | AM48: 1255 | AN48: 1929 | AO48: 118 | AP48: 4549 | AQ48: 0 | AR48: 247 | AS48: 518 | AT48: 1462 | AU48: 1167 | AV48: 0 | AW48: 1527 | AX48: 886 | AY48: 2525 | AZ48: 557 | BA48: 0 | BB48: 838 | BC48: 875 | BD48: 459 | BE48: 5305 | BF48: 0 | BG48: 297 | BH48: 3005 | BI48: 3792 | BJ48: 0 | BK48: 338 | BL48: 2126
A49: 2010Vermont | B49: 2010 | C49: Democrat | D49: Vermont | E49: 619363 | F49: 779 | G49: 534975 | H49: 5691 | I49: 59032 | J49: 4857 | K49: 4149 | L49: 0.006698817979 | M49: 22529 | N49: 0 | O49: 184 | P49: 65 | Q49: 0 | R49: 1001 | S49: 326 | T49: 1287 | U49: 87 | V49: 9 | W49: 2063 | X49: 496 | Y49: 49 | Z49: 0 | AA49: 370 | AB49: 0 | AC49: 91 | AD49: 0 | AE49: 176 | AF49: 0 | AG49: 824 | AH49: 300 | AI49: 3599 | AJ49: 201 | AK49: 85 | AL49: 0 | AM49: 51 | AN49: 236 | AO49: 0 | AP49: 58 | AQ49: 2760 | AR49: 751 | AS49: 0 | AT49: 4056 | AU49: 539 | AV49: 30 | AW49: 50 | AX49: 0 | AY49: 100 | AZ49: 524 | BA49: 227 | BB49: 134 | BC49: 153 | BD49: 125 | BE49: 565 | BF49: 0 | BG49: 0 | BH49: 400 | BI49: 128 | BJ49: 0 | BK49: 377 | BL49: 52
A50: 2010Virginia | B50: 2010 | C50: Democrat | D50: Virginia | E50: 7930773 | F50: 4735 | G50: 6752310 | H50: 28251 | I50: 870491 | J50: 21599 | K50: 27505 | L50: 0.003468136082 | M50: 259507 | N50: 2671 | O50: 3296 | P50: 3807 | Q50: 1233 | R50: 17088 | S50: 3229 | T50: 2468 | U50: 1265 | V50: 10593 | W50: 18165 | X50: 11927 | Y50: 2347 | Z50: 1159 | AA50: 7576 | AB50: 2892 | AC50: 1135 | AD50: 2103 | AE50: 2051 | AF50: 2148 | AG50: 1494 | AH50: 24822 | AI50: 4104 | AJ50: 5733 | AK50: 462 | AL50: 1858 | AM50: 4262 | AN50: 866 | AO50: 523 | AP50: 748 | AQ50: 372 | AR50: 6825 | AS50: 1098 | AT50: 17525 | AU50: 23829 | AV50: 201 | AW50: 7708 | AX50: 781 | AY50: 2137 | AZ50: 11796 | BA50: 1543 | BB50: 8339 | BC50: 98 | BD50: 5842 | BE50: 12938 | BF50: 1551 | BG50: 676 | BH50: 0 | BI50: 4373 | BJ50: 6779 | BK50: 2648 | BL50: 423
A51: 2010Washington | B51: 2010 | C51: Democrat | D51: Washington | E51: 6661321 | F51: 4568 | G51: 5464985 | H51: 26926 | I51: 946923 | J51: 24983 | K51: 25622 | L51: 0.003846384223 | M51: 191784 | N51: 1322 | O51: 5644 | P51: 5971 | Q51: 658 | R51: 39468 | S51: 4883 | T51: 642 | U51: 202 | V51: 243 | W51: 5378 | X51: 3107 | Y51: 4246 | Z51: 12661 | AA51: 3931 | AB51: 1912 | AC51: 1685 | AD51: 1694 | AE51: 886 | AF51: 1011 | AG51: 717 | AH51: 629 | AI51: 1448 | AJ51: 2871 | AK51: 1323 | AL51: 737 | AM51: 3727 | AN51: 5094 | AO51: 323 | AP51: 5310 | AQ51: 282 | AR51: 721 | AS51: 1012 | AT51: 4140 | AU51: 2143 | AV51: 515 | AW51: 2727 | AX51: 1986 | AY51: 26235 | AZ51: 2893 | BA51: 220 | BB51: 3047 | BC51: 866 | BD51: 789 | BE51: 11338 | BF51: 4020 | BG51: 981 | BH51: 7266 | BI51: 0 | BJ51: 62 | BK51: 2180 | BL51: 638
A52: 2010West Virginia | B52: 2010 | C52: Republican | D52: West Virginia | E52: 1833535 | F52: 1890 | G52: 1625125 | H52: 9824 | I52: 166168 | J52: 9198 | K52: -9740 | L52: -0.005312142937 | M52: 39609 | N52: 41 | O52: 1326 | P52: 0 | Q52: 0 | R52: 760 | S52: 608 | T52: 84 | U52: 556 | V52: 480 | W52: 1842 | X52: 485 | Y52: 0 | Z52: 88 | AA52: 356 | AB52: 366 | AC52: 0 | AD52: 161 | AE52: 851 | AF52: 60 | AG52: 0 | AH52: 4249 | AI52: 191 | AJ52: 657 | AK52: 0 | AL52: 44 | AM52: 160 | AN52: 39 | AO52: 0 | AP52: 25 | AQ52: 107 | AR52: 906 | AS52: 0 | AT52: 611 | AU52: 2552 | AV52: 268 | AW52: 7925 | AX52: 229 | AY52: 0 | AZ52: 4908 | BA52: 238 | BB52: 647 | BC52: 0 | BD52: 1160 | BE52: 968 | BF52: 112 | BG52: 208 | BH52: 4999 | BI52: 192 | BJ52: 0 | BK52: 150 | BL52: 0
A53: 2010Wisconsin | B53: 2010 | C53: Democrat | D53: Wisconsin | E53: 5623196 | F53: 3124 | G53: 4824045 | H53: 20412 | I53: 691592 | J53: 17462 | K53: -18175 | L53: -0.003232147697 | M53: 93065 | N53: 552 | O53: 798 | P53: 1854 | Q53: 518 | R53: 4506 | S53: 1890 | T53: 359 | U53: 351 | V53: 98 | W53: 4492 | X53: 1656 | Y53: 550 | Z53: 902 | AA53: 20299 | AB53: 2563 | AC53: 2300 | AD53: 752 | AE53: 287 | AF53: 331 | AG53: 448 | AH53: 1088 | AI53: 992 | AJ53: 6317 | AK53: 16741 | AL53: 810 | AM53: 1716 | AN53: 154 | AO53: 853 | AP53: 1049 | AQ53: 69 | AR53: 632 | AS53: 123 | AT53: 1291 | AU53: 1817 | AV53: 497 | AW53: 1674 | AX53: 89 | AY53: 1444 | AZ53: 2211 | BA53: 0 | BB53: 1142 | BC53: 235 | BD53: 856 | BE53: 3039 | BF53: 476 | BG53: 75 | BH53: 771 | BI53: 1013 | BJ53: 256 | BK53: 0 | BL53: 129
A54: 2010Wyoming | B54: 2010 | C54: Republican | D54: Wyoming | E54: 556954 | F54: 1133 | G54: 444614 | H54: 8794 | I54: 82255 | J54: 8679 | K54: -140 | L54: -0.0002513672583 | M54: 28046 | N54: 172 | O54: 0 | P54: 1511 | Q54: 0 | R54: 2784 | S54: 4390 | T54: 0 | U54: 0 | V54: 0 | W54: 396 | X54: 745 | Y54: 25 | Z54: 942 | AA54: 415 | AB54: 132 | AC54: 462 | AD54: 532 | AE54: 519 | AF54: 107 | AG54: 0 | AH54: 51 | AI54: 252 | AJ54: 570 | AK54: 218 | AL54: 0 | AM54: 421 | AN54: 2528 | AO54: 1711 | AP54: 416 | AQ54: 0 | AR54: 0 | AS54: 707 | AT54: 146 | AU54: 34 | AV54: 233 | AW54: 56 | AX54: 62 | AY54: 14 | AZ54: 95 | BA54: 0 | BB54: 220 | BC54: 258 | BD54: 495 | BE54: 1990 | BF54: 3226 | BG54: 75 | BH54: 580 | BI54: 556 | BJ54: 0 | BK54: 0 | BL54: 0
A55: 2011United States | B55: 2011 | C55: Democrat | D55: United States | E55: 307900319 | F55: 29996 | G55: 261087925 | H55: 263315 | I55: 37998701 | J55: 233440 | M55: 6987416 | N55: 106806 | O55: 88850 | P55: 211816 | Q55: 77226 | R55: 562343 | S55: 160623 | T55: 91295 | U55: 26631 | V55: 49732 | W55: 437202 | X55: 248892 | Y55: 61940 | Z55: 57831 | AA55: 269008 | AB55: 143228 | AC55: 74516 | AD55: 94180 | AE55: 99256 | AF55: 86593 | AG55: 33729 | AH55: 165041 | AI55: 145869 | AJ55: 186505 | AK55: 103253 | AL55: 68597 | AM55: 138404 | AN55: 31204 | AO55: 52809 | AP55: 115943 | AQ55: 43277 | AR55: 216369 | AS55: 61431 | AT55: 377800 | AU55: 225147 | AV55: 26563 | AW55: 206049 | AX55: 81009 | AY55: 109795 | AZ55: 215127 | BA55: 31065 | BB55: 121426 | BC55: 29383 | BD55: 154243 | BE55: 404839 | BF55: 73211 | BG55: 18172 | BH55: 229227 | BI55: 190644 | BJ55: 45956 | BK55: 105370 | BL55: 31991
A56: 2011Alabama | B56: 2011 | C56: Republican | D56: Alabama | E56: 4745278 | F56: 4078 | G56: 4024442 | H56: 22751 | I56: 588293 | J56: 20366 | K56: =M56-INDEX($M$55:$BL$55,1,MATCH(D56,$M$2:$BL$2,0)) -> 10920 | L56: 0.002301235038 | M56: 117726 | N56: 0 | O56: 1771 | P56: 1677 | Q56: 1642 | R56: 3389 | S56: 348 | T56: 2921 | U56: 232 | V56: 399 | W56: 20063 | X56: 19346 | Y56: 1259 | Z56: 137 | AA56: 6991 | AB56: 1434 | AC56: 30 | AD56: 842 | AE56: 2686 | AF56: 2413 | AG56: 626 | AH56: 1606 | AI56: 112 | AJ56: 2797 | AK56: 327 | AL56: 3945 | AM56: 1086 | AN56: 317 | AO56: 770 | AP56: 257 | AQ56: 64 | AR56: 1996 | AS56: 119 | AT56: 1108 | AU56: 2697 | AV56: 284 | AW56: 2596 | AX56: 973 | AY56: 169 | AZ56: 1075 | BA56: 0 | BB56: 2036 | BC56: 90 | BD56: 8710 | BE56: 7973 | BF56: 300 | BG56: 66 | BH56: 4935 | BI56: 2621 | BJ56: 65 | BK56: 417 | BL56: 9
A57: 2011Alaska | B57: 2011 | C57: Republican | D57: Alaska | E57: 711962 | F57: 1401 | G57: 571857 | H57: 8892 | I57: 100280 | J57: 8388 | K57: -53766 | L57: -0.0755180754 | M57: 35084 | N57: 93 | O57: 0 | P57: 2467 | Q57: 190 | R57: 3098 | S57: 1583 | T57: 138 | U57: 11 | V57: 140 | W57: 1188 | X57: 556 | Y57: 1366 | Z57: 475 | AA57: 985 | AB57: 181 | AC57: 319 | AD57: 750 | AE57: 237 | AF57: 1077 | AG57: 0 | AH57: 216 | AI57: 141 | AJ57: 771 | AK57: 593 | AL57: 554 | AM57: 921 | AN57: 248 | AO57: 5 | AP57: 532 | AQ57: 520 | AR57: 128 | AS57: 226 | AT57: 940 | AU57: 470 | AV57: 0 | AW57: 319 | AX57: 616 | AY57: 2161 | AZ57: 378 | BA57: 0 | BB57: 186 | BC57: 301 | BD57: 388 | BE57: 2492 | BF57: 662 | BG57: 68 | BH57: 1488 | BI57: 4548 | BJ57: 89 | BK57: 23 | BL57: 246
A58: 2011Arizona | B58: 2011 | C58: Republican | D58: Arizona | E58: 6402301 | F58: 5660 | G58: 5107496 | H58: 39045 | I58: 1028366 | J58: 36556 | K58: 11061 | L58: 0.001727660102 | M58: 222877 | N58: 833 | O58: 5001 | P58: 0 | Q58: 1066 | R58: 49635 | S58: 10189 | T58: 1875 | U58: 0 | V58: 389 | W58: 3732 | X58: 2206 | Y58: 2199 | Z58: 2190 | AA58: 10035 | AB58: 5855 | AC58: 4526 | AD58: 1708 | AE58: 2134 | AF58: 844 | AG58: 0 | AH58: 1918 | AI58: 743 | AJ58: 9396 | AK58: 3297 | AL58: 1226 | AM58: 3872 | AN58: 2431 | AO58: 1393 | AP58: 8756 | AQ58: 228 | AR58: 3379 | AS58: 4610 | AT58: 3880 | AU58: 2548 | AV58: 1159 | AW58: 4682 | AX58: 3219 | AY58: 4613 | AZ58: 3436 | BA58: 72 | BB58: 1774 | BC58: 1657 | BD58: 1680 | BE58: 12688 | BF58: 10577 | BG58: 0 | BH58: 2233 | BI58: 13940 | BJ58: 70 | BK58: 6473 | BL58: 2510
A59: 2011Arkansas | B59: 2011 | C59: Republican | D59: Arkansas | E59: 2906632 | F59: 2928 | G59: 2421746 | H59: 18606 | I59: 405831 | J59: 18050 | K59: -7381 | L59: -0.002539365148 | M59: 69845 | N59: 691 | O59: 560 | P59: 439 | Q59: 0 | R59: 4077 | S59: 746 | T59: 519 | U59: 79 | V59: 0 | W59: 3067 | X59: 1446 | Y59: 13 | Z59: 179 | AA59: 3684 | AB59: 1362 | AC59: 851 | AD59: 2008 | AE59: 213 | AF59: 2120 | AG59: 30 | AH59: 133 | AI59: 781 | AJ59: 1881 | AK59: 232 | AL59: 1731 | AM59: 7314 | AN59: 713 | AO59: 332 | AP59: 641 | AQ59: 52 | AR59: 341 | AS59: 775 | AT59: 674 | AU59: 1664 | AV59: 214 | AW59: 174 | AX59: 3761 | AY59: 632 | AZ59: 567 | BA59: 0 | BB59: 235 | BC59: 0 | BD59: 6462 | BE59: 14767 | BF59: 0 | BG59: 0 | BH59: 1245 | BI59: 1477 | BJ59: 24 | BK59: 687 | BL59: 252
A60: 2011California | B60: 2011 | C60: Democrat | D60: California | E60: 37222678 | F60: 9999 | G60: 31213310 | H60: 71183 | I60: 5271168 | J60: 68394 | K60: -93915 | L60: -0.002523058658 | M60: 468428 | N60: 2087 | O60: 7358 | P60: 35650 | Q60: 2648 | R60: 0 | S60: 21245 | T60: 3073 | U60: 1302 | V60: 3240 | W60: 22094 | X60: 13303 | Y60: 9864 | Z60: 4796 | AA60: 20834 | AB60: 4673 | AC60: 3324 | AD60: 2810 | AE60: 1201 | AF60: 3600 | AG60: 1658 | AH60: 7793 | AI60: 10244 | AJ60: 12069 | AK60: 5687 | AL60: 2092 | AM60: 7677 | AN60: 2599 | AO60: 1955 | AP60: 36159 | AQ60: 1222 | AR60: 8053 | AS60: 5904 | AT60: 25629 | AU60: 8708 | AV60: 1392 | AW60: 10474 | AX60: 5113 | AY60: 18165 | AZ60: 8550 | BA60: 1103 | BB60: 5758 | BC60: 1004 | BD60: 8761 | BE60: 37087 | BF60: 8944 | BG60: 745 | BH60: 15753 | BI60: 36481 | BJ60: 832 | BK60: 5668 | BL60: 2047
A61: 2011Colorado | B61: 2011 | C61: Democrat | D61: Colorado | E61: 5048443 | F61: 4037 | G61: 4048042 | H61: 22888 | I61: 763233 | J61: 18937 | K61: 41501 | L61: 0.008220554337 | M61: 202124 | N61: 2340 | O61: 3191 | P61: 12338 | Q61: 1615 | R61: 23234 | S61: 0 | T61: 1567 | U61: 501 | V61: 298 | W61: 8075 | X61: 3250 | Y61: 1852 | Z61: 1578 | AA61: 6027 | AB61: 2116 | AC61: 3510 | AD61: 3718 | AE61: 1361 | AF61: 908 | AG61: 1358 | AH61: 3303 | AI61: 2157 | AJ61: 3225 | AK61: 3055 | AL61: 879 | AM61: 4552 | AN61: 4079 | AO61: 4582 | AP61: 4061 | AQ61: 489 | AR61: 2863 | AS61: 8797 | AT61: 3998 | AU61: 4756 | AV61: 2249 | AW61: 5527 | AX61: 3824 | AY61: 5543 | AZ61: 3348 | BA61: 435 | BB61: 718 | BC61: 1340 | BD61: 3193 | BE61: 22390 | BF61: 3856 | BG61: 914 | BH61: 6281 | BI61: 5524 | BJ61: 412 | BK61: 3995 | BL61: 2942
A62: 2011Connecticut | B62: 2011 | C62: Democrat | D62: Connecticut | E62: 3548667 | F62: 2644 | G62: 3139496 | H62: 16755 | I62: 316883 | J62: 15392 | K62: -19793 | L62: -0.005577587302 | M62: 71502 | N62: 101 | O62: 180 | P62: 1387 | Q62: 84 | R62: 3699 | S62: 1502 | T62: 0 | U62: 62 | V62: 607 | W62: 4771 | X62: 2000 | Y62: 587 | Z62: 133 | AA62: 1843 | AB62: 168 | AC62: 67 | AD62: 16 | AE62: 0 | AF62: 315 | AG62: 259 | AH62: 1267 | AI62: 8691 | AJ62: 692 | AK62: 76 | AL62: 69 | AM62: 365 | AN62: 206 | AO62: 62 | AP62: 160 | AQ62: 1221 | AR62: 3809 | AS62: 265 | AT62: 20015 | AU62: 1029 | AV62: 0 | AW62: 1383 | AX62: 217 | AY62: 117 | AZ62: 3668 | BA62: 1488 | BB62: 997 | BC62: 0 | BD62: 123 | BE62: 1214 | BF62: 398 | BG62: 608 | BH62: 2555 | BI62: 2255 | BJ62: 46 | BK62: 660 | BL62: 65
A63: 2011Delaware | B63: 2011 | C63: Democrat | D63: Delaware | E63: 897187 | F63: 1369 | G63: 775414 | H63: 8584 | I63: 83156 | J63: 6851 | K63: 7281 | L63: 0.008115365024 | M63: 33912 | N63: 81 | O63: 329 | P63: 541 | Q63: 0 | R63: 699 | S63: 169 | T63: 66 | U63: 0 | V63: 154 | W63: 810 | X63: 639 | Y63: 201 | Z63: 441 | AA63: 34 | AB63: 210 | AC63: 0 | AD63: 7 | AE63: 305 | AF63: 0 | AG63: 0 | AH63: 4238 | AI63: 806 | AJ63: 43 | AK63: 201 | AL63: 0 | AM63: 713 | AN63: 0 | AO63: 12 | AP63: 0 | AQ63: 0 | AR63: 6297 | AS63: 0 | AT63: 3141 | AU63: 388 | AV63: 0 | AW63: 664 | AX63: 27 | AY63: 0 | AZ63: 8571 | BA63: 131 | BB63: 153 | BC63: 0 | BD63: 221 | BE63: 883 | BF63: 475 | BG63: 0 | BH63: 1064 | BI63: 482 | BJ63: 198 | BK63: 55 | BL63: 463
A64: 2011District of Columbia | B64: 2011 | C64: Democrat | D64: District of Columbia | E64: 611608 | F64: 1403 | G64: 489659 | H64: 6701 | I64: 66519 | J64: 6073 | K64: -1666 | L64: -0.002723966985 | M64: 48066 | N64: 13 | O64: 135 | P64: 43 | Q64: 81 | R64: 3797 | S64: 452 | T64: 981 | U64: 128 | V64: 0 | W64: 1254 | X64: 937 | Y64: 372 | Z64: 68 | AA64: 1397 | AB64: 128 | AC64: 241 | AD64: 6 | AE64: 297 | AF64: 0 | AG64: 0 | AH64: 14129 | AI64: 2048 | AJ64: 1108 | AK64: 409 | AL64: 83 | AM64: 112 | AN64: 38 | AO64: 79 | AP64: 238 | AQ64: 145 | AR64: 1035 | AS64: 0 | AT64: 2313 | AU64: 1716 | AV64: 285 | AW64: 306 | AX64: 0 | AY64: 51 | AZ64: 1589 | BA64: 50 | BB64: 357 | BC64: 104 | BD64: 421 | BE64: 1083 | BF64: 75 | BG64: 445 | BH64: 7975 | BI64: 476 | BJ64: 120 | BK64: 946 | BL64: 0
A65: 2011Florida | B65: 2011 | C65: Democrat | D65: Florida | E65: 18863948 | F65: 8536 | G65: 15742168 | H65: 59355 | I65: 2454255 | J65: 53419 | K65: 61395 | L65: 0.003254620931 | M65: 498597 | N65: 12635 | O65: 7405 | P65: 8451 | Q65: 3025 | R65: 22420 | S65: 9383 | T65: 11704 | U65: 1264 | V65: 891 | W65: 0 | X65: 38658 | Y65: 3639 | Z65: 312 | AA65: 19152 | AB65: 11472 | AC65: 1846 | AD65: 2661 | AE65: 5441 | AF65: 6094 | AG65: 4689 | AH65: 15410 | AI65: 13701 | AJ65: 19640 | AK65: 4663 | AL65: 5175 | AM65: 7114 | AN65: 559 | AO65: 3857 | AP65: 3527 | AQ65: 4324 | AR65: 25206 | AS65: 1376 | AT65: 59288 | AU65: 23983 | AV65: 514 | AW65: 18191 | AX65: 2600 | AY65: 3315 | AZ65: 20821 | BA65: 5002 | BB65: 11953 | BC65: 716 | BD65: 10451 | BE65: 25532 | BF65: 2343 | BG65: 2019 | BH65: 16614 | BI65: 6339 | BJ65: 4964 | BK65: 7412 | BL65: 846
A66: 2011Georgia | B66: 2011 | C66: Republican | D66: Georgia | E66: 9699859 | F66: 5580 | G66: 8095407 | H66: 40769 | I66: 1289450 | J66: 37444 | K66: 22185 | L66: 0.002287146648 | M66: 271077 | N66: 18799 | O66: 1079 | P66: 4292 | Q66: 2112 | R66: 14949 | S66: 2325 | T66: 709 | U66: 619 | V66: 364 | W66: 42666 | X66: 0 | Y66: 1006 | Z66: 126 | AA66: 6080 | AB66: 2442 | AC66: 950 | AD66: 4513 | AE66: 3686 | AF66: 6541 | AG66: 408 | AH66: 3708 | AI66: 4436 | AJ66: 6992 | AK66: 1808 | AL66: 5380 | AM66: 2514 | AN66: 246 | AO66: 4144 | AP66: 774 | AQ66: 132 | AR66: 8371 | AS66: 791 | AT66: 14454 | AU66: 19138 | AV66: 201 | AW66: 6863 | AX66: 1632 | AY66: 727 | AZ66: 5791 | BA66: 337 | BB66: 16914 | BC66: 536 | BD66: 16898 | BE66: 15760 | BF66: 793 | BG66: 361 | BH66: 9438 | BI66: 3701 | BJ66: 1340 | BK66: 2727 | BL66: 504
A67: =B67&D67 -> 2011Hawaii | B67: 2011 | C67: Democrat | D67: Hawaii | E67: 1357806 | F67: 1803 | G67: 1160948 | H67: 10743 | I67: 122727 | J67: 8676 | K67: -4398 | L67: -0.003239048877 | M67: 57542 | N67: 1268 | O67: 844 | P67: 2900 | Q67: 242 | R67: 10173 | S67: 950 | T67: 731 | U67: 784 | V67: 222 | W67: 3160 | X67: 2519 | Y67: 0 | Z67: 112 | AA67: 1884 | AB67: 402 | AC67: 478 | AD67: 125 | AE67: 18 | AF67: 179 | AG67: 106 | AH67: 341 | AI67: 92 | AJ67: 1303 | AK67: 933 | AL67: 371 | AM67: 308 | AN67: 85 | AO67: 91 | AP67: 1548 | AQ67: 107 | AR67: 564 | AS67: 354 | AT67: 4246 | AU67: 2307 | AV67: 32 | AW67: 970 | AX67: 685 | AY67: 2030 | AZ67: 870 | BA67: 58 | BB67: 1681 | BC67: 0 | BD67: 636 | BE67: 3007 | BF67: 1040 | BG67: 0 | BH67: 2523 | BI67: 3790 | BJ67: 312 | BK67: 147 | BL67: 14
A68: 2011Idaho | B68: 2011 | C68: Republican | D68: Idaho | E68: 1559637 | F68: 2674 | G68: 1284530 | H68: 13188 | I68: 208434 | J68: 13285 | K68: 2505 | L68: 0.001606142968 | M68: 60336 | N68: 263 | O68: 4510 | P68: 3543 | Q68: 224 | R68: 9021 | S68: 1813 | T68: 0 | U68: 0 | V68: 0 | W68: 1733 | X68: 275 | Y68: 254 | Z68: 0 | AA68: 390 | AB68: 296 | AC68: 318 | AD68: 479 | AE68: 120 | AF68: 51 | AG68: 0 | AH68: 0 | AI68: 396 | AJ68: 615 | AK68: 566 | AL68: 62 | AM68: 384 | AN68: 1602 | AO68: 439 | AP68: 3581 | AQ68: 129 | AR68: 84 | AS68: 141 | AT68: 419 | AU68: 263 | AV68: 1201 | AW68: 260 | AX68: 288 | AY68: 7170 | AZ68: 343 | BA68: 0 | BB68: 55 | BC68: 842 | BD68: 296 | BE68: 1303 | BF68: 6059 | BG68: 0 | BH68: 905 | BI68: 8991 | BJ68: 0 | BK68: 165 | BL68: 487
A69: 2011Illinois | B69: 2011 | C69: Democrat | D69: Illinois | E69: 12718402 | F69: 5792 | G69: 11076528 | H69: 31383 | I69: 1353853 | J69: 28856 | K69: -52804 | L69: =K69/E69 -> -0.004151779445 | M69: 216204 | N69: 2823 | O69: 4119 | P69: 7657 | Q69: 3185 | R69: 13930 | S69: 3271 | T69: 1819 | U69: 277 | V69: 1440 | W69: 17548 | X69: 6042 | Y69: 1269 | Z69: 393 | AA69: 0 | AB69: 23491 | AC69: 8420 | AD69: 2533 | AE69: 5569 | AF69: 1315 | AG69: 693 | AH69: 2565 | AI69: 3507 | AJ69: 10274 | AK69: 4496 | AL69: 1521 | AM69: 13889 | AN69: 304 | AO69: 827 | AP69: 2454 | AQ69: 590 | AR69: 3009 | AS69: 1573 | AT69: 6412 | AU69: 4057 | AV69: 105 | AW69: 8384 | AX69: 1002 | AY69: 792 | AZ69: 3012 | BA69: 278 | BB69: 1582 | BC69: 1318 | BD69: 3223 | BE69: 11011 | BF69: 951 | BG69: 49 | BH69: 5233 | BI69: 3075 | BJ69: 352 | BK69: 14507 | BL69: 58
A70: 2011Indiana | B70: 2011 | C70: Democrat | D70: Indiana | E70: 6437155 | F70: 3841 | G70: 5478683 | H70: 24180 | I70: 809158 | J70: 21392 | K70: -15354 | L70: -0.002385215208 | M70: 127874 | N70: 1562 | O70: 371 | P70: 3975 | Q70: 2016 | R70: 7649 | S70: 1930 | T70: 1227 | U70: 79 | V70: 0 | W70: 8595 | X70: 2543 | Y70: 1057 | Z70: 1368 | AA70: 23071 | AB70: 0 | AC70: 916 | AD70: 1321 | AE70: 10177 | AF70: 2241 | AG70: 275 | AH70: 480 | AI70: 952 | AJ70: 7896 | AK70: 1168 | AL70: 469 | AM70: 1824 | AN70: 34 | AO70: 622 | AP70: 511 | AQ70: 90 | AR70: 651 | AS70: 504 | AT70: 2518 | AU70: 3038 | AV70: 70 | AW70: 11109 | AX70: 844 | AY70: 505 | AZ70: 3998 | BA70: 49 | BB70: 3306 | BC70: 235 | BD70: 3879 | BE70: 6326 | BF70: 123 | BG70: 530 | BH70: 1486 | BI70: 1028 | BJ70: 216 | BK70: 2923 | BL70: 117
A71: 2011Iowa | B71: 2011 | C71: Democrat | D71: Iowa | E71: 3027718 | F71: 2514 | G71: 2573313 | H71: 16682 | I71: 370554 | J71: 15638 | K71: -4111 | L71: -0.001357788275 | M71: 70405 | N71: 207 | O71: 967 | P71: 1411 | Q71: 433 | R71: 3297 | S71: 2891 | T71: 424 | U71: 0 | V71: 0 | W71: 707 | X71: 1938 | Y71: 299 | Z71: 161 | AA71: 13725 | AB71: 349 | AC71: 0 | AD71: 1776 | AE71: 387 | AF71: 228 | AG71: 26 | AH71: 487 | AI71: 466 | AJ71: 1687 | AK71: 5634 | AL71: 408 | AM71: 3649 | AN71: 370 | AO71: 6490 | AP71: 2009 | AQ71: 0 | AR71: 185 | AS71: 421 | AT71: 2361 | AU71: 1760 | AV71: 604 | AW71: 993 | AX71: 532 | AY71: 811 | AZ71: 388 | BA71: 65 | BB71: 172 | BC71: 2842 | BD71: 623 | BE71: 2334 | BF71: 1482 | BG71: 38 | BH71: 720 | BI71: 856 | BJ71: 115 | BK71: 2537 | BL71: 140
A72: 2011Kansas | B72: 2011 | C72: Republican | D72: Kansas | E72: 2833584 | F72: 2851 | G72: 2372033 | H72: 15236 | I72: 362782 | J72: 14847 | K72: -10540 | L72: -0.003719670919 | M72: 83640 | N72: 434 | O72: 108 | P72: 2028 | Q72: 998 | R72: 4743 | S72: 5030 | T72: 412 | U72: 74 | V72: 128 | W72: 1581 | X72: 1146 | Y72: 287 | Z72: 264 | AA72: 2760 | AB72: 863 | AC72: 1715 | AD72: 0 | AE72: 1167 | AF72: 519 | AG72: 481 | AH72: 3180 | AI72: 28 | AJ72: 1947 | AK72: 679 | AL72: 1517 | AM72: 22033 | AN72: 270 | AO72: 1648 | AP72: 657 | AQ72: 27 | AR72: 1189 | AS72: 769 | AT72: 780 | AU72: 1223 | AV72: 379 | AW72: 1616 | AX72: 5022 | AY72: 285 | AZ72: 1494 | BA72: 180 | BB72: 1102 | BC72: 104 | BD72: 1066 | BE72: 6575 | BF72: 196 | BG72: 0 | BH72: 1986 | BI72: 772 | BJ72: 0 | BK72: 893 | BL72: 1285
A73: 2011Kentucky | B73: 2011 | C73: Republican | D73: Kentucky | E73: 4316297 | F73: 3382 | G73: 3686232 | H73: 19523 | I73: 505741 | J73: 18525 | K73: 10775 | L73: 0.002496352776 | M73: 110031 | N73: 925 | O73: 0 | P73: 1818 | Q73: 1058 | R73: 2130 | S73: 221 | T73: 176 | U73: 0 | V73: 201 | W73: 7400 | X73: 2725 | Y73: 63 | Z73: 36 | AA73: 4273 | AB73: 11071 | AC73: 536 | AD73: 253 | AE73: 0 | AF73: 1399 | AG73: 71 | AH73: 2076 | AI73: 1019 | AJ73: 3178 | AK73: 475 | AL73: 1248 | AM73: 2793 | AN73: 216 | AO73: 471 | AP73: 1358 | AQ73: 52 | AR73: 1289 | AS73: 553 | AT73: 2174 | AU73: 3916 | AV73: 117 | AW73: 19617 | AX73: 1256 | AY73: 459 | AZ73: 1490 | BA73: 640 | BB73: 1387 | BC73: 0 | BD73: 16852 | BE73: 4661 | BF73: 140 | BG73: 151 | BH73: 5154 | BI73: 1121 | BJ73: 1174 | BK73: 581 | BL73: 57
A74: 2011Louisiana | B74: 2011 | C74: Republican | D74: Louisiana | E74: 4518629 | F74: 3250 | G74: 3865118 | H74: 18789 | I74: 538691 | J74: 17818 | K74: 12545 | L74: 0.002776284577 | M74: 99138 | N74: 3065 | O74: 288 | P74: 2010 | Q74: 2774 | R74: 3957 | S74: 1202 | T74: 358 | U74: 0 | V74: 195 | W74: 5193 | X74: 4425 | Y74: 688 | Z74: 230 | AA74: 1189 | AB74: 1549 | AC74: 468 | AD74: 312 | AE74: 1520 | AF74: 0 | AG74: 120 | AH74: 1221 | AI74: 439 | AJ74: 1163 | AK74: 698 | AL74: 10255 | AM74: 1375 | AN74: 278 | AO74: 176 | AP74: 994 | AQ74: 15 | AR74: 453 | AS74: 1028 | AT74: 1360 | AU74: 2134 | AV74: 277 | AW74: 2641 | AX74: 4235 | AY74: 1531 | AZ74: 455 | BA74: 268 | BB74: 1573 | BC74: 37 | BD74: 2495 | BE74: 30292 | BF74: 179 | BG74: 87 | BH74: 2055 | BI74: 1075 | BJ74: 110 | BK74: 339 | BL74: 357
A75: 2011Maine | B75: 2011 | C75: Democrat | D75: Maine | E75: 1315833 | F75: 1456 | G75: 1120364 | H75: 10400 | I75: 157102 | J75: 9401 | K75: 89 | L75: 6.763776254e-05 | M75: 33818 | N75: 634 | O75: 37 | P75: 325 | Q75: 38 | R75: 829 | S75: 290 | T75: 2481 | U75: 238 | V75: 239 | W75: 4304 | X75: 507 | Y75: 177 | Z75: 0 | AA75: 675 | AB75: 164 | AC75: 275 | AD75: 523 | AE75: 158 | AF75: 138 | AG75: 0 | AH75: 52 | AI75: 4439 | AJ75: 702 | AK75: 296 | AL75: 0 | AM75: 325 | AN75: 10 | AO75: 0 | AP75: 150 | AQ75: 4302 | AR75: 694 | AS75: 144 | AT75: 2589 | AU75: 1439 | AV75: 19 | AW75: 483 | AX75: 25 | AY75: 471 | AZ75: 915 | BA75: 234 | BB75: 587 | BC75: 42 | BD75: 394 | BE75: 1637 | BF75: 182 | BG75: 612 | BH75: 570 | BI75: 88 | BJ75: 43 | BK75: 321 | BL75: 21
A76: 2011Maryland | B76: 2011 | C76: Democrat | D76: Maryland | E76: 5759087 | F76: 4326 | G76: 5008452 | H76: 20478 | I76: 553895 | J76: 18323 | K76: -11062 | L76: -0.00192079057 | M76: 153979 | N76: 228 | O76: 671 | P76: 945 | Q76: 423 | R76: 8595 | S76: 1796 | T76: 1608 | U76: 6652 | V76: 18492 | W76: 7825 | X76: 7113 | Y76: 1170 | Z76: 389 | AA76: 2392 | AB76: 1318 | AC76: 110 | AD76: 689 | AE76: 848 | AF76: 860 | AG76: 1526 | AH76: 0 | AI76: 3470 | AJ76: 2077 | AK76: 810 | AL76: 1109 | AM76: 1469 | AN76: 73 | AO76: 0 | AP76: 1105 | AQ76: 232 | AR76: 9627 | AS76: 797 | AT76: 9222 | AU76: 6686 | AV76: 0 | AW76: 3396 | AX76: 845 | AY76: 276 | AZ76: 14158 | BA76: 197 | BB76: 2882 | BC76: 0 | BD76: 1942 | BE76: 3619 | BF76: 223 | BG76: 40 | BH76: 22089 | BI76: 1525 | BJ76: 2027 | BK76: 353 | BL76: 80
A77: 2011Massachusetts | B77: 2011 | C77: Democrat | D77: Massachusetts | E77: 6515057 | F77: 3680 | G77: 5658768 | H77: 20357 | I77: 656441 | J77: 18778 | K77: -6039 | L77: -0.000926929726 | M77: 139830 | N77: 1201 | O77: 225 | P77: 1017 | Q77: 167 | R77: 11556 | S77: 1388 | T77: 9445 | U77: 399 | V77: 676 | W77: 11396 | X77: 3264 | Y77: 733 | Z77: 412 | AA77: 2991 | AB77: 640 | AC77: 138 | AD77: 969 | AE77: 180 | AF77: 977 | AG77: 4006 | AH77: 2762 | AI77: 0 | AJ77: 2629 | AK77: 862 | AL77: 356 | AM77: 1261 | AN77: 596 | AO77: 637 | AP77: 163 | AQ77: 12010 | AR77: 8332 | AS77: 199 | AT77: 19431 | AU77: 3964 | AV77: 61 | AW77: 1757 | AX77: 90 | AY77: 178 | AZ77: 6538 | BA77: 10182 | BB77: 1621 | BC77: 44 | BD77: 371 | BE77: 5203 | BF77: 548 | BG77: 2246 | BH77: 2984 | BI77: 1673 | BJ77: 911 | BK77: 441 | BL77: 0
A78: 2011Michigan | B78: 2011 | C78: Democrat | D78: Michigan | E78: 9766574 | F78: 4376 | G78: 8340767 | H78: 29076 | I78: 1242917 | J78: 25401 | K78: -47347 | L78: -0.004847861696 | M78: 139158 | N78: 3527 | O78: 3456 | P78: 3840 | Q78: 2054 | R78: 7793 | S78: 3425 | T78: 1656 | U78: 0 | V78: 256 | W78: 17712 | X78: 4254 | Y78: 630 | Z78: 882 | AA78: 9897 | AB78: 7668 | AC78: 1709 | AD78: 1148 | AE78: 2578 | AF78: 955 | AG78: 599 | AH78: 1035 | AI78: 2861 | AJ78: 0 | AK78: 2671 | AL78: 715 | AM78: 2509 | AN78: 84 | AO78: 439 | AP78: 1215 | AQ78: 73 | AR78: 1849 | AS78: 508 | AT78: 6087 | AU78: 3405 | AV78: 159 | AW78: 11224 | AX78: 917 | AY78: 647 | AZ78: 2864 | BA78: 385 | BB78: 2185 | BC78: 571 | BD78: 3106 | BE78: 9935 | BF78: 642 | BG78: 0 | BH78: 2327 | BI78: 1430 | BJ78: 417 | BK78: 4018 | BL78: 841
A79: 2011Minnesota | B79: 2011 | C79: Democrat | D79: Minnesota | E79: 5277329 | F79: 3380 | G79: 4505462 | H79: 20788 | I79: 646176 | J79: 19647 | K79: -2224 | L79: -0.0004214253081 | M79: 101029 | N79: 123 | O79: 893 | P79: 2314 | Q79: 951 | R79: 6638 | S79: 2662 | T79: 74 | U79: 86 | V79: 367 | W79: 2820 | X79: 840 | Y79: 901 | Z79: 402 | AA79: 8209 | AB79: 786 | AC79: 6175 | AD79: 606 | AE79: 755 | AF79: 573 | AG79: 321 | AH79: 424 | AI79: 970 | AJ79: 5164 | AK79: 0 | AL79: 549 | AM79: 1345 | AN79: 1457 | AO79: 1936 | AP79: 2682 | AQ79: 21 | AR79: 631 | AS79: 540 | AT79: 2416 | AU79: 845 | AV79: 7574 | AW79: 1961 | AX79: 546 | AY79: 1800 | AZ79: 870 | BA79: 0 | BB79: 447 | BC79: 5305 | BD79: 874 | BE79: 3062 | BF79: 919 | BG79: 177 | BH79: 1034 | BI79: 1413 | BJ79: 92 | BK79: 19255 | BL79: 224
A80: 2011Mississippi | B80: 2011 | C80: Republican | D80: Mississippi | E80: 2943021 | F80: 3088 | G80: 2534036 | H80: 16620 | I80: 332934 | J80: 15960 | K80: -86 | L80: -2.922167392e-05 | M80: 68511 | N80: 8922 | O80: 117 | P80: 556 | Q80: 2315 | R80: 4723 | S80: 484 | T80: 54 | U80: 0 | V80: 415 | W80: 6152 | X80: 3136 | Y80: 369 | Z80: 55 | AA80: 2068 | AB80: 611 | AC80: 650 | AD80: 66 | AE80: 1626 | AF80: 7139 | AG80: 0 | AH80: 265 | AI80: 1445 | AJ80: 1610 | AK80: 614 | AL80: 0 | AM80: 1581 | AN80: 0 | AO80: 118 | AP80: 84 | AQ80: 65 | AR80: 269 | AS80: 1075 | AT80: 364 | AU80: 483 | AV80: 0 | AW80: 991 | AX80: 566 | AY80: 74 | AZ80: 2568 | BA80: 41 | BB80: 398 | BC80: 6 | BD80: 7683 | BE80: 5243 | BF80: 332 | BG80: 0 | BH80: 1453 | BI80: 286 | BJ80: 303 | BK80: 1136 | BL80: 0
A81: 2011Missouri | B81: 2011 | C81: Republican | D81: Missouri | E81: 5937896 | F81: 4110 | G81: 4963040 | H81: 26160 | I81: 801046 | J81: 25054 | K81: 11035 | L81: 0.00185840237 | M81: 149439 | N81: 1395 | O81: 2043 | P81: 2356 | Q81: 6168 | R81: 8386 | S81: 3144 | T81: 1516 | U81: 0 | V81: 215 | W81: 4513 | X81: 2964 | Y81: 871 | Z81: 560 | AA81: 20161 | AB81: 4404 | AC81: 4811 | AD81: 20884 | AE81: 1993 | AF81: 1728 | AG81: 291 | AH81: 716 | AI81: 463 | AJ81: 2830 | AK81: 2026 | AL81: 1641 | AM81: 0 | AN81: 845 | AO81: 4860 | AP81: 1544 | AQ81: 769 | AR81: 1114 | AS81: 1016 | AT81: 2904 | AU81: 3669 | AV81: 977 | AW81: 3240 | AX81: 6073 | AY81: 777 | AZ81: 1810 | BA81: 359 | BB81: 267 | BC81: 361 | BD81: 2676 | BE81: 10293 | BF81: 1697 | BG81: 88 | BH81: 2684 | BI81: 2518 | BJ81: 196 | BK81: 1503 | BL81: 1120
A82: 2011Montana | B82: 2011 | C82: Republican | D82: Montana | E82: 987076 | F82: 1359 | G82: 828254 | H82: 8593 | I82: 122210 | J82: 8386 | K82: 2349 | L82: 0.002379755966 | M82: 33553 | N82: 449 | O82: 1118 | P82: 1971 | Q82: 49 | R82: 3033 | S82: 2856 | T82: 58 | U82: 365 | V82: 0 | W82: 291 | X82: 231 | Y82: 32 | Z82: 1543 | AA82: 765 | AB82: 646 | AC82: 417 | AD82: 845 | AE82: 0 | AF82: 0 | AG82: 71 | AH82: 57 | AI82: 10 | AJ82: 353 | AK82: 969 | AL82: 0 | AM82: 158 | AN82: 0 | AO82: 384 | AP82: 688 | AQ82: 0 | AR82: 889 | AS82: 264 | AT82: 422 | AU82: 1173 | AV82: 360 | AW82: 321 | AX82: 96 | AY82: 1959 | AZ82: 840 | BA82: 0 | BB82: 77 | BC82: 227 | BD82: 266 | BE82: 1329 | BF82: 1232 | BG82: 53 | BH82: 278 | BI82: 3835 | BJ82: 14 | BK82: 146 | BL82: 2413
A83: 2011Nebraska | B83: 2011 | C83: Republican | D83: Nebraska | E83: 1817126 | F83: 2304 | G83: 1505191 | H83: 11978 | I83: 253269 | J83: 10841 | K83: -739 | L83: -0.0004066861627 | M83: 52070 | N83: 169 | O83: 721 | P83: 1646 | Q83: 161 | R83: 5124 | S83: 3245 | T83: 381 | U83: 0 | V83: 29 | W83: 1105 | X83: 434 | Y83: 275 | Z83: 506 | AA83: 1415 | AB83: 615 | AC83: 9575 | AD83: 3040 | AE83: 352 | AF83: 222 | AG83: 122 | AH83: 318 | AI83: 0 | AJ83: 683 | AK83: 1455 | AL83: 424 | AM83: 1848 | AN83: 64 | AO83: 0 | AP83: 240 | AQ83: 0 | AR83: 119 | AS83: 242 | AT83: 544 | AU83: 829 | AV83: 292 | AW83: 268 | AX83: 1255 | AY83: 1556 | AZ83: 252 | BA83: 0 | BB83: 243 | BC83: 2999 | BD83: 226 | BE83: 5343 | BF83: 734 | BG83: 0 | BH83: 615 | BI83: 835 | BJ83: 24 | BK83: 560 | BL83: 965
A84: 2011Nevada | B84: 2011 | C84: Democrat | D84: Nevada | E84: 2688336 | F84: 3578 | G84: 2084668 | H84: 23272 | I84: 480317 | J84: 23514 | K84: -5598 | L84: -0.002082328995 | M84: 110345 | N84: 280 | O84: 597 | P84: 10142 | Q84: 310 | R84: 40114 | S84: 2714 | T84: 189 | U84: 184 | V84: 983 | W84: 2923 | X84: 1731 | Y84: 4093 | Z84: 3929 | AA84: 1668 | AB84: 855 | AC84: 114 | AD84: 602 | AE84: 628 | AF84: 78 | AG84: 49 | AH84: 931 | AI84: 256 | AJ84: 1663 | AK84: 1055 | AL84: 203 | AM84: 335 | AN84: 1137 | AO84: 32 | AP84: 0 | AQ84: 0 | AR84: 2118 | AS84: 2136 | AT84: 1516 | AU84: 1333 | AV84: 0 | AW84: 1354 | AX84: 258 | AY84: 1691 | AZ84: 570 | BA84: 86 | BB84: 165 | BC84: 588 | BD84: 96 | BE84: 7249 | BF84: 3365 | BG84: 0 | BH84: 1740 | BI84: 4680 | BJ84: 0 | BK84: 2672 | BL84: 933
A85: 2011New Hampshire | B85: 2011 | C85: Democrat | D85: New Hampshire | E85: 1305678 | F85: 2046 | G85: 1141236 | H85: 9064 | I85: 122129 | J85: 8186 | K85: -6277 | L85: -0.004807464015 | M85: 37000 | N85: 193 | O85: 0 | P85: 246 | Q85: 22 | R85: 547 | S85: 403 | T85: 1617 | U85: 20 | V85: 68 | W85: 1970 | X85: 535 | Y85: 0 | Z85: 0 | AA85: 478 | AB85: 470 | AC85: 47 | AD85: 0 | AE85: 0 | AF85: 0 | AG85: 3080 | AH85: 222 | AI85: 15526 | AJ85: 155 | AK85: 104 | AL85: 160 | AM85: 153 | AN85: 230 | AO85: 33 | AP85: 186 | AQ85: 0 | AR85: 294 | AS85: 186 | AT85: 1471 | AU85: 1297 | AV85: 47 | AW85: 248 | AX85: 0 | AY85: 198 | AZ85: 1015 | BA85: 608 | BB85: 588 | BC85: 86 | BD85: 126 | BE85: 605 | BF85: 158 | BG85: 2138 | BH85: 880 | BI85: 428 | BJ85: 0 | BK85: 0 | BL85: 162
A86: 2011New Jersey | B86: 2011 | C86: Democrat | D86: New Jersey | E86: 8719952 | F86: 4595 | G86: 7825661 | H86: 21158 | I86: 693380 | J86: 21063 | K86: -76175 | L86: -0.008735713224 | M86: 140194 | N86: 189 | O86: 1198 | P86: 3784 | Q86: 57 | R86: 5986 | S86: 2203 | T86: 1924 | U86: 2100 | V86: 781 | W86: 12907 | X86: 4268 | Y86: 264 | Z86: 256 | AA86: 3690 | AB86: 718 | AC86: 332 | AD86: 317 | AE86: 102 | AF86: 871 | AG86: 624 | AH86: 5335 | AI86: 4675 | AJ86: 1889 | AK86: 1261 | AL86: 510 | AM86: 583 | AN86: 49 | AO86: 312 | AP86: 899 | AQ86: 499 | AR86: 0 | AS86: 355 | AT86: 40815 | AU86: 2482 | AV86: 61 | AW86: 1121 | AX86: 773 | AY86: 360 | AZ86: 19733 | BA86: 463 | BB86: 1586 | BC86: 0 | BD86: 1412 | BE86: 3801 | BF86: 256 | BG86: 0 | BH86: 4458 | BI86: 2454 | BJ86: 1252 | BK86: 214 | BL86: 15
A87: 2011New Mexico | B87: 2011 | C87: Democrat | D87: New Mexico | E87: 2055293 | F87: 2718 | G87: 1753413 | H87: 15690 | I87: 228218 | J87: 13801 | K87: 699 | L87: 0.0003400974946 | M87: 62130 | N87: 410 | O87: 416 | P87: 7444 | Q87: 682 | R87: 7066 | S87: 5525 | T87: 0 | U87: 0 | V87: 212 | W87: 2806 | X87: 676 | Y87: 81 | Z87: 355 | AA87: 466 | AB87: 2030 | AC87: 0 | AD87: 1333 | AE87: 87 | AF87: 184 | AG87: 510 | AH87: 2277 | AI87: 252 | AJ87: 908 | AK87: 438 | AL87: 556 | AM87: 1183 | AN87: 544 | AO87: 353 | AP87: 2099 | AQ87: 114 | AR87: 245 | AS87: 0 | AT87: 1445 | AU87: 522 | AV87: 264 | AW87: 1742 | AX87: 234 | AY87: 916 | AZ87: 492 | BA87: 0 | BB87: 145 | BC87: 240 | BD87: 899 | BE87: 13633 | BF87: 303 | BG87: 71 | BH87: 425 | BI87: 924 | BJ87: 0 | BK87: 340 | BL87: 283
A88: 2011New York | B88: 2011 | C88: Democrat | D88: New York | E88: 19248685 | F88: 7023 | G88: 17055260 | H88: 37016 | I88: 1756105 | J88: 32216 | K88: =M88-INDEX($M$55:$BL$55,1,MATCH(D88,$M$2:$BL$2,0)) -> -95591 | L88: -0.004966105477 | M88: 282209 | N88: 1812 | O88: 6124 | P88: 2821 | Q88: 1041 | R88: 25761 | S88: 3724 | T88: 15123 | U88: 1124 | V88: 3702 | W88: 29344 | X88: 10584 | Y88: 1002 | Z88: 434 | AA88: 6914 | AB88: 2198 | AC88: 928 | AD88: 838 | AE88: 2414 | AF88: 1495 | AG88: 2915 | AH88: 5037 | AI88: 14646 | AJ88: 3936 | AK88: 1824 | AL88: 401 | AM88: 1417 | AN88: 391 | AO88: 579 | AP88: 1785 | AQ88: 2972 | AR88: 41450 | AS88: 461 | AT88: 0 | AU88: 9336 | AV88: 374 | AW88: 5191 | AX88: 1425 | AY88: 2189 | AZ88: 26596 | BA88: 1393 | BB88: 6947 | BC88: 112 | BD88: 2660 | BE88: 9151 | BF88: 773 | BG88: 3882 | BH88: 10800 | BI88: 2986 | BJ88: 631 | BK88: 1878 | BL88: 688
A89: 2011North Carolina | B89: 2011 | C89: Democrat | D89: North Carolina | E89: 9539412 | F89: 5364 | G89: 8070238 | H89: 36924 | I89: 1160510 | J89: 33476 | K89: 40144 | L89: 0.004208225832 | M89: 265291 | N89: 5420 | O89: 3991 | P89: 4286 | Q89: 327 | R89: 15373 | S89: 3919 | T89: 1975 | U89: 954 | V89: 1135 | W89: 28044 | X89: 16192 | Y89: 1806 | Z89: 675 | AA89: 5971 | AB89: 3228 | AC89: 654 | AD89: 4995 | AE89: 1637 | AF89: 2936 | AG89: 824 | AH89: 10485 | AI89: 9053 | AJ89: 7530 | AK89: 1294 | AL89: 1273 | AM89: 2638 | AN89: 563 | AO89: 1056 | AP89: 1048 | AQ89: 2078 | AR89: 10374 | AS89: 1737 | AT89: 18321 | AU89: 0 | AV89: 189 | AW89: 10187 | AX89: 1390 | AY89: 1175 | AZ89: 9450 | BA89: 444 | BB89: 20427 | BC89: 565 | BD89: 6057 | BE89: 6621 | BF89: 961 | BG89: 212 | BH89: 27302 | BI89: 3295 | BJ89: 2780 | BK89: 2291 | BL89: 153
A90: 2011North Dakota | B90: 2011 | C90: Republican | D90: North Dakota | E90: 675161 | F90: 1047 | G90: 559906 | H90: 6503 | I90: 79837 | J90: 6140 | K90: 5947 | L90: 0.008808269435 | M90: 32510 | N90: 97 | O90: 393 | P90: 1313 | Q90: 249 | R90: 1356 | S90: 1229 | T90: 0 | U90: 84 | V90: 0 | W90: 459 | X90: 364 | Y90: 138 | Z90: 1209 | AA90: 571 | AB90: 130 | AC90: 208 | AD90: 75 | AE90: 0 | AF90: 422 | AG90: 50 | AH90: 10 | AI90: 369 | AJ90: 328 | AK90: 12244 | AL90: 80 | AM90: 330 | AN90: 1227 | AO90: 218 | AP90: 845 | AQ90: 0 | AR90: 183 | AS90: 99 | AT90: 264 | AU90: 900 | AV90: 0 | AW90: 286 | AX90: 59 | AY90: 264 | AZ90: 652 | BA90: 0 | BB90: 1 | BC90: 1293 | BD90: 113 | BE90: 1862 | BF90: 429 | BG90: 0 | BH90: 166 | BI90: 404 | BJ90: 0 | BK90: 1398 | BL90: 139
A91: 2011Ohio | B91: 2011 | C91: Democrat | D91: Ohio | E91: 11418944 | F91: 4418 | G91: 9764366 | H91: 32087 | I91: 1425709 | J91: 29701 | K91: -14271 | L91: -0.001249765302 | M91: 191778 | N91: 1567 | O91: 1637 | P91: 6763 | Q91: 1952 | R91: 9032 | S91: 2690 | T91: 1189 | U91: 263 | V91: 587 | W91: 16492 | X91: 4290 | Y91: 1044 | Z91: 312 | AA91: 7027 | AB91: 11588 | AC91: 1146 | AD91: 657 | AE91: 12744 | AF91: 1872 | AG91: 0 | AH91: 4982 | AI91: 2101 | AJ91: 14330 | AK91: 1788 | AL91: 691 | AM91: 2003 | AN91: 101 | AO91: 1176 | AP91: 1851 | AQ91: 1992 | AR91: 3936 | AS91: 255 | AT91: 8784 | AU91: 4572 | AV91: 204 | AW91: 0 | AX91: 2333 | AY91: 1326 | AZ91: 14292 | BA91: 369 | BB91: 3826 | BC91: 34 | BD91: 6468 | BE91: 11987 | BF91: 691 | BG91: 68 | BH91: 5425 | BI91: 1979 | BJ91: 7548 | BK91: 2534 | BL91: 1280
A92: 2011Oklahoma | B92: 2011 | C92: Republican | D92: Oklahoma | E92: 3742698 | F92: 2585 | G92: 3089041 | H92: 15209 | I92: 528498 | J92: 15584 | K92: 27869 | L92: 0.007446232638 | M92: 108878 | N92: 591 | O92: 1137 | P92: 3770 | Q92: 6894 | R92: 8233 | S92: 3273 | T92: 97 | U92: 66 | V92: 191 | W92: 6056 | X92: 3514 | Y92: 140 | Z92: 21 | AA92: 2179 | AB92: 2113 | AC92: 580 | AD92: 4626 | AE92: 1398 | AF92: 1934 | AG92: 271 | AH92: 432 | AI92: 160 | AJ92: 1038 | AK92: 497 | AL92: 199 | AM92: 5781 | AN92: 803 | AO92: 1979 | AP92: 705 | AQ92: 0 | AR92: 391 | AS92: 403 | AT92: 1858 | AU92: 1322 | AV92: 928 | AW92: 1608 | AX92: 0 | AY92: 917 | AZ92: 1116 | BA92: 152 | BB92: 2015 | BC92: 600 | BD92: 1700 | BE92: 31595 | BF92: 587 | BG92: 0 | BH92: 1013 | BI92: 1246 | BJ92: 44 | BK92: 942 | BL92: 1763
A93: 2011Oregon | B93: 2011 | C93: Democrat | D93: Oregon | E93: 3828714 | F93: 3857 | G93: 3128121 | H93: 20096 | I93: 549332 | J93: 19087 | K93: 18111 | L93: 0.004730308924 | M93: 127906 | N93: 758 | O93: 1935 | P93: 7911 | Q93: 988 | R93: 34214 | S93: 2110 | T93: 949 | U93: 251 | V93: 349 | W93: 3384 | X93: 1946 | Y93: 2491 | Z93: 6236 | AA93: 1350 | AB93: 1371 | AC93: 659 | AD93: 1263 | AE93: 71 | AF93: 0 | AG93: 269 | AH93: 453 | AI93: 1423 | AJ93: 1652 | AK93: 1413 | AL93: 7 | AM93: 1172 | AN93: 1079 | AO93: 324 | AP93: 7222 | AQ93: 427 | AR93: 1322 | AS93: 537 | AT93: 2056 | AU93: 1099 | AV93: 313 | AW93: 949 | AX93: 2034 | AY93: 0 | AZ93: 1407 | BA93: 0 | BB93: 370 | BC93: 417 | BD93: 673 | BE93: 4498 | BF93: 3443 | BG93: 176 | BH93: 1179 | BI93: 21862 | BJ93: 66 | BK93: 914 | BL93: 914
A94: 2011Pennsylvania | B94: 2011 | C94: Democrat | D94: Pennsylvania | E94: 12610486 | F94: 5092 | G94: 11099077 | H94: 27780 | I94: 1224564 | J94: 25195 | K94: 19164 | L94: 0.001519687663 | M94: 234291 | N94: 1332 | O94: 759 | P94: 2278 | Q94: 582 | R94: 10672 | S94: 2491 | T94: 4150 | U94: 5177 | V94: 1401 | W94: 19299 | X94: 4627 | Y94: 495 | Z94: 236 | AA94: 3902 | AB94: 4086 | AC94: 1176 | AD94: 2323 | AE94: 4013 | AF94: 615 | AG94: 608 | AH94: 17751 | AI94: 6284 | AJ94: 4406 | AK94: 853 | AL94: 1238 | AM94: 1761 | AN94: 338 | AO94: 582 | AP94: 1057 | AQ94: 1326 | AR94: 36133 | AS94: 325 | AT94: 29436 | AU94: 11254 | AV94: 195 | AW94: 13075 | AX94: 283 | AY94: 1594 | AZ94: 0 | BA94: 799 | BB94: 3438 | BC94: 142 | BD94: 3742 | BE94: 7006 | BF94: 1246 | BG94: 446 | BH94: 8419 | BI94: 3688 | BJ94: 4631 | BK94: 2426 | BL94: 195
A95: 2011Rhode Island | B95: 2011 | C95: Democrat | D95: Rhode Island | E95: 1040022 | F95: 1440 | G95: 903786 | H95: 8645 | I95: 101689 | J95: 7813 | K95: -4296 | L95: -0.004130681851 | M95: 26769 | N95: 0 | O95: 0 | P95: 214 | Q95: 0 | R95: 1949 | S95: 301 | T95: 2613 | U95: 0 | V95: 0 | W95: 2230 | X95: 476 | Y95: 0 | Z95: 107 | AA95: 373 | AB95: 41 | AC95: 82 | AD95: 374 | AE95: 211 | AF95: 121 | AG95: 228 | AH95: 472 | AI95: 7715 | AJ95: 178 | AK95: 27 | AL95: 0 | AM95: 109 | AN95: 0 | AO95: 0 | AP95: 0 | AQ95: 941 | AR95: 1224 | AS95: 93 | AT95: 2776 | AU95: 259 | AV95: 0 | AW95: 60 | AX95: 0 | AY95: 57 | AZ95: 1125 | BA95: 0 | BB95: 223 | BC95: 0 | BD95: 210 | BE95: 207 | BF95: 181 | BG95: 621 | BH95: 485 | BI95: 262 | BJ95: 199 | BK95: 2 | BL95: 23
A96: 2011South Carolina | B96: 2011 | C96: Republican | D96: South Carolina | E96: 4624180 | F96: 3871 | G96: 3899705 | H96: 25459 | I96: 546666 | J96: 21151 | K96: 36218 | L96: 0.007832307566 | M96: 157644 | N96: 2999 | O96: 2421 | P96: 1971 | Q96: 1333 | R96: 6592 | S96: 1000 | T96: 1752 | U96: 841 | V96: 589 | W96: 15476 | X96: 16355 | Y96: 712 | Z96: 55 | AA96: 2371 | AB96: 3249 | AC96: 1379 | AD96: 1885 | AE96: 2454 | AF96: 878 | AG96: 652 | AH96: 3807 | AI96: 730 | AJ96: 4483 | AK96: 471 | AL96: 2163 | AM96: 1522 | AN96: 915 | AO96: 204 | AP96: 1017 | AQ96: 372 | AR96: 4241 | AS96: 598 | AT96: 11317 | AU96: 23102 | AV96: 271 | AW96: 6327 | AX96: 1008 | AY96: 833 | AZ96: 3523 | BA96: 453 | BB96: 0 | BC96: 62 | BD96: 3324 | BE96: 8623 | BF96: 181 | BG96: 91 | BH96: 7879 | BI96: 2510 | BJ96: 1680 | BK96: 341 | BL96: 632
A97: 2011South Dakota | B97: 2011 | C97: Republican | D97: South Dakota | E97: 814175 | F97: 1297 | G97: 688436 | H97: 7824 | I97: 94655 | J97: 6542 | K97: -1877 | L97: -0.002305401173 | M97: 27506 | N97: 0 | O97: 554 | P97: 1422 | Q97: 659 | R97: 1286 | S97: 1021 | T97: 0 | U97: 0 | V97: 0 | W97: 101 | X97: 69 | Y97: 0 | Z97: 186 | AA97: 267 | AB97: 285 | AC97: 4772 | AD97: 144 | AE97: 211 | AF97: 0 | AG97: 0 | AH97: 254 | AI97: 113 | AJ97: 239 | AK97: 5342 | AL97: 129 | AM97: 354 | AN97: 232 | AO97: 1695 | AP97: 110 | AQ97: 0 | AR97: 441 | AS97: 513 | AT97: 6 | AU97: 166 | AV97: 2060 | AW97: 84 | AX97: 40 | AY97: 15 | AZ97: 57 | BA97: 7 | BB97: 529 | BC97: 0 | BD97: 0 | BE97: 1156 | BF97: 560 | BG97: 0 | BH97: 79 | BI97: 557 | BJ97: 0 | BK97: 481 | BL97: 1310
A98: 2011Tennessee | B98: 2011 | C98: Republican | D98: Tennessee | E98: 6333466 | F98: 4450 | G98: 5342978 | H98: 29750 | I98: 794556 | J98: 26578 | K98: 16726 | L98: 0.002640892049 | M98: 170969 | N98: 9326 | O98: 531 | P98: 1346 | Q98: 7393 | R98: 7130 | S98: 1372 | T98: 150 | U98: 155 | V98: 307 | W98: 15491 | X98: 17507 | Y98: 179 | Z98: 0 | AA98: 8593 | AB98: 5645 | AC98: 387 | AD98: 1805 | AE98: 13884 | AF98: 1901 | AG98: 9 | AH98: 1135 | AI98: 1690 | AJ98: 5983 | AK98: 445 | AL98: 9172 | AM98: 3795 | AN98: 43 | AO98: 631 | AP98: 883 | AQ98: 132 | AR98: 1396 | AS98: 381 | AT98: 4921 | AU98: 9353 | AV98: 50 | AW98: 5944 | AX98: 3166 | AY98: 726 | AZ98: 3360 | BA98: 14 | BB98: 5531 | BC98: 181 | BD98: 0 | BE98: 7009 | BF98: 200 | BG98: 38 | BH98: 6098 | BI98: 2852 | BJ98: 1385 | BK98: 1213 | BL98: 131
A99: 2011Texas | B99: 2011 | C99: Republican | D99: Texas | E99: 25327104 | F99: 10987 | G99: 20984855 | H99: 65490 | I99: 3648260 | J99: 63784 | K99: 109887 | L99: 0.004338711603 | M99: 514726 | N99: 8747 | O99: 6670 | P99: 20073 | Q99: 16461 | R99: 58992 | S99: 19126 | T99: 2927 | U99: 884 | V99: 2276 | W99: 35777 | X99: 17401 | Y99: 6106 | Z99: 4379 | AA99: 15064 | AB99: 10265 | AC99: 3236 | AD99: 12766 | AE99: 6616 | AF99: 25513 | AG99: 1357 | AH99: 9443 | AI99: 5035 | AJ99: 15654 | AK99: 7691 | AL99: 6048 | AM99: 13473 | AN99: 537 | AO99: 3837 | AP99: 7793 | AQ99: 459 | AR99: 7578 | AS99: 15225 | AT99: 26155 | AU99: 14956 | AV99: 809 | AW99: 12315 | AX99: 19302 | AY99: 3743 | AZ99: 9107 | BA99: 1297 | BB99: 4075 | BC99: 1486 | BD99: 10788 | BE99: 0 | BF99: 5234 | BG99: 349 | BH99: 13231 | BI99: 15325 | BJ99: 663 | BK99: 5982 | BL99: 2500
A100: 2011Utah | B100: 2011 | C100: Republican | D100: Utah | E100: 2769627 | F100: 2949 | G100: 2295961 | H100: 19215 | I100: 373984 | J100: 17246 | K100: 12006 | L100: 0.004334879751 | M100: 85217 | N100: 486 | O100: 2151 | P100: 6585 | Q100: 422 | R100: 18237 | S100: 3986 | T100: 562 | U100: 0 | V100: 132 | W100: 1643 | X100: 1052 | Y100: 1701 | Z100: 7538 | AA100: 1447 | AB100: 545 | AC100: 290 | AD100: 1146 | AE100: 611 | AF100: 494 | AG100: 0 | AH100: 342 | AI100: 959 | AJ100: 1099 | AK100: 939 | AL100: 143 | AM100: 511 | AN100: 1241 | AO100: 195 | AP100: 4315 | AQ100: 34 | AR100: 506 | AS100: 1707 | AT100: 1937 | AU100: 1653 | AV100: 2 | AW100: 2584 | AX100: 150 | AY100: 2037 | AZ100: 1496 | BA100: 0 | BB100: 309 | BC100: 128 | BD100: 549 | BE100: 4507 | BF100: 0 | BG100: 122 | BH100: 2413 | BI100: 4825 | BJ100: 270 | BK100: 158 | BL100: 1058
A101: 2011Vermont | B101: 2011 | C101: Democrat | D101: Vermont | E101: 621354 | F101: 940 | G101: 537304 | H101: 5021 | I101: 60719 | J101: 4634 | K101: 2291 | L101: 0.00368710912 | M101: 20463 | N101: 0 | O101: 580 | P101: 310 | Q101: 0 | R101: 819 | S101: 529 | T101: 2105 | U101: 107 | V101: 27 | W101: 366 | X101: 101 | Y101: 143 | Z101: 0 | AA101: 386 | AB101: 258 | AC101: 0 | AD101: 7 | AE101: 627 | AF101: 41 | AG101: 322 | AH101: 361 | AI101: 2378 | AJ101: 335 | AK101: 206 | AL101: 0 | AM101: 69 | AN101: 0 | AO101: 0 | AP101: 15 | AQ101: 2244 | AR101: 962 | AS101: 56 | AT101: 3723 | AU101: 250 | AV101: 0 | AW101: 383 | AX101: 0 | AY101: 124 | AZ101: 389 | BA101: 401 | BB101: 21 | BC101: 0 | BD101: 327 | BE101: 185 | BF101: 182 | BG101: 0 | BH101: 740 | BI101: 156 | BJ101: 53 | BK101: 137 | BL101: 38
A102: 2011Virginia | B102: 2011 | C102: Democrat | D102: Virginia | E102: 7996552 | F102: 5256 | G102: 6789620 | H102: 30962 | I102: 889751 | J102: 30111 | K102: 27903 | L102: 0.003489378922 | M102: 257130 | N102: 4930 | O102: 3202 | P102: 4679 | Q102: 645 | R102: 19371 | S102: 4908 | T102: 5376 | U102: 961 | V102: 6854 | W102: 17773 | X102: 8715 | Y102: 2917 | Z102: 434 | AA102: 4000 | AB102: 2703 | AC102: 1503 | AD102: 892 | AE102: 3630 | AF102: 2496 | AG102: 2855 | AH102: 22051 | AI102: 5386 | AJ102: 7323 | AK102: 834 | AL102: 1682 | AM102: 2277 | AN102: 617 | AO102: 256 | AP102: 1717 | AQ102: 1344 | AR102: 7327 | AS102: 1014 | AT102: 12455 | AU102: 22753 | AV102: 462 | AW102: 9570 | AX102: 853 | AY102: 3499 | AZ102: 12009 | BA102: 1897 | BB102: 6612 | BC102: 908 | BD102: 7482 | BE102: 11655 | BF102: 1426 | BG102: 173 | BH102: 0 | BI102: 4615 | BJ102: 9041 | BK102: 858 | BL102: 190
A103: 2011Washington | B103: 2011 | C103: Democrat | D103: Washington | E103: 6748474 | F103: 4248 | G103: 5565069 | H103: 27197 | I103: 919925 | J103: 27221 | K103: 17863 | L103: 0.002646968781 | M103: 208507 | N103: 1821 | O103: 5266 | P103: 12397 | Q103: 756 | R103: 38421 | S103: 3938 | T103: 1026 | U103: 0 | V103: 358 | W103: 6094 | X103: 8705 | Y103: 5940 | Z103: 10895 | AA103: 2062 | AB103: 2303 | AC103: 1000 | AD103: 2820 | AE103: 1271 | AF103: 1016 | AG103: 1313 | AH103: 1899 | AI103: 1580 | AJ103: 3720 | AK103: 1543 | AL103: 1110 | AM103: 3307 | AN103: 2125 | AO103: 673 | AP103: 4925 | AQ103: 824 | AR103: 2006 | AS103: 1569 | AT103: 4512 | AU103: 3870 | AV103: 189 | AW103: 2686 | AX103: 765 | AY103: 29168 | AZ103: 2296 | BA103: 463 | BB103: 1519 | BC103: 227 | BD103: 2342 | BE103: 15491 | BF103: 4789 | BG103: 119 | BH103: 4233 | BI103: 0 | BJ103: 157 | BK103: 1491 | BL103: 1507
A104: 2011West Virginia | B104: 2011 | C104: Republican | D104: West Virginia | E104: 1836614 | F104: 1681 | G104: 1609110 | H104: 9854 | I104: 172262 | J104: 8430 | K104: 4112 | L104: 0.002238902676 | M104: 50068 | N104: 221 | O104: 598 | P104: 50 | Q104: 225 | R104: 1442 | S104: 124 | T104: 594 | U104: 89 | V104: 300 | W104: 2949 | X104: 1296 | Y104: 147 | Z104: 120 | AA104: 1331 | AB104: 210 | AC104: 0 | AD104: 0 | AE104: 515 | AF104: 326 | AG104: 45 | AH104: 7515 | AI104: 236 | AJ104: 459 | AK104: 0 | AL104: 0 | AM104: 309 | AN104: 60 | AO104: 78 | AP104: 293 | AQ104: 160 | AR104: 1431 | AS104: 0 | AT104: 2017 | AU104: 3865 | AV104: 0 | AW104: 8545 | AX104: 97 | AY104: 132 | AZ104: 4205 | BA104: 284 | BB104: 1857 | BC104: 0 | BD104: 546 | BE104: 1574 | BF104: 114 | BG104: 23 | BH104: 5561 | BI104: 83 | BJ104: 0 | BK104: 42 | BL104: 0
A105: 2011Wisconsin | B105: 2011 | C105: Democrat | D105: Wisconsin | E105: 5647213 | F105: 2653 | G105: 4846550 | H105: 18735 | I105: 675623 | J105: 19411 | K105: 4069 | L105: 0.0007205324113 | M105: 109439 | N105: 708 | O105: 432 | P105: 4045 | Q105: 335 | R105: 6637 | S105: 2592 | T105: 993 | U105: 219 | V105: 123 | W105: 4338 | X105: 1745 | Y105: 1108 | Z105: 566 | AA105: 25521 | AB105: 4017 | AC105: 3306 | AD105: 418 | AE105: 1040 | AF105: 850 | AG105: 12 | AH105: 147 | AI105: 733 | AJ105: 5623 | AK105: 17927 | AL105: 983 | AM105: 2090 | AN105: 143 | AO105: 483 | AP105: 663 | AQ105: 480 | AR105: 378 | AS105: 714 | AT105: 2213 | AU105: 2120 | AV105: 1383 | AW105: 1358 | AX105: 118 | AY105: 1057 | AZ105: 1294 | BA105: 368 | BB105: 377 | BC105: 590 | BD105: 744 | BE105: 1984 | BF105: 890 | BG105: 342 | BH105: 2573 | BI105: 1555 | BJ105: 1090 | BK105: 0 | BL105: 14
A106: 2011Wyoming | B106: 2011 | C106: Republican | D106: Wyoming | E106: 561389 | F106: 1021 | G106: 462808 | H106: 7194 | I106: 66648 | J106: 5771 | K106: -1340 | L106: -0.002386936687 | M106: 30651 | N106: 51 | O106: 761 | P106: 369 | Q106: 174 | R106: 2539 | S106: 6905 | T106: 11 | U106: 0 | V106: 0 | W106: 1525 | X106: 46 | Y106: 0 | Z106: 2140 | AA106: 450 | AB106: 6 | AC106: 342 | AD106: 286 | AE106: 83 | AF106: 114 | AG106: 0 | AH106: 0 | AI106: 152 | AJ106: 849 | AK106: 357 | AL106: 70 | AM106: 241 | AN106: 1105 | AO106: 1784 | AP106: 427 | AQ106: 0 | AR106: 7 | AS106: 76 | AT106: 113 | AU106: 395 | AV106: 237 | AW106: 22 | AX106: 462 | AY106: 960 | AZ106: 284 | BA106: 13 | BB106: 219 | BC106: 1043 | BD106: 69 | BE106: 1398 | BF106: 2140 | BG106: 4 | BH106: 451 | BI106: 1803 | BJ106: 0 | BK106: 168 | BL106: 0
A107: 2012United States | B107: 2012 | C107: Democrat | D107: United States | E107: 310212755 | F107: 25814 | G107: 263612596 | H107: 229733 | I107: 37696597 | J107: 211307 | M107: 7070345 | N107: 109210 | O107: 84068 | P107: 206842 | Q107: 64967 | R107: 566986 | S107: 161530 | T107: 87023 | U107: 25149 | V107: 59513 | W107: 428325 | X107: 252262 | Y107: 61509 | Z107: 55191 | AA107: 277953 | AB107: 144597 | AC107: 73325 | AD107: 93134 | AE107: 103004 | AF107: 95956 | AG107: 38574 | AH107: 157664 | AI107: 158156 | AJ107: 175733 | AK107: 115946 | AL107: 66947 | AM107: 142754 | AN107: 33832 | AO107: 48816 | AP107: 98882 | AQ107: 38696 | AR107: 219202 | AS107: 63921 | AT107: 405864 | AU107: 238663 | AV107: 23959 | AW107: 199202 | AX107: 102572 | AY107: 108182 | AZ107: 237156 | BA107: 30498 | BB107: 127418 | BC107: 22534 | BD107: 163843 | BE107: 402187 | BF107: 82165 | BG107: 20056 | BH107: 238540 | BI107: 180462 | BJ107: 47425 | BK107: 97724 | BL107: 32228
A108: 2012Alabama | B108: 2012 | C108: Republican | D108: Alabama | E108: 4764428 | F108: 3589 | G108: 4054260 | H108: 21464 | I108: 590326 | J108: 19701 | K108: =M108-INDEX($M$107:$BL$107,1,MATCH(D108,$M$2:$BL$2,0)) -> -4610 | L108: -0.0009675872948 | M108: 104600 | N108: 0 | O108: 1004 | P108: 962 | Q108: 660 | R108: 3077 | S108: 1386 | T108: 284 | U108: 42 | V108: 162 | W108: 11244 | X108: 19920 | Y108: 627 | Z108: 493 | AA108: 2722 | AB108: 1347 | AC108: 345 | AD108: 865 | AE108: 2495 | AF108: 3104 | AG108: 67 | AH108: 1513 | AI108: 334 | AJ108: 2298 | AK108: 752 | AL108: 4952 | AM108: 1555 | AN108: 101 | AO108: 151 | AP108: 1009 | AQ108: 161 | AR108: 1702 | AS108: 459 | AT108: 2709 | AU108: 5133 | AV108: 228 | AW108: 1411 | AX108: 194 | AY108: 200 | AZ108: 1837 | BA108: 0 | BB108: 2811 | BC108: 518 | BD108: 10539 | BE108: 7468 | BF108: 579 | BG108: 0 | BH108: 3170 | BI108: 1034 | BJ108: 128 | BK108: 760 | BL108: 88
A109: 2012Alaska | B109: 2012 | C109: Republican | D109: Alaska | E109: 721186 | F109: 1290 | G109: 592551 | H109: 8741 | I109: 90613 | J109: 7239 | K109: -50653 | L109: -0.07023569509 | M109: 33415 | N109: 1097 | O109: 0 | P109: 1520 | Q109: 196 | R109: 3494 | S109: 556 | T109: 0 | U109: 0 | V109: 356 | W109: 1991 | X109: 928 | Y109: 1376 | Z109: 538 | AA109: 58 | AB109: 260 | AC109: 13 | AD109: 221 | AE109: 161 | AF109: 120 | AG109: 66 | AH109: 508 | AI109: 297 | AJ109: 563 | AK109: 192 | AL109: 56 | AM109: 819 | AN109: 371 | AO109: 1195 | AP109: 803 | AQ109: 118 | AR109: 116 | AS109: 263 | AT109: 736 | AU109: 920 | AV109: 264 | AW109: 1316 | AX109: 335 | AY109: 3174 | AZ109: 255 | BA109: 0 | BB109: 384 | BC109: 99 | BD109: 451 | BE109: 1488 | BF109: 330 | BG109: 79 | BH109: 1265 | BI109: 3725 | BJ109: 0 | BK109: 206 | BL109: 136
A110: 2012Arizona | B110: 2012 | C110: Republican | D110: Arizona | E110: 6468907 | F110: 3874 | G110: 5242674 | H110: 32185 | I110: 953789 | J110: 28803 | K110: 25615 | L110: 0.003959710659 | M110: 232457 | N110: 1331 | O110: 3717 | P110: 0 | Q110: 1214 | R110: 44889 | S110: 13790 | T110: 417 | U110: 246 | V110: 36 | W110: 5553 | X110: 2263 | Y110: 2491 | Z110: 2934 | AA110: 10744 | AB110: 2930 | AC110: 2702 | AD110: 2498 | AE110: 1328 | AF110: 724 | AG110: 616 | AH110: 3007 | AI110: 1961 | AJ110: 9598 | AK110: 8570 | AL110: 293 | AM110: 2595 | AN110: 1118 | AO110: 2293 | AP110: 6712 | AQ110: 510 | AR110: 2564 | AS110: 6946 | AT110: 7402 | AU110: 2721 | AV110: 877 | AW110: 7906 | AX110: 1626 | AY110: 8587 | AZ110: 4280 | BA110: 614 | BB110: 1070 | BC110: 1472 | BD110: 5075 | BE110: 14788 | BF110: 5916 | BG110: 207 | BH110: 2763 | BI110: 13247 | BJ110: 765 | BK110: 3765 | BL110: 2786
A111: 2012Arkansas | B111: 2012 | C111: Republican | D111: Arkansas | E111: 2912680 | F111: 2753 | G111: 2453347 | H111: 16841 | I111: 373046 | J111: 14543 | K111: 11981 | L111: 0.00411339385 | M111: 76948 | N111: 374 | O111: 855 | P111: 1677 | Q111: 0 | R111: 3525 | S111: 603 | T111: 185 | U111: 0 | V111: 205 | W111: 2682 | X111: 1525 | Y111: 0 | Z111: 0 | AA111: 3576 | AB111: 1172 | AC111: 409 | AD111: 1033 | AE111: 1310 | AF111: 3953 | AG111: 17 | AH111: 169 | AI111: 254 | AJ111: 1283 | AK111: 295 | AL111: 3689 | AM111: 9105 | AN111: 258 | AO111: 166 | AP111: 121 | AQ111: 0 | AR111: 157 | AS111: 547 | AT111: 2262 | AU111: 3057 | AV111: 0 | AW111: 1135 | AX111: 9938 | AY111: 193 | AZ111: 516 | BA111: 59 | BB111: 52 | BC111: 673 | BD111: 4195 | BE111: 11767 | BF111: 269 | BG111: 0 | BH111: 1159 | BI111: 251 | BJ111: 84 | BK111: 695 | BL111: 1498
A112: 2012California | B112: 2012 | C112: Democrat | D112: California | E112: 37572738 | F112: 10274 | G112: 31777868 | H112: 67939 | I112: 5046618 | J112: 65422 | K112: -73345 | L112: -0.001952080256 | M112: 493641 | N112: 2509 | O112: 6995 | P112: 38916 | Q112: 3472 | R112: 0 | S112: 15150 | T112: 6764 | U112: 474 | V112: 3199 | W112: 21004 | X112: 10790 | Y112: 11906 | Z112: 5331 | AA112: 21251 | AB112: 5891 | AC112: 2284 | AD112: 2790 | AE112: 3763 | AF112: 5180 | AG112: 1256 | AH112: 7902 | AI112: 14356 | AJ112: 8921 | AK112: 8539 | AL112: 2556 | AM112: 6729 | AN112: 3060 | AO112: 3302 | AP112: 27968 | AQ112: 1327 | AR112: 12057 | AS112: 5921 | AT112: 31261 | AU112: 11195 | AV112: 1827 | AW112: 10653 | AX112: 6671 | AY112: 22724 | AZ112: 10466 | BA112: 1648 | BB112: 4110 | BC112: 826 | BD112: 5802 | BE112: 43005 | BF112: 12172 | BG112: 544 | BH112: 15625 | BI112: 34569 | BJ112: 1413 | BK112: 5681 | BL112: 1886
A113: 2012Colorado | B113: 2012 | C113: Democrat | D113: Colorado | E113: 5123944 | F113: 2939 | G113: 4131357 | H113: 21752 | I113: 751921 | J113: 19587 | K113: 43530 | L113: 0.008495409005 | M113: 205060 | N113: 3108 | O113: 3457 | P113: 10589 | Q113: 1043 | R113: 22152 | S113: 0 | T113: 1317 | U113: 70 | V113: 488 | W113: 8615 | X113: 5834 | Y113: 2536 | Z113: 2660 | AA113: 6374 | AB113: 4336 | AC113: 2776 | AD113: 5283 | AE113: 2500 | AF113: 5048 | AG113: 20 | AH113: 2844 | AI113: 5939 | AJ113: 3343 | AK113: 2992 | AL113: 835 | AM113: 3771 | AN113: 2021 | AO113: 4472 | AP113: 3789 | AQ113: 679 | AR113: 2464 | AS113: 6520 | AT113: 7250 | AU113: 4378 | AV113: 1918 | AW113: 4533 | AX113: 4582 | AY113: 2419 | AZ113: 3950 | BA113: 137 | BB113: 2383 | BC113: 756 | BD113: 2535 | BE113: 17355 | BF113: 6398 | BG113: 503 | BH113: 3796 | BI113: 4853 | BJ113: 837 | BK113: 3000 | BL113: 5602
A114: 2012Connecticut | B114: 2012 | C114: Democrat | D114: Connecticut | E114: 3555319 | F114: 2447 | G114: 3114940 | H114: 16188 | I114: 334918 | J114: 14546 | K114: -6712 | L114: -0.001887875603 | M114: 80311 | N114: 46 | O114: 439 | P114: 3167 | Q114: 200 | R114: 3161 | S114: 367 | T114: 0 | U114: 22 | V114: 288 | W114: 6578 | X114: 1702 | Y114: 408 | Z114: 97 | AA114: 912 | AB114: 53 | AC114: 0 | AD114: 0 | AE114: 124 | AF114: 909 | AG114: 1224 | AH114: 1752 | AI114: 8743 | AJ114: 753 | AK114: 605 | AL114: 276 | AM114: 358 | AN114: 50 | AO114: 45 | AP114: 172 | AQ114: 1009 | AR114: 5665 | AS114: 444 | AT114: 23310 | AU114: 3379 | AV114: 0 | AW114: 287 | AX114: 415 | AY114: 35 | AZ114: 2214 | BA114: 1558 | BB114: 940 | BC114: 0 | BD114: 260 | BE114: 3279 | BF114: 45 | BG114: 709 | BH114: 1729 | BI114: 1593 | BJ114: 174 | BK114: 711 | BL114: 104
A115: 2012Delaware | B115: 2012 | C115: Democrat | D115: Delaware | E115: 906576 | F115: 1624 | G115: 782216 | H115: 9177 | I115: 86003 | J115: 7626 | K115: 9608 | L115: 0.01059811864 | M115: 34757 | N115: 119 | O115: 692 | P115: 188 | Q115: 0 | R115: 2221 | S115: 0 | T115: 1489 | U115: 0 | V115: 11 | W115: 715 | X115: 179 | Y115: 0 | Z115: 32 | AA115: 567 | AB115: 62 | AC115: 30 | AD115: 113 | AE115: 0 | AF115: 178 | AG115: 0 | AH115: 5649 | AI115: 157 | AJ115: 227 | AK115: 351 | AL115: 58 | AM115: 80 | AN115: 0 | AO115: 91 | AP115: 572 | AQ115: 99 | AR115: 5846 | AS115: 85 | AT115: 3566 | AU115: 1349 | AV115: 0 | AW115: 191 | AX115: 0 | AY115: 0 | AZ115: 6828 | BA115: 135 | BB115: 298 | BC115: 0 | BD115: 344 | BE115: 133 | BF115: 166 | BG115: 0 | BH115: 1746 | BI115: 29 | BJ115: 161 | BK115: 0 | BL115: 0
A116: 2012District of Columbia | B116: 2012 | C116: Democrat | D116: District of Columbia | E116: 624847 | F116: 948 | G116: 500267 | H116: 6225 | I116: 61992 | J116: 5668 | K116: -5683 | L116: -0.009095026462 | M116: 53830 | N116: 79 | O116: 1247 | P116: 902 | Q116: 35 | R116: 4999 | S116: 677 | T116: 618 | U116: 78 | V116: 0 | W116: 1705 | X116: 1079 | Y116: 38 | Z116: 46 | AA116: 795 | AB116: 469 | AC116: 133 | AD116: 164 | AE116: 112 | AF116: 283 | AG116: 194 | AH116: 14120 | AI116: 1524 | AJ116: 944 | AK116: 393 | AL116: 44 | AM116: 337 | AN116: 0 | AO116: 172 | AP116: 42 | AQ116: 197 | AR116: 1451 | AS116: 116 | AT116: 3085 | AU116: 985 | AV116: 0 | AW116: 651 | AX116: 0 | AY116: 157 | AZ116: 1494 | BA116: 635 | BB116: 150 | BC116: 0 | BD116: 577 | BE116: 1473 | BF116: 116 | BG116: 267 | BH116: 9537 | BI116: 481 | BJ116: 293 | BK116: 721 | BL116: 215
A117: 2012Florida | B117: 2012 | C117: Democrat | D117: Florida | E117: 19114620 | F117: 6877 | G117: 16032617 | H117: 49245 | I117: 2380288 | J117: 44658 | K117: 108823 | L117: 0.00569318145 | M117: 537148 | N117: 18599 | O117: 10704 | P117: 6473 | Q117: 3321 | R117: 20386 | S117: 8766 | T117: 8975 | U117: 1099 | V117: 780 | W117: 0 | X117: 42754 | Y117: 3177 | Z117: 1268 | AA117: 22565 | AB117: 13803 | AC117: 3864 | AD117: 5661 | AE117: 6912 | AF117: 5550 | AG117: 7348 | AH117: 10442 | AI117: 15159 | AJ117: 23400 | AK117: 5460 | AL117: 5490 | AM117: 10666 | AN117: 1758 | AO117: 945 | AP117: 1241 | AQ117: 2362 | AR117: 27606 | AS117: 2853 | AT117: 53009 | AU117: 23133 | AV117: 239 | AW117: 22927 | AX117: 3142 | AY117: 2919 | AZ117: 25659 | BA117: 3050 | BB117: 11366 | BC117: 1070 | BD117: 16275 | BE117: 28564 | BF117: 2499 | BG117: 2747 | BH117: 25697 | BI117: 4943 | BJ117: 3533 | BK117: 6216 | BL117: 773
A118: 2012Georgia | B118: 2012 | C118: Republican | D118: Georgia | E118: 9796547 | F118: 5863 | G118: 8231384 | H118: 34188 | I118: 1236302 | J118: 31155 | K118: 25204 | L118: 0.002572743233 | M118: 277466 | N118: 13864 | O118: 2654 | P118: 6657 | Q118: 1041 | R118: 14174 | S118: 4710 | T118: 1829 | U118: 226 | V118: 1352 | W118: 42870 | X118: 0 | Y118: 1409 | Z118: 936 | AA118: 7143 | AB118: 5972 | AC118: 1687 | AD118: 1497 | AE118: 6172 | AF118: 4100 | AG118: 222 | AH118: 3619 | AI118: 4153 | AJ118: 9949 | AK118: 2237 | AL118: 3280 | AM118: 3377 | AN118: 251 | AO118: 1283 | AP118: 3783 | AQ118: 15 | AR118: 4920 | AS118: 915 | AT118: 13957 | AU118: 16009 | AV118: 207 | AW118: 7501 | AX118: 3299 | AY118: 453 | AZ118: 9076 | BA118: 440 | BB118: 18611 | BC118: 257 | BD118: 17606 | BE118: 16198 | BF118: 20 | BG118: 84 | BH118: 10702 | BI118: 1965 | BJ118: 1237 | BK118: 3441 | BL118: 106
A119: 2012Hawaii | B119: 2012 | C119: Democrat | D119: Hawaii | E119: 1374852 | F119: 1662 | G119: 1164145 | H119: 10466 | I119: 134827 | J119: 9196 | K119: -6364 | L119: -0.00462886187 | M119: 55145 | N119: 608 | O119: 1417 | P119: 1865 | Q119: 24 | R119: 9756 | S119: 1216 | T119: 191 | U119: 278 | V119: 230 | W119: 2780 | X119: 1448 | Y119: 0 | Z119: 404 | AA119: 318 | AB119: 292 | AC119: 84 | AD119: 1135 | AE119: 485 | AF119: 207 | AG119: 91 | AH119: 2491 | AI119: 1266 | AJ119: 321 | AK119: 192 | AL119: 44 | AM119: 944 | AN119: 131 | AO119: 75 | AP119: 760 | AQ119: 85 | AR119: 410 | AS119: 284 | AT119: 2382 | AU119: 2241 | AV119: 0 | AW119: 884 | AX119: 1095 | AY119: 1763 | AZ119: 1087 | BA119: 106 | BB119: 644 | BC119: 459 | BD119: 1314 | BE119: 3300 | BF119: 2183 | BG119: 0 | BH119: 1393 | BI119: 5920 | BJ119: 197 | BK119: 295 | BL119: 50
A120: 2012Idaho | B120: 2012 | C120: Republican | D120: Idaho | E120: 1573036 | F120: 2184 | G120: 1296975 | H120: 12998 | I120: 210151 | J120: 11483 | K120: 4092 | L120: 0.002601339067 | M120: 59283 | N120: 575 | O120: 1198 | P120: 2424 | Q120: 291 | R120: 10280 | S120: 1186 | T120: 44 | U120: 120 | V120: 116 | W120: 2014 | X120: 583 | Y120: 206 | Z120: 0 | AA120: 532 | AB120: 283 | AC120: 90 | AD120: 63 | AE120: 83 | AF120: 54 | AG120: 0 | AH120: 107 | AI120: 338 | AJ120: 683 | AK120: 637 | AL120: 87 | AM120: 214 | AN120: 3800 | AO120: 35 | AP120: 2535 | AQ120: 0 | AR120: 214 | AS120: 675 | AT120: 938 | AU120: 817 | AV120: 0 | AW120: 1018 | AX120: 93 | AY120: 4963 | AZ120: 169 | BA120: 0 | BB120: 205 | BC120: 118 | BD120: 1957 | BE120: 1352 | BF120: 6617 | BG120: 0 | BH120: 269 | BI120: 10398 | BJ120: 0 | BK120: 225 | BL120: 677
A121: 2012Illinois | B121: 2012 | C121: Democrat | D121: Illinois | E121: 12725119 | F121: 5939 | G121: 11009321 | H121: 31714 | I121: 1441191 | J121: 27618 | K121: -69198 | L121: -0.005437905924 | M121: 208755 | N121: 883 | O121: 2250 | P121: 7139 | Q121: 1587 | R121: 14940 | S121: 3036 | T121: 955 | U121: 234 | V121: 1066 | W121: 12687 | X121: 8745 | Y121: 869 | Z121: 1384 | AA121: 0 | AB121: 16907 | AC121: 8529 | AD121: 2009 | AE121: 2923 | AF121: 1229 | AG121: 526 | AH121: 1865 | AI121: 3296 | AJ121: 12583 | AK121: 6537 | AL121: 2744 | AM121: 13264 | AN121: 228 | AO121: 1302 | AP121: 1478 | AQ121: 283 | AR121: 2366 | AS121: 1359 | AT121: 7561 | AU121: 3761 | AV121: 196 | AW121: 6872 | AX121: 1491 | AY121: 954 | AZ121: 4588 | BA121: 462 | BB121: 1583 | BC121: 394 | BD121: 4648 | BE121: 16780 | BF121: 1154 | BG121: 156 | BH121: 4311 | BI121: 2704 | BJ121: 1221 | BK121: 14414 | BL121: 302
A122: 2012Indiana | B122: 2012 | C122: Republican | D122: Indiana | E122: 6457067 | F122: 4184 | G122: 5493090 | H122: 26865 | I122: 805228 | J122: 22224 | K122: -10460 | L122: -0.001619930535 | M122: 134137 | N122: 1625 | O122: 479 | P122: 2763 | Q122: 564 | R122: 6033 | S122: 1225 | T122: 823 | U122: 639 | V122: 1045 | W122: 11472 | X122: 2258 | Y122: 856 | Z122: 186 | AA122: 28436 | AB122: 0 | AC122: 1678 | AD122: 1624 | AE122: 11177 | AF122: 736 | AG122: 0 | AH122: 1050 | AI122: 837 | AJ122: 11017 | AK122: 1543 | AL122: 1948 | AM122: 4526 | AN122: 134 | AO122: 591 | AP122: 1011 | AQ122: 0 | AR122: 1537 | AS122: 219 | AT122: 2316 | AU122: 2665 | AV122: 113 | AW122: 11235 | AX122: 1198 | AY122: 387 | AZ122: 2419 | BA122: 0 | BB122: 1414 | BC122: 111 | BD122: 3547 | BE122: 4490 | BF122: 105 | BG122: 0 | BH122: 1932 | BI122: 258 | BJ122: 507 | BK122: 1727 | BL122: 1681
A123: 2012Iowa | B123: 2012 | C123: Democrat | D123: Iowa | E123: 3035469 | F123: 2721 | G123: 2585979 | H123: 14093 | I123: 362938 | J123: 11238 | K123: 2435 | L123: 0.0008021824634 | M123: 75760 | N123: 503 | O123: 951 | P123: 1590 | Q123: 451 | R123: 3268 | S123: 3252 | T123: 112 | U123: 0 | V123: 151 | W123: 4335 | X123: 596 | Y123: 521 | Z123: 290 | AA123: 11969 | AB123: 1716 | AC123: 0 | AD123: 918 | AE123: 819 | AF123: 763 | AG123: 78 | AH123: 419 | AI123: 585 | AJ123: 946 | AK123: 7505 | AL123: 751 | AM123: 4168 | AN123: 452 | AO123: 7698 | AP123: 681 | AQ123: 56 | AR123: 1018 | AS123: 114 | AT123: 1230 | AU123: 734 | AV123: 833 | AW123: 1127 | AX123: 1465 | AY123: 348 | AZ123: 451 | BA123: 0 | BB123: 943 | BC123: 1158 | BD123: 1148 | BE123: 3553 | BF123: 886 | BG123: 0 | BH123: 268 | BI123: 919 | BJ123: 22 | BK123: 3607 | BL123: 392
A124: 2012Kansas | B124: 2012 | C124: Republican | D124: Kansas | E124: 2848708 | F124: 2507 | G124: 2361899 | H124: 16878 | I124: 381695 | J124: 15902 | K124: -4850 | L124: -0.001702526198 | M124: 88284 | N124: 853 | O124: 333 | P124: 3094 | Q124: 2158 | R124: 5411 | S124: 3746 | T124: 210 | U124: 0 | V124: 456 | W124: 3118 | X124: 1896 | Y124: 149 | Z124: 456 | AA124: 1702 | AB124: 1679 | AC124: 1527 | AD124: 0 | AE124: 617 | AF124: 438 | AG124: 211 | AH124: 282 | AI124: 187 | AJ124: 1125 | AK124: 682 | AL124: 452 | AM124: 21022 | AN124: 300 | AO124: 4126 | AP124: 851 | AQ124: 0 | AR124: 267 | AS124: 1029 | AT124: 571 | AU124: 813 | AV124: 261 | AW124: 1310 | AX124: 8408 | AY124: 848 | AZ124: 918 | BA124: 18 | BB124: 556 | BC124: 154 | BD124: 1542 | BE124: 8468 | BF124: 97 | BG124: 70 | BH124: 1705 | BI124: 3265 | BJ124: 139 | BK124: 486 | BL124: 278
A125: 2012Kentucky | B125: 2012 | C125: Republican | D125: Kentucky | E125: 4328626 | F125: 2851 | G125: 3676472 | H125: 15304 | I125: 521511 | J125: 14825 | K125: 9783 | L125: 0.002260070517 | M125: 112787 | N125: 4137 | O125: 304 | P125: 1103 | Q125: 518 | R125: 3415 | S125: 712 | T125: 246 | U125: 706 | V125: 254 | W125: 9232 | X125: 4173 | Y125: 647 | Z125: 50 | AA125: 4445 | AB125: 12203 | AC125: 238 | AD125: 602 | AE125: 0 | AF125: 666 | AG125: 46 | AH125: 1120 | AI125: 419 | AJ125: 7302 | AK125: 605 | AL125: 646 | AM125: 2381 | AN125: 0 | AO125: 723 | AP125: 301 | AQ125: 84 | AR125: 496 | AS125: 554 | AT125: 5239 | AU125: 3643 | AV125: 122 | AW125: 17041 | AX125: 577 | AY125: 298 | AZ125: 2226 | BA125: 0 | BB125: 1347 | BC125: 0 | BD125: 10064 | BE125: 3345 | BF125: 464 | BG125: 45 | BH125: 3319 | BI125: 1988 | BJ125: 3346 | BK125: 1395 | BL125: 0
A126: 2012Louisiana | B126: 2012 | C126: Republican | D126: Louisiana | E126: 4545914 | F126: 4612 | G126: 3912023 | H126: 21791 | I126: 528406 | J126: 20131 | K126: -4741 | L126: -0.001042914582 | M126: 91215 | N126: 2329 | O126: 403 | P126: 2021 | Q126: 3645 | R126: 5139 | S126: 1433 | T126: 164 | U126: 0 | V126: 596 | W126: 6534 | X126: 4478 | Y126: 378 | Z126: 265 | AA126: 1229 | AB126: 1359 | AC126: 544 | AD126: 420 | AE126: 1649 | AF126: 0 | AG126: 251 | AH126: 642 | AI126: 549 | AJ126: 1080 | AK126: 330 | AL126: 6791 | AM126: 1591 | AN126: 428 | AO126: 745 | AP126: 931 | AQ126: 11 | AR126: 975 | AS126: 150 | AT126: 2786 | AU126: 2284 | AV126: 64 | AW126: 1115 | AX126: 2159 | AY126: 195 | AZ126: 1239 | BA126: 737 | BB126: 1914 | BC126: 0 | BD126: 2348 | BE126: 24488 | BF126: 277 | BG126: 45 | BH126: 1857 | BI126: 1581 | BJ126: 238 | BK126: 682 | BL126: 146
A127: 2012Maine | B127: 2012 | C127: Democrat | D127: Maine | E127: 1315586 | F127: 1384 | G127: 1132344 | H127: 9895 | I127: 151438 | J127: 9223 | K127: -11051 | L127: -0.008400058985 | M127: 27523 | N127: 129 | O127: 38 | P127: 230 | Q127: 0 | R127: 1610 | S127: 314 | T127: 1468 | U127: 234 | V127: 32 | W127: 2926 | X127: 511 | Y127: 0 | Z127: 143 | AA127: 195 | AB127: 0 | AC127: 7 | AD127: 277 | AE127: 482 | AF127: 15 | AG127: 0 | AH127: 325 | AI127: 3887 | AJ127: 116 | AK127: 430 | AL127: 79 | AM127: 69 | AN127: 0 | AO127: 82 | AP127: 35 | AQ127: 3655 | AR127: 405 | AS127: 272 | AT127: 2519 | AU127: 1112 | AV127: 0 | AW127: 628 | AX127: 79 | AY127: 215 | AZ127: 976 | BA127: 1024 | BB127: 173 | BC127: 0 | BD127: 985 | BE127: 496 | BF127: 200 | BG127: 349 | BH127: 573 | BI127: 118 | BJ127: 51 | BK127: 0 | BL127: 59
A128: 2012Maryland | B128: 2012 | C128: Democrat | D128: Maryland | E128: 5816472 | F128: 3717 | G128: 5068457 | H128: 21604 | I128: 549973 | J128: 20595 | K128: -2681 | L128: -0.0004609323315 | M128: 154983 | N128: 1261 | O128: 1947 | P128: 760 | Q128: 136 | R128: 8614 | S128: 1071 | T128: 881 | U128: 4100 | V128: 21213 | W128: 9610 | X128: 4610 | Y128: 610 | Z128: 429 | AA128: 3621 | AB128: 1210 | AC128: 569 | AD128: 1726 | AE128: 715 | AF128: 606 | AG128: 332 | AH128: 0 | AI128: 3977 | AJ128: 2167 | AK128: 1422 | AL128: 581 | AM128: 256 | AN128: 0 | AO128: 132 | AP128: 330 | AQ128: 1124 | AR128: 6260 | AS128: 638 | AT128: 11736 | AU128: 7507 | AV128: 116 | AW128: 2522 | AX128: 463 | AY128: 378 | AZ128: 15485 | BA128: 82 | BB128: 2297 | BC128: 0 | BD128: 1800 | BE128: 5612 | BF128: 1061 | BG128: 589 | BH128: 20579 | BI128: 1431 | BJ128: 1957 | BK128: 460 | BL128: 0
A129: 2012Massachusetts | B129: 2012 | C129: Democrat | D129: Massachusetts | E129: 6580641 | F129: 3587 | G129: 5752166 | H129: 19793 | I129: 626380 | J129: 17354 | K129: -15579 | L129: -0.002367398556 | M129: 142577 | N129: 636 | O129: 890 | P129: 1972 | Q129: 394 | R129: 12770 | S129: 980 | T129: 10525 | U129: 506 | V129: 379 | W129: 12890 | X129: 2789 | Y129: 1108 | Z129: 188 | AA129: 2886 | AB129: 677 | AC129: 151 | AD129: 565 | AE129: 52 | AF129: 1556 | AG129: 3907 | AH129: 2381 | AI129: 0 | AJ129: 1337 | AK129: 966 | AL129: 155 | AM129: 453 | AN129: 49 | AO129: 182 | AP129: 787 | AQ129: 13331 | AR129: 8046 | AS129: 521 | AT129: 19467 | AU129: 2514 | AV129: 81 | AW129: 1829 | AX129: 297 | AY129: 1528 | AZ129: 8236 | BA129: 6863 | BB129: 2477 | BC129: 194 | BD129: 823 | BE129: 3694 | BF129: 1027 | BG129: 2534 | BH129: 4098 | BI129: 1653 | BJ129: 385 | BK129: 584 | BL129: 264
A130: =B130&D130 -> 2012Michigan | B130: 2012 | C130: Democrat | D130: Michigan | E130: 9778980 | F130: 4263 | G130: 8330990 | H130: 24803 | I130: 1268105 | J130: 23226 | K130: -41752 | L130: -0.004269565947 | M130: 133981 | N130: 2341 | O130: 1152 | P130: 7168 | Q130: 906 | R130: 8085 | S130: 2363 | T130: 798 | U130: 114 | V130: 274 | W130: 13146 | X130: 4270 | Y130: 291 | Z130: 242 | AA130: 10047 | AB130: 10976 | AC130: 993 | AD130: 805 | AE130: 3409 | AF130: 1284 | AG130: 261 | AH130: 2201 | AI130: 1720 | AJ130: 0 | AK130: 1127 | AL130: 922 | AM130: 2206 | AN130: 218 | AO130: 113 | AP130: 1354 | AQ130: 446 | AR130: 1617 | AS130: 1318 | AT130: 5731 | AU130: 3912 | AV130: 265 | AW130: 11318 | AX130: 705 | AY130: 811 | AZ130: 2739 | BA130: 68 | BB130: 1822 | BC130: 66 | BD130: 3259 | BE130: 8638 | BF130: 819 | BG130: 60 | BH130: 3057 | BI130: 2146 | BJ130: 353 | BK130: 4768 | BL130: 1277
A131: 2012Minnesota | B131: 2012 | C131: Democrat | D131: Minnesota | E131: 5315228 | F131: 2787 | G131: 4536303 | H131: 18312 | I131: 653012 | J131: 17074 | K131: -14904 | L131: -0.002804018943 | M131: 101042 | N131: 1299 | O131: 523 | P131: 3065 | Q131: 375 | R131: 8086 | S131: 3565 | T131: 696 | U131: 0 | V131: 310 | W131: 2372 | X131: 2235 | Y131: 1277 | Z131: 575 | AA131: 5896 | AB131: 2026 | AC131: 7220 | AD131: 924 | AE131: 57 | AF131: 791 | AG131: 187 | AH131: 1841 | AI131: 814 | AJ131: 2212 | AK131: 0 | AL131: 202 | AM131: 1709 | AN131: 1257 | AO131: 992 | AP131: 932 | AQ131: 0 | AR131: 1038 | AS131: 322 | AT131: 1849 | AU131: 1745 | AV131: 6672 | AW131: 2635 | AX131: 1212 | AY131: 781 | AZ131: 1106 | BA131: 299 | BB131: 1705 | BC131: 3442 | BD131: 1738 | BE131: 4001 | BF131: 429 | BG131: 77 | BH131: 1037 | BI131: 1685 | BJ131: 0 | BK131: 17618 | BL131: 213
A132: 2012Mississippi | B132: 2012 | C132: Republican | D132: Mississippi | E132: 2947696 | F132: 2744 | G132: 2529377 | H132: 17940 | I132: 339807 | J132: 16126 | K132: 6553 | L132: 0.002223092205 | M132: 73500 | N132: 5141 | O132: 0 | P132: 710 | Q132: 2680 | R132: 4371 | S132: 799 | T132: 106 | U132: 0 | V132: 97 | W132: 4676 | X132: 2669 | Y132: 184 | Z132: 586 | AA132: 2703 | AB132: 1200 | AC132: 160 | AD132: 400 | AE132: 446 | AF132: 8588 | AG132: 163 | AH132: 379 | AI132: 67 | AJ132: 1768 | AK132: 568 | AL132: 0 | AM132: 2634 | AN132: 166 | AO132: 138 | AP132: 526 | AQ132: 60 | AR132: 2127 | AS132: 86 | AT132: 1492 | AU132: 1709 | AV132: 98 | AW132: 896 | AX132: 562 | AY132: 465 | AZ132: 613 | BA132: 185 | BB132: 596 | BC132: 79 | BD132: 11643 | BE132: 7230 | BF132: 454 | BG132: 0 | BH132: 1929 | BI132: 433 | BJ132: 0 | BK132: 611 | BL132: 307
A133: 2012Missouri | B133: 2012 | C133: Republican | D133: Missouri | E133: 5951913 | F133: 3866 | G133: 4965459 | H133: 21306 | I133: 801093 | J133: 19635 | K133: 20176 | L133: =K133/E133 -> 0.003389834495 | M133: 162930 | N133: 1333 | O133: 2186 | P133: 2297 | Q133: 9434 | R133: 10717 | S133: 3798 | T133: 410 | U133: 234 | V133: 144 | W133: 8374 | X133: 3451 | Y133: 2114 | Z133: 596 | AA133: 22001 | AB133: 4184 | AC133: 5956 | AD133: 20218 | AE133: 2291 | AF133: 1178 | AG133: 996 | AH133: 1246 | AI133: 810 | AJ133: 2964 | AK133: 2798 | AL133: 1110 | AM133: 0 | AN133: 511 | AO133: 1999 | AP133: 836 | AQ133: 35 | AR133: 960 | AS133: 451 | AT133: 2834 | AU133: 3988 | AV133: 636 | AW133: 3557 | AX133: 5298 | AY133: 1186 | AZ133: 1535 | BA133: 361 | BB133: 2856 | BC133: 527 | BD133: 3122 | BE133: 9278 | BF133: 3287 | BG133: 318 | BH133: 2609 | BI133: 2312 | BJ133: 148 | BK133: 2636 | BL133: 810
A134: 2012Montana | B134: 2012 | C134: Republican | D134: Montana | E134: 995544 | F134: 947 | G134: 829489 | H134: 8669 | I134: 126463 | J134: 7466 | K134: 3858 | L134: 0.003875268195 | M134: 37690 | N134: 31 | O134: 726 | P134: 1548 | Q134: 63 | R134: 5428 | S134: 2135 | T134: 0 | U134: 0 | V134: 0 | W134: 1875 | X134: 292 | Y134: 556 | Z134: 3385 | AA134: 542 | AB134: 163 | AC134: 415 | AD134: 224 | AE134: 367 | AF134: 0 | AG134: 225 | AH134: 33 | AI134: 97 | AJ134: 822 | AK134: 481 | AL134: 32 | AM134: 447 | AN134: 0 | AO134: 108 | AP134: 968 | AQ134: 115 | AR134: 156 | AS134: 259 | AT134: 482 | AU134: 1082 | AV134: 977 | AW134: 402 | AX134: 1018 | AY134: 2950 | AZ134: 457 | BA134: 0 | BB134: 230 | BC134: 191 | BD134: 45 | BE134: 1393 | BF134: 260 | BG134: 87 | BH134: 156 | BI134: 4783 | BJ134: 0 | BK134: 750 | BL134: 934
A135: 2012Nebraska | B135: 2012 | C135: Republican | D135: Nebraska | E135: 1829420 | F135: 2101 | G135: 1540361 | H135: 9074 | I135: 237937 | J135: 9736 | K135: -5550 | L135: -0.003033748401 | M135: 43266 | N135: 245 | O135: 626 | P135: 2406 | Q135: 363 | R135: 3438 | S135: 2023 | T135: 0 | U135: 0 | V135: 0 | W135: 1368 | X135: 786 | Y135: 165 | Z135: 315 | AA135: 1193 | AB135: 290 | AC135: 6815 | AD135: 3103 | AE135: 131 | AF135: 411 | AG135: 68 | AH135: 129 | AI135: 195 | AJ135: 258 | AK135: 1489 | AL135: 176 | AM135: 2223 | AN135: 108 | AO135: 0 | AP135: 233 | AQ135: 0 | AR135: 524 | AS135: 158 | AT135: 318 | AU135: 874 | AV135: 497 | AW135: 563 | AX135: 587 | AY135: 106 | AZ135: 702 | BA135: 0 | BB135: 456 | BC135: 2507 | BD135: 232 | BE135: 3130 | BF135: 229 | BG135: 79 | BH135: 1076 | BI135: 1327 | BJ135: 111 | BK135: 316 | BL135: 917
A136: 2012Nevada | B136: 2012 | C136: Democrat | D136: Nevada | E136: 2725280 | F136: 3005 | G136: 2105070 | H136: 21984 | I136: 481496 | J136: 19389 | K136: 25403 | L136: 0.009321244056 | M136: 124285 | N136: 761 | O136: 2161 | P136: 8748 | Q136: 353 | R136: 49978 | S136: 6402 | T136: 143 | U136: 373 | V136: 468 | W136: 3381 | X136: 745 | Y136: 2053 | Z136: 1503 | AA136: 2822 | AB136: 362 | AC136: 714 | AD136: 1202 | AE136: 952 | AF136: 421 | AG136: 209 | AH136: 934 | AI136: 318 | AJ136: 1235 | AK136: 1157 | AL136: 783 | AM136: 694 | AN136: 1086 | AO136: 714 | AP136: 0 | AQ136: 175 | AR136: 912 | AS136: 1138 | AT136: 3521 | AU136: 767 | AV136: 702 | AW136: 1407 | AX136: 1520 | AY136: 3101 | AZ136: 1601 | BA136: 336 | BB136: 480 | BC136: 0 | BD136: 1699 | BE136: 5484 | BF136: 4605 | BG136: 121 | BH136: 1135 | BI136: 2997 | BJ136: 100 | BK136: 1046 | BL136: 766
A137: 2012New Hampshire | B137: 2012 | C137: Democrat | D137: New Hampshire | E137: 1309203 | F137: 1504 | G137: 1127376 | H137: 9730 | I137: 125118 | J137: 9101 | K137: 11788 | L137: 0.009003951259 | M137: 50484 | N137: 0 | O137: 437 | P137: 440 | Q137: 0 | R137: 1514 | S137: 572 | T137: 1345 | U137: 0 | V137: 101 | W137: 2746 | X137: 470 | Y137: 43 | Z137: 20 | AA137: 673 | AB137: 297 | AC137: 53 | AD137: 102 | AE137: 284 | AF137: 7 | AG137: 6118 | AH137: 33 | AI137: 18990 | AJ137: 426 | AK137: 0 | AL137: 0 | AM137: 289 | AN137: 0 | AO137: 110 | AP137: 0 | AQ137: 0 | AR137: 591 | AS137: 223 | AT137: 2905 | AU137: 1609 | AV137: 0 | AW137: 324 | AX137: 186 | AY137: 208 | AZ137: 890 | BA137: 1248 | BB137: 323 | BC137: 0 | BD137: 77 | BE137: 2150 | BF137: 557 | BG137: 2960 | BH137: 660 | BI137: 113 | BJ137: 80 | BK137: 239 | BL137: 71
A138: 2012New Jersey | B138: 2012 | C138: Democrat | D138: New Jersey | E138: 8772744 | F138: 4541 | G138: 7929570 | H138: 23298 | I138: 655465 | J138: 21808 | K138: -88979 | L138: -0.0101426646 | M138: 130223 | N138: 779 | O138: 359 | P138: 1328 | Q138: 57 | R138: 4330 | S138: 380 | T138: 3466 | U138: 1921 | V138: 840 | W138: 10649 | X138: 3002 | Y138: 22 | Z138: 113 | AA138: 2052 | AB138: 1039 | AC138: 357 | AD138: 426 | AE138: 631 | AF138: 339 | AG138: 430 | AH138: 3474 | AI138: 4907 | AJ138: 324 | AK138: 570 | AL138: 106 | AM138: 384 | AN138: 67 | AO138: 35 | AP138: 908 | AQ138: 126 | AR138: 0 | AS138: 45 | AT138: 40495 | AU138: 3236 | AV138: 55 | AW138: 1452 | AX138: 1540 | AY138: 760 | AZ138: 23597 | BA138: 429 | BB138: 2372 | BC138: 581 | BD138: 1400 | BE138: 2509 | BF138: 425 | BG138: 35 | BH138: 5024 | BI138: 1847 | BJ138: 297 | BK138: 680 | BL138: 23
A139: 2012New Mexico | B139: 2012 | C139: Democrat | D139: New Mexico | E139: 2060595 | F139: 2119 | G139: 1769341 | H139: 11461 | I139: 226243 | J139: 12069 | K139: -9228 | L139: -0.004478318156 | M139: 54693 | N139: 787 | O139: 320 | P139: 6391 | Q139: 410 | R139: 4536 | S139: 4780 | T139: 280 | U139: 100 | V139: 25 | W139: 4707 | X139: 192 | Y139: 168 | Z139: 355 | AA139: 790 | AB139: 660 | AC139: 384 | AD139: 672 | AE139: 159 | AF139: 790 | AG139: 57 | AH139: 505 | AI139: 303 | AJ139: 602 | AK139: 284 | AL139: 451 | AM139: 1216 | AN139: 139 | AO139: 194 | AP139: 604 | AQ139: 268 | AR139: 252 | AS139: 0 | AT139: 1111 | AU139: 335 | AV139: 41 | AW139: 1178 | AX139: 1076 | AY139: 932 | AZ139: 822 | BA139: 0 | BB139: 325 | BC139: 509 | BD139: 338 | BE139: 11955 | BF139: 1382 | BG139: 81 | BH139: 1560 | BI139: 1251 | BJ139: 0 | BK139: 321 | BL139: 95
A140: 2012New York | B140: 2012 | C140: Democrat | D140: New York | E140: 19352153 | F140: 6112 | G140: 17202134 | H140: 34343 | I140: 1723117 | J140: 30910 | K140: =M140-INDEX($M$107:$BL$107,1,MATCH(D140,$M$2:$BL$2,0)) -> -135811 | L140: -0.007017875479 | M140: 270053 | N140: 1364 | O140: 4002 | P140: 4146 | Q140: 247 | R140: 24623 | S140: 3596 | T140: 14595 | U140: 477 | V140: 3936 | W140: 27392 | X140: 7592 | Y140: 1598 | Z140: 607 | AA140: 8017 | AB140: 3040 | AC140: 955 | AD140: 1437 | AE140: 1753 | AF140: 1083 | AG140: 1345 | AH140: 7321 | AI140: 15073 | AJ140: 5191 | AK140: 1059 | AL140: 773 | AM140: 3310 | AN140: 421 | AO140: 78 | AP140: 600 | AQ140: 2760 | AR140: 42574 | AS140: 646 | AT140: 0 | AU140: 10544 | AV140: 77 | AW140: 4625 | AX140: 1327 | AY140: 1055 | AZ140: 22895 | BA140: 3222 | BB140: 5952 | BC140: 0 | BD140: 1279 | BE140: 11231 | BF140: 622 | BG140: 2764 | BH140: 7939 | BI140: 2614 | BJ140: 921 | BK140: 979 | BL140: 396
A141: 2012North Carolina | B141: 2012 | C141: Republican | D141: North Carolina | E141: 9640490 | F141: 5097 | G141: 8167830 | H141: 27074 | I141: 1149080 | J141: 24801 | K141: 34486 | L141: 0.003577204063 | M141: 273149 | N141: 4329 | O141: 1458 | P141: 3493 | Q141: 861 | R141: 13883 | S141: 4790 | T141: 4914 | U141: 2180 | V141: 1801 | W141: 26365 | X141: 16823 | Y141: 1566 | Z141: 334 | AA141: 6378 | AB141: 4532 | AC141: 775 | AD141: 1595 | AE141: 1531 | AF141: 919 | AG141: 1259 | AH141: 9005 | AI141: 3710 | AJ141: 6161 | AK141: 1523 | AL141: 2377 | AM141: 2623 | AN141: 244 | AO141: 628 | AP141: 1627 | AQ141: 754 | AR141: 11468 | AS141: 1138 | AT141: 19891 | AU141: 0 | AV141: 206 | AW141: 9337 | AX141: 1263 | AY141: 1333 | AZ141: 12179 | BA141: 290 | BB141: 25532 | BC141: 351 | BD141: 9230 | BE141: 12638 | BF141: 1189 | BG141: 445 | BH141: 26759 | BI141: 5915 | BJ141: 2677 | BK141: 2266 | BL141: 604
A142: 2012North Dakota | B142: 2012 | C142: Republican | D142: North Dakota | E142: 689838 | F142: 1379 | G142: 563978 | H142: 6361 | I142: 84294 | J142: 5380 | K142: 14254 | L142: 0.02066282229 | M142: 38213 | N142: 83 | O142: 70 | P142: 1571 | Q142: 0 | R142: 999 | S142: 546 | T142: 65 | U142: 0 | V142: 70 | W142: 950 | X142: 98 | Y142: 160 | Z142: 540 | AA142: 799 | AB142: 55 | AC142: 458 | AD142: 161 | AE142: 22 | AF142: 18 | AG142: 98 | AH142: 232 | AI142: 187 | AJ142: 757 | AK142: 15257 | AL142: 72 | AM142: 1490 | AN142: 1776 | AO142: 950 | AP142: 854 | AQ142: 0 | AR142: 140 | AS142: 161 | AT142: 331 | AU142: 231 | AV142: 0 | AW142: 6 | AX142: 280 | AY142: 724 | AZ142: 114 | BA142: 244 | BB142: 14 | BC142: 1754 | BD142: 746 | BE142: 1414 | BF142: 43 | BG142: 758 | BH142: 403 | BI142: 1604 | BJ142: 0 | BK142: 543 | BL142: 365
A143: 2012Ohio | B143: 2012 | C143: Democrat | D143: Ohio | E143: 11414635 | F143: 5725 | G143: 9735390 | H143: 29715 | I143: 1440815 | J143: 28423 | K143: -2811 | L143: -0.0002462628021 | M143: 196391 | N143: 3705 | O143: 2207 | P143: 4929 | Q143: 884 | R143: 8995 | S143: 3180 | T143: 1355 | U143: 1079 | V143: 985 | W143: 16366 | X143: 8052 | Y143: 1198 | Z143: 412 | AA143: 9510 | AB143: 13534 | AC143: 1039 | AD143: 1166 | AE143: 13227 | AF143: 2214 | AG143: 1189 | AH143: 5026 | AI143: 2189 | AJ143: 16336 | AK143: 1122 | AL143: 1017 | AM143: 3026 | AN143: 276 | AO143: 1052 | AP143: 907 | AQ143: 189 | AR143: 4703 | AS143: 1361 | AT143: 8732 | AU143: 5498 | AV143: 453 | AW143: 0 | AX143: 858 | AY143: 432 | AZ143: 14147 | BA143: 435 | BB143: 2445 | BC143: 47 | BD143: 3542 | BE143: 11760 | BF143: 197 | BG143: 364 | BH143: 3193 | BI143: 2862 | BJ143: 7820 | BK143: 974 | BL143: 202
A144: 2012Oklahoma | B144: 2012 | C144: Republican | D144: Oklahoma | E144: 3762311 | F144: 2764 | G144: 3107367 | H144: 14635 | I144: 531347 | J144: 12812 | K144: 6400 | L144: 0.001701082127 | M144: 108972 | N144: 1030 | O144: 1279 | P144: 2974 | Q144: 5777 | R144: 8950 | S144: 4717 | T144: 0 | U144: 380 | V144: 151 | W144: 5011 | X144: 2581 | Y144: 189 | Z144: 905 | AA144: 1100 | AB144: 1490 | AC144: 1088 | AD144: 7065 | AE144: 1354 | AF144: 2562 | AG144: 167 | AH144: 750 | AI144: 1233 | AJ144: 1347 | AK144: 906 | AL144: 1850 | AM144: 5210 | AN144: 798 | AO144: 300 | AP144: 1101 | AQ144: 549 | AR144: 1523 | AS144: 1244 | AT144: 1981 | AU144: 1961 | AV144: 308 | AW144: 1148 | AX144: 0 | AY144: 1261 | AZ144: 494 | BA144: 0 | BB144: 569 | BC144: 108 | BD144: 2471 | BE144: 25508 | BF144: 2588 | BG144: 197 | BH144: 1749 | BI144: 1574 | BJ144: 368 | BK144: 1061 | BL144: 45
A145: 2012Oregon | B145: 2012 | C145: Democrat | D145: Oregon | E145: 3857465 | F145: 2984 | G145: 3158450 | H145: 19251 | I145: 560673 | J145: 17729 | K145: 10743 | L145: 0.002784989624 | M145: 118925 | N145: 373 | O145: 2513 | P145: 7954 | Q145: 165 | R145: 31862 | S145: 4472 | T145: 381 | U145: 0 | V145: 696 | W145: 1660 | X145: 1032 | Y145: 2501 | Z145: 5093 | AA145: 1676 | AB145: 1380 | AC145: 834 | AD145: 556 | AE145: 202 | AF145: 227 | AG145: 446 | AH145: 457 | AI145: 760 | AJ145: 570 | AK145: 1792 | AL145: 186 | AM145: 403 | AN145: 2192 | AO145: 570 | AP145: 5935 | AQ145: 39 | AR145: 385 | AS145: 920 | AT145: 2379 | AU145: 1482 | AV145: 42 | AW145: 1411 | AX145: 725 | AY145: 0 | AZ145: 904 | BA145: 177 | BB145: 461 | BC145: 119 | BD145: 802 | BE145: 3347 | BF145: 4793 | BG145: 367 | BH145: 676 | BI145: 21224 | BJ145: 593 | BK145: 426 | BL145: 765
A146: 2012Pennsylvania | B146: 2012 | C146: Democrat | D146: Pennsylvania | E146: 12630082 | F146: 4558 | G146: 11107110 | H146: 28998 | I146: 1252378 | J146: 26347 | K146: -21656 | L146: -0.001714636532 | M146: 215500 | N146: 1926 | O146: 1658 | P146: 3529 | Q146: 573 | R146: 7772 | S146: 2574 | T146: 3311 | U146: 4814 | V146: 2921 | W146: 14631 | X146: 4337 | Y146: 245 | Z146: 359 | AA146: 3749 | AB146: 1599 | AC146: 125 | AD146: 967 | AE146: 1233 | AF146: 694 | AG146: 988 | AH146: 17529 | AI146: 5900 | AJ146: 2642 | AK146: 1169 | AL146: 55 | AM146: 1171 | AN146: 135 | AO146: 214 | AP146: 1600 | AQ146: 1138 | AR146: 33791 | AS146: 1001 | AT146: 32898 | AU146: 6380 | AV146: 166 | AW146: 14319 | AX146: 378 | AY146: 234 | AZ146: 0 | BA146: 771 | BB146: 3023 | BC146: 159 | BD146: 1273 | BE146: 6768 | BF146: 1276 | BG146: 1012 | BH146: 11960 | BI146: 1787 | BJ146: 6762 | BK146: 1550 | BL146: 434
A147: 2012Rhode Island | B147: 2012 | C147: Democrat | D147: Rhode Island | E147: 1040527 | F147: 1533 | G147: 899551 | H147: 9890 | I147: 101165 | J147: 8498 | K147: 2948 | L147: 0.002833179725 | M147: 33446 | N147: 20 | O147: 0 | P147: 93 | Q147: 0 | R147: 2146 | S147: 332 | T147: 4170 | U147: 0 | V147: 313 | W147: 2752 | X147: 168 | Y147: 120 | Z147: 0 | AA147: 385 | AB147: 0 | AC147: 0 | AD147: 27 | AE147: 286 | AF147: 24 | AG147: 279 | AH147: 482 | AI147: 11253 | AJ147: 230 | AK147: 131 | AL147: 0 | AM147: 210 | AN147: 0 | AO147: 188 | AP147: 25 | AQ147: 611 | AR147: 1219 | AS147: 36 | AT147: 3603 | AU147: 478 | AV147: 0 | AW147: 63 | AX147: 0 | AY147: 139 | AZ147: 735 | BA147: 0 | BB147: 481 | BC147: 0 | BD147: 120 | BE147: 823 | BF147: 0 | BG147: 53 | BH147: 1008 | BI147: 287 | BJ147: 0 | BK147: 135 | BL147: 21
A148: 2012South Carolina | B148: 2012 | C148: Republican | D148: South Carolina | E148: 4668886 | F148: 3434 | G148: 3929626 | H148: 20572 | I148: 564350 | J148: 20053 | K148: 29287 | L148: 0.006272802549 | M148: 156705 | N148: 1665 | O148: 1244 | P148: 2222 | Q148: 839 | R148: 5979 | S148: 1915 | T148: 1590 | U148: 697 | V148: 435 | W148: 11552 | X148: 18570 | Y148: 638 | Z148: 198 | AA148: 2125 | AB148: 3802 | AC148: 643 | AD148: 1064 | AE148: 1924 | AF148: 2709 | AG148: 2077 | AH148: 3565 | AI148: 2313 | AJ148: 2966 | AK148: 757 | AL148: 1407 | AM148: 1884 | AN148: 93 | AO148: 158 | AP148: 1025 | AQ148: 917 | AR148: 6517 | AS148: 1052 | AT148: 10746 | AU148: 24764 | AV148: 656 | AW148: 4388 | AX148: 555 | AY148: 255 | AZ148: 6497 | BA148: 538 | BB148: 0 | BC148: 816 | BD148: 3550 | BE148: 5351 | BF148: 566 | BG148: 298 | BH148: 9377 | BI148: 1629 | BJ148: 1345 | BK148: 832 | BL148: 0
A149: 2012South Dakota | B149: 2012 | C149: Republican | D149: South Dakota | E149: 821669 | F149: 1036 | G149: 676014 | H149: 7752 | I149: 115606 | J149: 7423 | K149: 3517 | L149: 0.004280312389 | M149: 26051 | N149: 0 | O149: 855 | P149: 435 | Q149: 227 | R149: 1494 | S149: 1744 | T149: 2 | U149: 0 | V149: 0 | W149: 970 | X149: 122 | Y149: 8 | Z149: 78 | AA149: 74 | AB149: 210 | AC149: 2441 | AD149: 403 | AE149: 0 | AF149: 0 | AG149: 0 | AH149: 60 | AI149: 61 | AJ149: 892 | AK149: 3568 | AL149: 34 | AM149: 474 | AN149: 248 | AO149: 2175 | AP149: 135 | AQ149: 0 | AR149: 0 | AS149: 175 | AT149: 371 | AU149: 240 | AV149: 1725 | AW149: 64 | AX149: 21 | AY149: 667 | AZ149: 515 | BA149: 0 | BB149: 158 | BC149: 0 | BD149: 507 | BE149: 1715 | BF149: 388 | BG149: 5 | BH149: 340 | BI149: 1026 | BJ149: 131 | BK149: 314 | BL149: 979
A150: 2012Tennessee | B150: 2012 | C150: Republican | D150: Tennessee | E150: 6378278 | F150: 4412 | G150: 5396833 | H150: 24470 | I150: 783077 | J150: 21860 | K150: 13255 | L150: 0.002078147111 | M150: 177098 | N150: 12116 | O150: 1281 | P150: 2250 | Q150: 3306 | R150: 8396 | S150: 2473 | T150: 936 | U150: 176 | V150: 180 | W150: 15641 | X150: 16012 | Y150: 1058 | Z150: 787 | AA150: 7094 | AB150: 5591 | AC150: 617 | AD150: 2630 | AE150: 13202 | AF150: 2452 | AG150: 1040 | AH150: 1743 | AI150: 1525 | AJ150: 4507 | AK150: 1178 | AL150: 10568 | AM150: 2694 | AN150: 308 | AO150: 432 | AP150: 735 | AQ150: 271 | AR150: 783 | AS150: 751 | AT150: 6279 | AU150: 5904 | AV150: 7 | AW150: 6200 | AX150: 2495 | AY150: 1080 | AZ150: 3329 | BA150: 26 | BB150: 4300 | BC150: 0 | BD150: 0 | BE150: 8716 | BF150: 784 | BG150: 133 | BH150: 8008 | BI150: 1876 | BJ150: 3248 | BK150: 1622 | BL150: 358
A151: 2012Texas | B151: 2012 | C151: Republican | D151: Texas | E151: 25711791 | F151: 10124 | G151: 21354247 | H151: 60947 | I151: 3656070 | J151: 53747 | K151: 105565 | L151: 0.004105703877 | M151: 507752 | N151: 9993 | O151: 6759 | P151: 18908 | Q151: 13781 | R151: 62702 | S151: 16616 | T151: 2769 | U151: 181 | V151: 1189 | W151: 31259 | X151: 20362 | Y151: 5040 | Z151: 2387 | AA151: 19672 | AB151: 8264 | AC151: 4934 | AD151: 12699 | AE151: 6040 | AF151: 29348 | AG151: 1293 | AH151: 4969 | AI151: 4813 | AJ151: 9501 | AK151: 2803 | AL151: 6402 | AM151: 12319 | AN151: 1813 | AO151: 4794 | AP151: 8266 | AQ151: 761 | AR151: 6797 | AS151: 16762 | AT151: 20274 | AU151: 22660 | AV151: 989 | AW151: 8728 | AX151: 26284 | AY151: 3827 | AZ151: 10449 | BA151: 1763 | BB151: 4470 | BC151: 1264 | BD151: 10368 | BE151: 0 | BF151: 4610 | BG151: 113 | BH151: 17734 | BI151: 11630 | BJ151: 1729 | BK151: 4192 | BL151: 2472
A152: 2012Utah | B152: 2012 | C152: Republican | D152: Utah | E152: 2805440 | F152: 2571 | G152: 2324019 | H152: 16852 | I152: 373980 | J152: 16586 | K152: 5705 | L152: 0.002033549105 | M152: 87870 | N152: 126 | O152: 2819 | P152: 7966 | Q152: 361 | R152: 15286 | S152: 5350 | T152: 142 | U152: 0 | V152: 0 | W152: 2428 | X152: 1142 | Y152: 1436 | Z152: 5129 | AA152: 1588 | AB152: 475 | AC152: 2791 | AD152: 398 | AE152: 217 | AF152: 345 | AG152: 380 | AH152: 613 | AI152: 1503 | AJ152: 1670 | AK152: 385 | AL152: 284 | AM152: 1553 | AN152: 1057 | AO152: 489 | AP152: 5391 | AQ152: 507 | AR152: 437 | AS152: 686 | AT152: 2129 | AU152: 842 | AV152: 175 | AW152: 1875 | AX152: 1338 | AY152: 4089 | AZ152: 944 | BA152: 351 | BB152: 60 | BC152: 47 | BD152: 863 | BE152: 3605 | BF152: 0 | BG152: 39 | BH152: 1369 | BI152: 3529 | BJ152: 0 | BK152: 1445 | BL152: 2216
A153: 2012Vermont | B153: 2012 | C153: Democrat | D153: Vermont | E153: 620224 | F153: 821 | G153: 532237 | H153: 5326 | I153: 61242 | J153: 5294 | K153: 4375 | L153: 0.007053903106 | M153: 24431 | N153: 16 | O153: 93 | P153: 127 | Q153: 0 | R153: 1112 | S153: 382 | T153: 1626 | U153: 0 | V153: 116 | W153: 966 | X153: 56 | Y153: 6 | Z153: 0 | AA153: 230 | AB153: 68 | AC153: 30 | AD153: 0 | AE153: 1243 | AF153: 73 | AG153: 883 | AH153: 862 | AI153: 3318 | AJ153: 284 | AK153: 315 | AL153: 0 | AM153: 23 | AN153: 147 | AO153: 0 | AP153: 17 | AQ153: 2893 | AR153: 833 | AS153: 74 | AT153: 4780 | AU153: 328 | AV153: 0 | AW153: 214 | AX153: 11 | AY153: 26 | AZ153: 935 | BA153: 341 | BB153: 124 | BC153: 39 | BD153: 193 | BE153: 493 | BF153: 81 | BG153: 0 | BH153: 728 | BI153: 98 | BJ153: 0 | BK153: 151 | BL153: 96
A154: 2012Virginia | B154: 2012 | C154: Democrat | D154: Virginia | E154: 8085389 | F154: 4754 | G154: 6857430 | H154: 25550 | I154: 915242 | J154: 24032 | K154: 12113 | L154: 0.001498134474 | M154: 250653 | N154: 2515 | O154: 1906 | P154: 2420 | Q154: 445 | R154: 14780 | S154: 5352 | T154: 2725 | U154: 2279 | V154: 10964 | W154: 19574 | X154: 9535 | Y154: 3823 | Z154: 652 | AA154: 7089 | AB154: 2663 | AC154: 221 | AD154: 1144 | AE154: 3908 | AF154: 1638 | AG154: 1144 | AH154: 23925 | AI154: 3767 | AJ154: 2982 | AK154: 2294 | AL154: 1344 | AM154: 1914 | AN154: 658 | AO154: 357 | AP154: 973 | AQ154: 535 | AR154: 9073 | AS154: 947 | AT154: 15893 | AU154: 25575 | AV154: 852 | AW154: 5622 | AX154: 2810 | AY154: 1541 | AZ154: 14190 | BA154: 1605 | BB154: 7936 | BC154: 35 | BD154: 6189 | BE154: 12944 | BF154: 2092 | BG154: 423 | BH154: 0 | BI154: 4160 | BJ154: 3839 | BK154: 1258 | BL154: 143
A155: 2012Washington | B155: 2012 | C155: Democrat | D155: Washington | E155: 6815763 | F155: 3864 | G155: 5648199 | H155: 25225 | I155: 904695 | J155: 24285 | K155: 35032 | L155: 0.00513985008 | M155: 215494 | N155: 1507 | O155: 4328 | P155: 8362 | Q155: 1413 | R155: 45597 | S155: 5195 | T155: 2901 | U155: 100 | V155: 773 | W155: 9370 | X155: 6363 | Y155: 5239 | Z155: 10604 | AA155: 4298 | AB155: 1089 | AC155: 1159 | AD155: 2544 | AE155: 1368 | AF155: 1646 | AG155: 532 | AH155: 1191 | AI155: 2911 | AJ155: 3470 | AK155: 2703 | AL155: 615 | AM155: 2802 | AN155: 2919 | AO155: 682 | AP155: 5671 | AQ155: 309 | AR155: 2300 | AS155: 872 | AT155: 5562 | AU155: 4088 | AV155: 217 | AW155: 3192 | AX155: 1223 | AY155: 25525 | AZ155: 3397 | BA155: 97 | BB155: 2727 | BC155: 94 | BD155: 3206 | BE155: 14196 | BF155: 5298 | BG155: 223 | BH155: 3839 | BI155: 0 | BJ155: 215 | BK155: 1168 | BL155: 394
A156: 2012West Virginia | B156: 2012 | C156: Republican | D156: West Virginia | E156: 1837518 | F156: 2090 | G156: 1613322 | H156: 11785 | I156: 174112 | J156: 11396 | K156: -300 | L156: -0.0001632637068 | M156: 47125 | N156: 477 | O156: 306 | P156: 79 | Q156: 0 | R156: 1231 | S156: 104 | T156: 143 | U156: 674 | V156: 294 | W156: 1919 | X156: 1108 | Y156: 166 | Z156: 181 | AA156: 220 | AB156: 328 | AC156: 68 | AD156: 39 | AE156: 2249 | AF156: 90 | AG156: 35 | AH156: 5352 | AI156: 164 | AJ156: 778 | AK156: 20 | AL156: 0 | AM156: 59 | AN156: 0 | AO156: 0 | AP156: 229 | AQ156: 129 | AR156: 1213 | AS156: 81 | AT156: 1721 | AU156: 4683 | AV156: 175 | AW156: 6757 | AX156: 520 | AY156: 118 | AZ156: 5208 | BA156: 0 | BB156: 1098 | BC156: 36 | BD156: 1061 | BE156: 622 | BF156: 0 | BG156: 54 | BH156: 6317 | BI156: 297 | BJ156: 0 | BK156: 470 | BL156: 252
A157: 2012Wisconsin | B157: 2012 | C157: Democrat | D157: Wisconsin | E157: 5660677 | F157: 3351 | G157: 4849945 | H157: 15530 | I157: 693737 | J157: 15440 | K157: 1468 | L157: 0.0002593329384 | M157: 99192 | N157: 323 | O157: 236 | P157: 3257 | Q157: 253 | R157: 5347 | S157: 1600 | T157: 657 | U157: 296 | V157: 15 | W157: 4937 | X157: 970 | Y157: 333 | Z157: 360 | AA157: 22285 | AB157: 2480 | AC157: 4161 | AD157: 1160 | AE157: 635 | AF157: 598 | AG157: 233 | AH157: 1306 | AI157: 489 | AJ157: 3917 | AK157: 18965 | AL157: 238 | AM157: 1263 | AN157: 784 | AO157: 324 | AP157: 1163 | AQ157: 3 | AR157: 606 | AS157: 526 | AT157: 2033 | AU157: 2939 | AV157: 284 | AW157: 2610 | AX157: 289 | AY157: 945 | AZ157: 1563 | BA157: 144 | BB157: 1053 | BC157: 329 | BD157: 1051 | BE157: 2765 | BF157: 900 | BG157: 62 | BH157: 1267 | BI157: 1208 | BJ157: 0 | BK157: 0 | BL157: 30
A158: 2012Wyoming | B158: 2012 | C158: Republican | D158: Wyoming | E158: 569734 | F158: 1083 | G158: 459226 | H158: 7512 | I158: 77324 | J158: 6960 | K158: -1079 | L158: -0.00189386626 | M158: 31149 | N158: 260 | O158: 590 | P158: 2014 | Q158: 244 | R158: 2035 | S158: 5599 | T158: 0 | U158: 0 | V158: 0 | W158: 733 | X158: 166 | Y158: 0 | Z158: 745 | AA158: 905 | AB158: 179 | AC158: 259 | AD158: 539 | AE158: 4 | AF158: 88 | AG158: 0 | AH158: 294 | AI158: 548 | AJ158: 965 | AK158: 290 | AL158: 136 | AM158: 244 | AN158: 1901 | AO158: 1216 | AP158: 355 | AQ158: 0 | AR158: 121 | AS158: 604 | AT158: 231 | AU158: 459 | AV158: 338 | AW158: 819 | AX158: 964 | AY158: 893 | AZ158: 230 | BA158: 0 | BB158: 122 | BC158: 1175 | BD158: 4 | BE158: 1427 | BF158: 1710 | BG158: 0 | BH158: 138 | BI158: 1323 | BJ158: 0 | BK158: 282 | BL158: 0

Sheet Images
A1: BLUE STATES | M1: HELP ICON | O1: RED STATES

Sheet Mockup
L32: Get This Add-In

Sheet Sources
A1: Item | B1: Source
A2: Migration Data | B2: http://www.census.gov/hhes/migration/data/acs/state-to-state.html
A3: State Images | B3: http://ericheikkinen.com/50-states-icon-pack/
A4: 2012 State Votes | B4: http://elections.nytimes.com/2012/results/president
A5: 2008 State Votes | B5: http://elections.nytimes.com/2008/results/president/map.html?ref=newyorktimes-poll-watch
A6: Mock Up Tab | B6: DataPig Technologies - Dashboard Tool
